Department Family,Entity,Date of Payment,Expense Type,Expense Area,Supplier,Voluntary & Community Sector,SME Class,Sole Trader,D-U-N-S Number,Transaction number,PSPES Level 2,Narrative,Postal Code,Amount in Sterling,Grant?
Communities & Local Government,DCLG,03/05/2016,Cur Grant (Non AEF) to Local Authority,Local Government & Public Services,BARNSLEY MBC,,Public Bodies,,211178595,5000330779,,Grant Payable by Exchequer,S70 2AQ,"8,325.00",Yes
Communities & Local Government,DCLG,03/05/2016,Cur Grant (Non AEF) to Local Authority,Local Government & Public Services,CITY OF LINCOLN COUNCIL,,,,,5000330843,,Grant Payable by Exchequer,LN1 1DB,"91,334.00",Yes
Communities & Local Government,DCLG,03/05/2016,Cur Grant (Non AEF) to Local Authority,Local Government & Public Services,CITY OF LINCOLN COUNCIL,,,,,5000330843,,Grant Payable by Exchequer,LN1 1DB,"64,646.00",Yes
Communities & Local Government,DCLG,03/05/2016,Cur Grant (Non AEF) to Local Authority,Local Government & Public Services,DERBY CITY CNCL,,,,229641378,5000330839,,Grant Payable by Exchequer,DE1 2FS,"22,446.00",Yes
Communities & Local Government,DCLG,03/05/2016,Cur Grant (Non AEF) to Local Authority,Local Government & Public Services,DURHAM COUNTY COUNCIL,,,,228453601,5000331032,,Grant Payable by Exchequer,DH1 5UE,"347,554.00",Yes
Communities & Local Government,DCLG,03/05/2016,Cur Grant (Non AEF) to Local Authority,Local Government & Public Services,GREENWICH LB,,,,,5000330981,,Grant Payable by Exchequer,SE18 6HQ,"122,023.00",Yes
Communities & Local Government,DCLG,03/05/2016,Cur Grant (Non AEF) to Local Authority,Local Government & Public Services,GREENWICH LB,,,,,5000330981,,Grant Payable by Exchequer,SE18 6HQ,"25,082.00",Yes
Communities & Local Government,DCLG,03/05/2016,Cur Grant (Non AEF) to Local Authority,Local Government & Public Services,HARINGEY LB,,,,217471767,5000331006,,Grant Payable by Exchequer,N22 7TR,"20,785.00",Yes
Communities & Local Government,DCLG,03/05/2016,Cur Grant (Non AEF) to Local Authority,Local Government & Public Services,HARINGEY LB,,,,217471767,5000331006,,Grant Payable by Exchequer,N22 7TR,"397,629.00",Yes
Communities & Local Government,DCLG,03/05/2016,Cur Grant (Non AEF) to Local Authority,Local Government & Public Services,HARROW LB,,,,,5000331016,,Grant Payable by Exchequer,HA1 2UZ,"147,780.00",Yes
Communities & Local Government,DCLG,03/05/2016,Cur Grant (Non AEF) to Local Authority,Local Government & Public Services,HARTLEPOOL BOROUGH COUNCIL,,,,424291797,5000331023,,Grant Payable by Exchequer,TS24 8AY,"21,820.00",Yes
Communities & Local Government,DCLG,03/05/2016,Cur Grant (Non AEF) to Local Authority,Local Government & Public Services,HARTLEPOOL BOROUGH COUNCIL,,,,424291797,5000331023,,Grant Payable by Exchequer,TS24 8AY,"2,078,792.00",Yes
Communities & Local Government,DCLG,03/05/2016,Cur Grant (Non AEF) to Local Authority,Local Government & Public Services,KNOWSLEY MBC,,,,,5000330802,,Grant Payable by Exchequer,L36 9YZ,"487,666.00",Yes
Communities & Local Government,DCLG,03/05/2016,Cur Grant (Non AEF) to Local Authority,Local Government & Public Services,LEWISHAM LONDON BOROUGH,,Large,,235653300,5000330835,,Grant Payable by Exchequer,SE6 4RU,"235,858.00",Yes
Communities & Local Government,DCLG,03/05/2016,Cur Grant (Non AEF) to Local Authority,Local Government & Public Services,LONDON BOROUGH OF HACKNEY,,,,225221597,5000330987,,Grant Payable by Exchequer,E8 4RU,"76,431.00",Yes
Communities & Local Government,DCLG,03/05/2016,Cur Grant (Non AEF) to Local Authority,Local Government & Public Services,LONDON BOROUGH OF HACKNEY,,,,225221597,5000330987,,Grant Payable by Exchequer,E8 4RU,"410,788.00",Yes
Communities & Local Government,DCLG,03/05/2016,Cur Grant (Non AEF) to Local Authority,Local Government & Public Services,LONDON BOROUGH OF LAMBETH,,,,228216479,5000330807,,Grant Payable by Exchequer,SW2 1RL,"207,493.00",Yes
Communities & Local Government,DCLG,03/05/2016,Cur Grant (Non AEF) to Local Authority,Local Government & Public Services,LONDON BOROUGH OF LAMBETH,,,,228216479,5000330807,,Grant Payable by Exchequer,SW2 1RL,"419,385.00",Yes
Communities & Local Government,DCLG,03/05/2016,Cur Grant (Non AEF) to Local Authority,Local Government & Public Services,LONDON BOROUGH OF NEWHAM,,Large,,228454344,5000330777,,Grant Payable by Exchequer,E16 2QU,"531,938.00",Yes
Communities & Local Government,DCLG,03/05/2016,Cur Grant (Non AEF) to Local Authority,Local Government & Public Services,LONDON BOROUGH OF REDBRIDGE,,,,211341417,5000330906,,Grant Payable by Exchequer,IG1 1NN,"118,029.00",Yes
Communities & Local Government,DCLG,03/05/2016,Cur Grant (Non AEF) to Local Authority,Local Government & Public Services,MIDDLESBROUGH BC,,,,,5000330911,,Grant Payable by Exchequer,TS1 9GA,"8,204.00",Yes
Communities & Local Government,DCLG,03/05/2016,Cur Grant (Non AEF) to Local Authority,Local Government & Public Services,MIDDLESBROUGH BC,,,,,5000330911,,Grant Payable by Exchequer,TS1 9GA,"52,991.00",Yes
Communities & Local Government,DCLG,03/05/2016,Cur Grant (Non AEF) to Local Authority,Local Government & Public Services,RIBBLE VALLEY BC,,,,232617894,5000330918,,Grant Payable by Exchequer,BB7 2RA,"45,937.00",Yes
Communities & Local Government,DCLG,03/05/2016,Cur Grant (Non AEF) to Local Authority,Local Government & Public Services,RIBBLE VALLEY BC,,,,232617894,5000330918,,Grant Payable by Exchequer,BB7 2RA,"1,391.00",Yes
Communities & Local Government,DCLG,03/05/2016,Cur Grant (Non AEF) to Local Authority,Local Government & Public Services,SOUTH TYNESIDE COUNCIL,,,,345736438,5000331030,,Grant Payable by Exchequer,NE33 2RL,"32,497.00",Yes
Communities & Local Government,DCLG,03/05/2016,Cur Grant (Non AEF) to Local Authority,Local Government & Public Services,WALSALL MBC,,,,212515585,5000331092,,Grant Payable by Exchequer,WS1 1TW,"207,079.00",Yes
Communities & Local Government,DCLG,03/05/2016,Cur Grant (Non AEF) to Local Authority,Local Government & Public Services,WALSALL MBC,,,,212515585,5000331092,,Grant Payable by Exchequer,WS1 1TW,"212,714.00",Yes
Communities & Local Government,DCLG,03/05/2016,Cur Grant (Non AEF) to Local Authority,Local Government & Public Services,WALTHAM FOREST LB,,Large,,,5000331093,,Grant Payable by Exchequer,E17 4JF,"14,682.00",Yes
Communities & Local Government,DCLG,03/05/2016,Cur Grant (Non AEF) to Local Authority,Local Government & Public Services,WALTHAM FOREST LB,,Large,,,5000331093,,Grant Payable by Exchequer,E17 4JF,"53,176.00",Yes
Communities & Local Government,DCLG,03/05/2016,Cur Grant (Non AEF) to Local Authority,Local Government & Public Services,WEALDEN DC,,,,232688697,5000330933,,Grant Payable by Exchequer,BN22 9LN,"2,153.00",Yes
Communities & Local Government,DCLG,03/05/2016,Cur Grant (Non AEF) to Local Authority,Local Government & Public Services,WIRRAL BOROUGH COUNCIL,,,,,5000330988,,Grant Payable by Exchequer,CH41 6BU,"113,163.00",Yes
Communities & Local Government,DCLG,03/05/2016,Cur Grant (Non AEF) to Local Authority,Local Government & Public Services,WIRRAL BOROUGH COUNCIL,,,,,5000330988,,Grant Payable by Exchequer,CH41 6BU,"123,880.00",Yes
Communities & Local Government,DCLG,03/05/2016,Cur Grant (Non AEF) to Local Authority,Local Government & Public Services,WOLVERHAMPTON MBC,,,,229895453,5000330997,,Grant Payable by Exchequer,WV1 1RL,"84,775.00",Yes
Communities & Local Government,DCLG,03/05/2016,Cur Grant (Non AEF) to Local Authority,Local Government & Public Services,WOLVERHAMPTON MBC,,,,229895453,5000330997,,Grant Payable by Exchequer,WV1 1RL,"331,854.00",Yes
Communities & Local Government,DCLG,03/05/2016,Current Grant Business Rate Retention,Local Government & Public Services,AVON FIRE AUTHORITY,,,,424872570,5000330759,,Grant Payable by Exchequer,BS1 6EU,"477,161.00",Yes
Communities & Local Government,DCLG,03/05/2016,Current Grant Business Rate Retention,Local Government & Public Services,BARNSLEY MBC,,Public Bodies,,211178595,5000330779,,Grant Payable by Exchequer,S70 2AQ,"2,398,968.00",Yes
Communities & Local Government,DCLG,03/05/2016,Current Grant Business Rate Retention,Local Government & Public Services,BEDS & LUTON FIRE & RESCUE SERVICE,,,,387821283,5000330801,,Grant Payable by Exchequer,MK42 7NR,"298,084.00",Yes
Communities & Local Government,DCLG,03/05/2016,Current Grant Business Rate Retention,Local Government & Public Services,CAMBRIDGESHIRE COUNTY CNCL,,,,219047347,5000330913,,Grant Payable by Exchequer,CB3 0AP,"3,271,954.00",Yes
Communities & Local Government,DCLG,03/05/2016,Current Grant Business Rate Retention,Local Government & Public Services,CAMBS & PETERBOROUGH FIRE AUTHORITY,,,,235999737,5000330910,,Grant Payable by Exchequer,PE29 2NA,"185,811.00",Yes
Communities & Local Government,DCLG,03/05/2016,Current Grant Business Rate Retention,Local Government & Public Services,CHESHIRE FIRE AUTHORITY,,,,424872737,5000330752,,Grant Payable by Exchequer,CW7 2FQ,"375,543.00",Yes
Communities & Local Government,DCLG,03/05/2016,Current Grant Business Rate Retention,Local Government & Public Services,CITY OF LINCOLN COUNCIL,,,,,5000330843,,Grant Payable by Exchequer,LN1 1DB,"3,102,251.00",Yes
Communities & Local Government,DCLG,03/05/2016,Current Grant Business Rate Retention,Local Government & Public Services,CLEVELAND FIRE AUTHORITY,,,,424872778,5000330784,,Grant Payable by Exchequer,TS25 5TB,"583,749.00",Yes
Communities & Local Government,DCLG,03/05/2016,Current Grant Business Rate Retention,Local Government & Public Services,CO DURHAM & DARLINGTON FIRE & RESCU,,,,424872851,5000330867,,Grant Payable by Exchequer,DH1 1TW,"453,604.00",Yes
Communities & Local Government,DCLG,03/05/2016,Current Grant Business Rate Retention,Local Government & Public Services,CUMBRIA COUNTY CNCL,,,,211316542,5000330818,,Grant Payable by Exchequer,CA3 8NA,"1,306,155.00",Yes
Communities & Local Government,DCLG,03/05/2016,Current Grant Business Rate Retention,Local Government & Public Services,DERBY CITY CNCL,,,,229641378,5000330839,,Grant Payable by Exchequer,DE1 2FS,"4,566,547.00",Yes
Communities & Local Government,DCLG,03/05/2016,Current Grant Business Rate Retention,Local Government & Public Services,DEVON & SOMERSET FIRE & RESCUE SERV,,,,424872976,5000330847,,Grant Payable by Exchequer,EX3 0NW,"832,831.00",Yes
Communities & Local Government,DCLG,03/05/2016,Current Grant Business Rate Retention,Local Government & Public Services,DORSET & WILTSHIRE FIRE & RESCUE AU,,Large,,,5000331048,,Grant Payable by Exchequer,SP1 3NR,"410,206.00",Yes
Communities & Local Government,DCLG,03/05/2016,Current Grant Business Rate Retention,Local Government & Public Services,DORSET COUNTY CNCL,,,,225431279,5000330855,,Grant Payable by Exchequer,DT1 1XJ,"2,335,940.00",Yes
Communities & Local Government,DCLG,03/05/2016,Current Grant Business Rate Retention,Local Government & Public Services,DURHAM COUNTY COUNCIL,,,,228453601,5000331032,,Grant Payable by Exchequer,DH1 5UE,"5,489,584.00",Yes
Communities & Local Government,DCLG,03/05/2016,Current Grant Business Rate Retention,Local Government & Public Services,ESSEX COUNTY CNCL,,,,233572986,5000330939,,Grant Payable by Exchequer,CM1 1JZ,"3,634,152.00",Yes
Communities & Local Government,DCLG,03/05/2016,Current Grant Business Rate Retention,Local Government & Public Services,GREATER MANCHESTER FIRE & RESCUE AU,,,,,5000330872,,Grant Payable by Exchequer,M27 8US,"1,694,423.00",Yes
Communities & Local Government,DCLG,03/05/2016,Current Grant Business Rate Retention,Local Government & Public Services,GREENWICH LB,,,,,5000330981,,Grant Payable by Exchequer,SE18 6HQ,"5,196,450.00",Yes
Communities & Local Government,DCLG,03/05/2016,Current Grant Business Rate Retention,Local Government & Public Services,HAMPSHIRE COUNTY COUNCIL,,,,211325832,5000330998,,Grant Payable by Exchequer,SO23 8UB,"5,959,836.00",Yes
Communities & Local Government,DCLG,03/05/2016,Current Grant Business Rate Retention,Local Government & Public Services,HAMPSHIRE FIRE & RESCUE AUTHORITY,,,,211325832,5000331001,,Grant Payable by Exchequer,SO23 8UB,"598,145.00",Yes
Communities & Local Government,DCLG,03/05/2016,Current Grant Business Rate Retention,Local Government & Public Services,HARINGEY LB,,,,217471767,5000331006,,Grant Payable by Exchequer,N22 7TR,"4,969,774.00",Yes
Communities & Local Government,DCLG,03/05/2016,Current Grant Business Rate Retention,Local Government & Public Services,HARROW LB,,,,,5000331016,,Grant Payable by Exchequer,HA1 2UZ,"1,900,208.00",Yes
Communities & Local Government,DCLG,03/05/2016,Current Grant Business Rate Retention,Local Government & Public Services,HARTLEPOOL BOROUGH COUNCIL,,,,424291797,5000331023,,Grant Payable by Exchequer,TS24 8AY,"675,869.00",Yes
Communities & Local Government,DCLG,03/05/2016,Current Grant Business Rate Retention,Local Government & Public Services,HEREFORD & WORCESTER FIRE & RESCUE,,,,236425484,5000331034,,Grant Payable by Exchequer,WR5 1JR,"256,016.00",Yes
Communities & Local Government,DCLG,03/05/2016,Current Grant Business Rate Retention,Local Government & Public Services,HUMBERSIDE FIRE & RESCUE SERVICE,,,,229832563,5000330749,,Grant Payable by Exchequer,HU4 7BB,"760,603.00",Yes
Communities & Local Government,DCLG,03/05/2016,Current Grant Business Rate Retention,Local Government & Public Services,KNOWSLEY MBC,,,,,5000330802,,Grant Payable by Exchequer,L36 9YZ,"3,315,948.00",Yes
Communities & Local Government,DCLG,03/05/2016,Current Grant Business Rate Retention,Local Government & Public Services,LANCASHIRE COMBINED FIRE AUTHORITY,,,,230398732,5000330810,,Grant Payable by Exchequer,PR2 3LH,"870,676.00",Yes
Communities & Local Government,DCLG,03/05/2016,Current Grant Business Rate Retention,Local Government & Public Services,LEICESTERSHIRE COUNTY CNCL,,,,423679836,5000330826,,Grant Payable by Exchequer,LE3 8RB,"1,109,400.00",Yes
Communities & Local Government,DCLG,03/05/2016,Current Grant Business Rate Retention,Local Government & Public Services,LEWISHAM LONDON BOROUGH,,Large,,235653300,5000330835,,Grant Payable by Exchequer,SE6 4RU,"6,441,100.00",Yes
Communities & Local Government,DCLG,03/05/2016,Current Grant Business Rate Retention,Local Government & Public Services,LONDON BOROUGH OF HACKNEY,,,,225221597,5000330987,,Grant Payable by Exchequer,E8 4RU,"6,763,307.00",Yes
Communities & Local Government,DCLG,03/05/2016,Current Grant Business Rate Retention,Local Government & Public Services,LONDON BOROUGH OF LAMBETH,,,,228216479,5000330807,,Grant Payable by Exchequer,SW2 1RL,"5,932,147.00",Yes
Communities & Local Government,DCLG,03/05/2016,Current Grant Business Rate Retention,Local Government & Public Services,LONDON BOROUGH OF NEWHAM,,Large,,228454344,5000330777,,Grant Payable by Exchequer,E16 2QU,"6,406,092.00",Yes
Communities & Local Government,DCLG,03/05/2016,Current Grant Business Rate Retention,Local Government & Public Services,LONDON BOROUGH OF REDBRIDGE,,,,211341417,5000330906,,Grant Payable by Exchequer,IG1 1NN,"2,853,203.00",Yes
Communities & Local Government,DCLG,03/05/2016,Current Grant Business Rate Retention,Local Government & Public Services,MERSEYSIDE FIRE & RESCUE SERVICE,,,,210372331,5000330891,,Grant Payable by Exchequer,L30 4YD,"1,274,852.00",Yes
Communities & Local Government,DCLG,03/05/2016,Current Grant Business Rate Retention,Local Government & Public Services,MIDDLESBROUGH BC,,,,,5000330911,,Grant Payable by Exchequer,TS1 9GA,"1,962,933.00",Yes
Communities & Local Government,DCLG,03/05/2016,Current Grant Business Rate Retention,Local Government & Public Services,NORFOLK COUNTY COUNCIL,,,,232602789,5000330782,,Grant Payable by Exchequer,NR1 2DW,"4,118,198.00",Yes
Communities & Local Government,DCLG,03/05/2016,Current Grant Business Rate Retention,Local Government & Public Services,NORTH YORKSHIRE FIRE & RESCUE AUTH,,,,423679778,5000330827,,Grant Payable by Exchequer,DL6 1AB,"229,856.00",Yes
Communities & Local Government,DCLG,03/05/2016,Current Grant Business Rate Retention,Local Government & Public Services,NOTTINGHAMSHIRE COUNTY CNCL,,,,,5000330842,,Grant Payable by Exchequer,NG2 7QP,"1,425,323.00",Yes
Communities & Local Government,DCLG,03/05/2016,Current Grant Business Rate Retention,Local Government & Public Services,NOTTS & CITY NOTTINGHAM FIRE AUTH,,,,296814999,5000330846,,Grant Payable by Exchequer,NG5 8PD,"587,795.00",Yes
Communities & Local Government,DCLG,03/05/2016,Current Grant Business Rate Retention,Local Government & Public Services,RIBBLE VALLEY BC,,,,232617894,5000330918,,Grant Payable by Exchequer,BB7 2RA,"7,134,957.00",Yes
Communities & Local Government,DCLG,03/05/2016,Current Grant Business Rate Retention,Local Government & Public Services,ROYAL BERKSHIRE FIRE AUTHORITY,,,,424872653,5000330804,,Grant Payable by Exchequer,RG30 4FS,"169,454.00",Yes
Communities & Local Government,DCLG,03/05/2016,Current Grant Business Rate Retention,Local Government & Public Services,SHROPSHIRE & WREKIN FIRE AUTHORITY,,,,424873610,5000330980,,Grant Payable by Exchequer,SY1 2HJ,"194,521.00",Yes
Communities & Local Government,DCLG,03/05/2016,Current Grant Business Rate Retention,Local Government & Public Services,SOUTH TYNESIDE COUNCIL,,,,345736438,5000331030,,Grant Payable by Exchequer,NE33 2RL,"2,722,654.00",Yes
Communities & Local Government,DCLG,03/05/2016,Current Grant Business Rate Retention,Local Government & Public Services,SOUTH YORKSHIRE FIRE & RESCUE AUTH,,,,424872620,5000331033,,Grant Payable by Exchequer,S70 2HG,"910,015.00",Yes
Communities & Local Government,DCLG,03/05/2016,Current Grant Business Rate Retention,Local Government & Public Services,STAFFORDSHIRE COUNTY CNCL,,,,,5000331054,,Grant Payable by Exchequer,ST16 2LH,"5,838,946.00",Yes
Communities & Local Government,DCLG,03/05/2016,Current Grant Business Rate Retention,Local Government & Public Services,SURREY COUNTY CNCL,,Public Bodies,,,5000331065,,Grant Payable by Exchequer,KT1 2DN,"520,643.00",Yes
Communities & Local Government,DCLG,03/05/2016,Current Grant Business Rate Retention,Local Government & Public Services,TYNE & WEAR FIRE AUTHORITY,,,,215599312,5000331088,,Grant Payable by Exchequer,SR2 7DN,"905,717.00",Yes
Communities & Local Government,DCLG,03/05/2016,Current Grant Business Rate Retention,Local Government & Public Services,WALSALL MBC,,,,212515585,5000331092,,Grant Payable by Exchequer,WS1 1TW,"3,007,918.00",Yes
Communities & Local Government,DCLG,03/05/2016,Current Grant Business Rate Retention,Local Government & Public Services,WALTHAM FOREST LB,,Large,,,5000331093,,Grant Payable by Exchequer,E17 4JF,"4,159,079.00",Yes
Communities & Local Government,DCLG,03/05/2016,Current Grant Business Rate Retention,Local Government & Public Services,WEALDEN DC,,,,232688697,5000330933,,Grant Payable by Exchequer,BN22 9LN,"2,267,068.00",Yes
Communities & Local Government,DCLG,03/05/2016,Current Grant Business Rate Retention,Local Government & Public Services,WEST MIDLANDS FIRE & CIVIL DEFENCE,,,,232913731,5000330956,,Grant Payable by Exchequer,B4 7DE,"1,896,490.00",Yes
Communities & Local Government,DCLG,03/05/2016,Current Grant Business Rate Retention,Local Government & Public Services,WEST SUSSEX CC,,Public Bodies,,232198762,5000330965,,Grant Payable by Exchequer,PO19 1RG,"106,301.00",Yes
Communities & Local Government,DCLG,03/05/2016,Current Grant Business Rate Retention,Local Government & Public Services,WEST YORKSHIRE FIRE & RESCUE AUTH,,,,236428595,5000330967,,Grant Payable by Exchequer,HD1 2YU,"1,319,541.00",Yes
Communities & Local Government,DCLG,03/05/2016,Current Grant Business Rate Retention,Local Government & Public Services,WIRRAL BOROUGH COUNCIL,,,,,5000330988,,Grant Payable by Exchequer,CH41 6BU,"3,746,787.00",Yes
Communities & Local Government,DCLG,03/05/2016,Current Grant Business Rate Retention,Local Government & Public Services,WOLVERHAMPTON MBC,,,,229895453,5000330997,,Grant Payable by Exchequer,WV1 1RL,"3,257,832.00",Yes
Communities & Local Government,DCLG,03/05/2016,Current Grant Business Rate Retention,Local Government & Public Services,WORCESTERSHIRE COUNTY COUNCIL,,,,230359643,5000331002,,Grant Payable by Exchequer,WR5 2NP,"427,983.00",Yes
Communities & Local Government,DCLG,03/05/2016,Electronic Data Storage,Finance,TNT UK LIMITED,,Large,,,5106221546,Warehousing and Storage,Visions electronic storage,BL10 9GR,"4,192.44",
Communities & Local Government,DCLG,03/05/2016,Legal Fees,Housing & Planning,SHOOSMITHS LLP,,Large,,,5106221505,Legal,Legal advice,M3 3GS,"4,384.80",
Communities & Local Government,DCLG,03/05/2016,Research,Local Government & Public Services,GLENIGAN,,Large,,218633327,5106221536,Research,Research - Planning application & Development pipeline data,BH8 8AQ,"12,500.00",
Communities & Local Government,DCLG,03/05/2016,Safety equipment,Finance,CYCLESCHEME LTD,,Large,,345537935,5106221542,Clothing and Textiles,Salaried Cycle to work scheme accessorie,BA1 2LN,25,
Communities & Local Government,DCLG,03/05/2016,Training,Finance,ASSOC RESIDENTIAL MANAGING AGENTS,,Micro,,738742019,5106221538,Development and Training,TC1: Introduction to RPM (JE),SW11 4ND,195,
Communities & Local Government,DCLG,03/05/2016,Training,Finance,ASSOC RESIDENTIAL MANAGING AGENTS,,Micro,,738742019,5106221538,Development and Training,TC1: Introduction to RPM (MM),SW11 4ND,195,
Communities & Local Government,DCLG,03/05/2016,Training,Finance,CAPITA BUS. SERV. LTD (CSL),,Large,,215580993,5106221537,Development and Training,Lean Six Sigma levels Scheme,DL1 9HB,"2,378.05",
Communities & Local Government,DCLG,03/05/2016,Training,Finance,SKILLSTUDIO LIMITED,,Micro,,222947637,5106221543,Development and Training,Overcome Fear & Present with Confidence,BR7 6RN,257,
Communities & Local Government,DCLG,03/05/2016,Training,Local Government & Public Services,DCLG GOVERNMENT PROCUREMENT CARD,,,,,1000004112,Learning and Development Materials,Conference Fees,TN37 7GA,378.34,
Communities & Local Government,DCLG,03/05/2016,Utilisation of Unfunded Pension Scheme,Finance,LONDON PENSIONS FUND AUTHORITY,,Public Bodies,,236915880,5106221539,Financial,Pension fund management,SE1 0LL,372.79,
Communities & Local Government,DCLG,03/05/2016,Vehicle hire,Finance,CYCLESCHEME LTD,,Large,,345537935,5106221542,Vehicle Hire and Lease,Salaried Cycle to work scheme,BA1 2LN,"1,435.05",
Communities & Local Government,DCLG,03/05/2016,Vehicle Maintenance,Finance,CYCLESCHEME LTD,,Large,,345537935,5106221542,Fleet Management,Salaried Cycle to work scheme,BA1 2LN,686.93,
Communities & Local Government,DCLG,03/05/2016,Work In Progress Pre-Cert 40373 Spend,Decentralisation and Local Growth,LINCOLN UNIVERSITY,,Large,,,7600015368,,Revenue Grant To Be Paid,LN6 7TS,-0.6,Yes
Communities & Local Government,DCLG,03/05/2016,Work In Progress Pre-Cert 40467 Spend,Decentralisation and Local Growth,DERBY CITY COUNCIL,,Large,,,7600015369,,Capital Grant To Be Paid,DE1 2FE,"479,157.18",Yes
Communities & Local Government,DCLG,03/05/2016,Work In Progress Pre-Cert 40467 Spend,Decentralisation and Local Growth,LINCOLN UNIVERSITY,,Large,,,7600015368,,Capital Grant Clawback Offset,LN6 7TS,"-10,910.76",Yes
Communities & Local Government,DCLG,03/05/2016,Work In Progress Pre-Cert 40467 Spend,Decentralisation and Local Growth,LINCOLN UNIVERSITY,,Large,,,7600015368,,Capital Grant To Be Paid,LN6 7TS,"181,659.94",Yes
Communities & Local Government,DCLG,03/05/2016,Work In Progress Pre-Cert 40467 Spend,Decentralisation and Local Growth,WPD PROPERTY INVESTMENTS LTD,,,,,7600015367,,Capital Grant To Be Paid,BS2 0TB,"2,532.77",Yes
Communities & Local Government,DCLG,03/05/2016,Work In Progress Pre-Cert 40467 Spend,Decentralisation and Local Growth,WPD PROPERTY INVESTMENTS LTD,,,,,7600015370,,Capital Grant Clawback Offset,BS2 0TB,"-27,339.81",Yes
Communities & Local Government,DCLG,03/05/2016,Work In Progress Pre-Cert 40467 Spend,Decentralisation and Local Growth,WPD PROPERTY INVESTMENTS LTD,,,,,7600015370,,Capital Grant To Be Paid,BS2 0TB,"58,381.45",Yes
Communities & Local Government,DCLG,04/05/2016,Agency Staff,Decentralisation and Local Growth,BROOK STREET UK LTD,,Large,,364940028,5106221552,Contingent Labour,BROOK STREET AGENCY STAFF,AL1 4JB,800.09,
Communities & Local Government,DCLG,04/05/2016,Cap Grants to Local Authorities (DEL),Decentralisation and Local Growth,CAMBRIDGESHIRE COUNTY COUNCIL,,Public Bodies,,210311121,2100264021,,Greater Cambridge  Gain Share  Fund,CB3 0AP,"20,000,000.00",Yes
Communities & Local Government,DCLG,04/05/2016,Cap Grants to Local Authorities (DEL),Decentralisation and Local Growth,PLYMOUTH CITY COUNCIL,,,,236416095,2100264020,,Funding for land regeneration & remediation,PL1 2AA,"4,000,000.00",Yes
Communities & Local Government,DCLG,04/05/2016,Current Grants to Non Profit Bodies,Local Government & Public Services,LITTLEBOROUGH & DISTRICT LIONS CLUB,,,,,2100264203,,Storm Desmond Eva Charity Match Funding,OL15 8RE,"1,890.00",Yes
Communities & Local Government,DCLG,04/05/2016,IT - Service Contracts,Finance,DAISY CORPORATE SERVICES LTD,,Large,,221481042,5106221577,IT Managed / Outsourced Services,Telephony New Requirements,BB9 5SR,602.51,
Communities & Local Government,DCLG,04/05/2016,Professional Services (OGD),Finance,H M TREASURY,,Public Bodies,,233590996,5106221502,IT Managed / Outsourced Services,Government Internal Audit Agency Core,NR1 0HS,"301,328.00",
Communities & Local Government,DCLG,04/05/2016,Steady State Service Provision,Finance,CGI IT UK LIMITED,,Large,,239881618,5106221565,Business Process Outsourcing Services,Payroll Services & Licences 15/17,CF31 9AP,"6,798.65",
Communities & Local Government,DCLG,04/05/2016,Steady State Service Provision,Finance,CGI IT UK LIMITED,,Large,,239881618,5106221570,Business Process Outsourcing Services,Payroll Services & Licences 15/17,CF31 9AP,589.5,
Communities & Local Government,DCLG,04/05/2016,Steady State Service Provision,Local Government & Public Services,MINISTRY OF DEFENCE,,Public Bodies,,,2100264202,Business Process Outsourcing Services,Storm Desmond- Military support,L2 3YL,"163,540.02",
Communities & Local Government,DCLG,04/05/2016,Training,Finance,CAPITA BUS. SERV. LTD (CSL),,Large,,215580993,5106221553,Development and Training,Corporate Finance and Property Capital M,DL1 9HB,"28,409.09",
Communities & Local Government,DCLG,04/05/2016,Training,Finance,CAPITA BUS. SERV. LTD (CSL),,Large,,215580993,5106221554,Development and Training,Lean Six Sigma levels Scheme,DL1 9HB,"2,256.10",
Communities & Local Government,DCLG,04/05/2016,Training,Housing & Planning,ROYAL TOWN PLANNING INSTITUTE,,,,227231818,5106221558,Development and Training,various training courses for Planners,EC3R 8DL,635,
Communities & Local Government,DCLG,04/05/2016,Web Services,"Strategy, Communications and Private Office",DEXTROUS WEB LTD,,Micro,,211267270,5106221575,ICT Services,Intranet Service Enhancements,N1 7NG,874.18,
Communities & Local Government,DCLG,04/05/2016,Work In Progress Pre-Cert 40467 Spend,Decentralisation and Local Growth,RUSTLER YACHTS LTD,,Small,,,2300002490,,Recovery of payment,TR10 8AD,"-5,336.32",Yes
Communities & Local Government,DCLG,05/05/2016,Cap Grants to Local Authorities (DEL),Decentralisation and Local Growth,DEVON COUNTY COUNCIL,,Public Bodies,,,2100264115,,Coastal Communities Fund,EX2 4QJ,"450,427.00",Yes
Communities & Local Government,DCLG,05/05/2016,Cap Grants to Local Authorities (DEL),Decentralisation and Local Growth,DURHAM COUNTY COUNCIL,,Large,,228453601,2100264116,,Coastal Communities Fund,DH1 5UL,"699,810.00",Yes
Communities & Local Government,DCLG,05/05/2016,Cap Grants to Local Authorities (DEL),Decentralisation and Local Growth,EAST RIDING OF YORKSHIRE COUNCIL,,,,,2100264117,,Coastal Communities Fund,HU17 5BE,"96,948.00",Yes
Communities & Local Government,DCLG,05/05/2016,Cap Grants to Local Authorities (DEL),Decentralisation and Local Growth,GRAVESHAM BC,,,,236178612,2100264076,,Coastal Communities Fund,DA12 1AU,"319,930.00",Yes
Communities & Local Government,DCLG,05/05/2016,Cap Grants to Local Authorities (DEL),Decentralisation and Local Growth,LINCOLNSHIRE CC,,,,,2100264077,,Coastal Communities Fund,LN2 1DY,"638,028.00",Yes
Communities & Local Government,DCLG,05/05/2016,Cap Grants to Local Authorities (DEL),Decentralisation and Local Growth,MALDON DC,,,,424668663,2100264083,,Coastal Communities Fund,CM9 7DL,"85,000.00",Yes
Communities & Local Government,DCLG,05/05/2016,Cap Grants to Local Authorities (DEL),Decentralisation and Local Growth,MEDWAY COUNCIL,,,,,2100264114,,Coastal Communities Fund,ME4 4RT,"289,120.00",Yes
Communities & Local Government,DCLG,05/05/2016,Cap Grants to Local Authorities (DEL),Decentralisation and Local Growth,NORTH TYNESIDE COUNCIL,,,,,2100264118,,Coastal Communities Fund,NA27 0BY,"1,250,000.00",Yes
Communities & Local Government,DCLG,05/05/2016,Cap Grants to Local Authorities (DEL),Decentralisation and Local Growth,PORTSMOUTH CITY COUNCIL,,Public Bodies,,211183082,2100264075,,Coastal Communities Fund,PO1 2AR,"407,764.00",Yes
Communities & Local Government,DCLG,05/05/2016,Cap Grants to Local Authorities (DEL),Decentralisation and Local Growth,REDCAR & CLEVELAND BC,,,,215175196,2100264119,,Coastal Communities Fund,TS6 9AR,"591,343.00",Yes
Communities & Local Government,DCLG,05/05/2016,Cap Grants to Local Authorities (DEL),Decentralisation and Local Growth,SCARBOROUGH BC,,,,,2100264078,,Coastal Communities Fund,YO11 2HG,"723,047.00",Yes
Communities & Local Government,DCLG,05/05/2016,Cap Grants to Local Authorities (DEL),Decentralisation and Local Growth,SOUTH RIBBLE BC,,,,,2100264079,,Coastal Communities Fund,PR25 1DH,"7,000.00",Yes
Communities & Local Government,DCLG,05/05/2016,Cap Grants to Local Authorities (DEL),Decentralisation and Local Growth,SOUTH TYNESIDE COUNCIL,,,,345736438,2100264080,,Coastal Communities Fund,NE33 2RL,"511,591.00",Yes
Communities & Local Government,DCLG,05/05/2016,Cap Grants to Local Authorities (DEL),Decentralisation and Local Growth,SUFFOLK COASTAL DISTRICT COUNCIl,,,,239933203,2100264081,,Coastal Communities Fund,IP12 1AU,"9,000.00",Yes
Communities & Local Government,DCLG,05/05/2016,Cap Grants to Local Authorities (DEL),Decentralisation and Local Growth,SUNDERLAND CITY COUNCIL,,,,215599312,2100264082,,Coastal Communities Fund,SR2 7DN,"106,595.00",Yes
Communities & Local Government,DCLG,05/05/2016,Conferences and Meeting Facilities,Finance,NATIONAL AUDIT OFFICE,,Public Bodies,,239831654,5106221580,Business Travel Accommodation,Room hire - Extended SCS event 15/04/16,SW1W 9SP,"1,065.70",
Communities & Local Government,DCLG,05/05/2016,Current (non AEF) Grants to Local Authorities,Decentralisation and Local Growth,ARUN DISTRICT COUNCIL,,,,,2100264104,,Coastal Communities Fund,BN17 6SL,"6,500.00",Yes
Communities & Local Government,DCLG,05/05/2016,Current (non AEF) Grants to Local Authorities,Decentralisation and Local Growth,BARROW-IN-FURNESS BC,,,,227410701,2100264097,,Coastal Communities Fund,LA14 2LD,"432,446.00",Yes
Communities & Local Government,DCLG,05/05/2016,Current (non AEF) Grants to Local Authorities,Decentralisation and Local Growth,BLACKPOOL BC,,Public Bodies,,228593497,2100264086,,Coastal Communities Fund,FY1 1NA,"557,883.00",Yes
Communities & Local Government,DCLG,05/05/2016,Current (non AEF) Grants to Local Authorities,Decentralisation and Local Growth,COPELAND BC,,,,,2100264087,,Coastal Communities Fund,CA28 7SJ,"73,279.00",Yes
Communities & Local Government,DCLG,05/05/2016,Current (non AEF) Grants to Local Authorities,Decentralisation and Local Growth,CORNWALL UNITARY AUTHORITY,,,,211334404,2100264085,,Coastal Communities Fund,TR1 3AY,"197,000.00",Yes
Communities & Local Government,DCLG,05/05/2016,Current (non AEF) Grants to Local Authorities,Decentralisation and Local Growth,DEVON COUNTY COUNCIL,,Public Bodies,,,2100264106,,Coastal Communities Fund,EX2 4QJ,"43,716.00",Yes
Communities & Local Government,DCLG,05/05/2016,Current (non AEF) Grants to Local Authorities,Decentralisation and Local Growth,DURHAM COUNTY COUNCIL,,Large,,228453601,2100264107,,Coastal Communities Fund,DH1 5UL,"98,637.00",Yes
Communities & Local Government,DCLG,05/05/2016,Current (non AEF) Grants to Local Authorities,Decentralisation and Local Growth,EAST RIDING OF YORKSHIRE COUNCIL,,,,,2100264111,,Coastal Communities Fund,HU17 5BE,"156,179.00",Yes
Communities & Local Government,DCLG,05/05/2016,Current (non AEF) Grants to Local Authorities,Decentralisation and Local Growth,EASTBOURNE BC,,,,229896428,2100264088,,Coastal Communities Fund,BN21 4TW,"184,879.00",Yes
Communities & Local Government,DCLG,05/05/2016,Current (non AEF) Grants to Local Authorities,Decentralisation and Local Growth,GRAVESHAM BC,,,,236178612,2100264089,,Coastal Communities Fund,DA12 1AU,"20,000.00",Yes
Communities & Local Government,DCLG,05/05/2016,Current (non AEF) Grants to Local Authorities,Decentralisation and Local Growth,GREAT YARMOUTH BC,,,,292697372,2100264109,,Coastal Communities Fund,NR30 2QG,"281,500.00",Yes
Communities & Local Government,DCLG,05/05/2016,Current (non AEF) Grants to Local Authorities,Decentralisation and Local Growth,HASTINGS BOROUGH COUNCIL,,Public Bodies,,,2100264090,,Coastal Communities Fund,TN34 3UY,"87,579.00",Yes
Communities & Local Government,DCLG,05/05/2016,Current (non AEF) Grants to Local Authorities,Decentralisation and Local Growth,MALDON DC,,,,424668663,2100264098,,Coastal Communities Fund,CM9 7DL,"28,606.00",Yes
Communities & Local Government,DCLG,05/05/2016,Current (non AEF) Grants to Local Authorities,Decentralisation and Local Growth,MEDWAY COUNCIL,,,,,2100264105,,Coastal Communities Fund,ME4 4RT,"148,765.00",Yes
Communities & Local Government,DCLG,05/05/2016,Current (non AEF) Grants to Local Authorities,Decentralisation and Local Growth,PORTSMOUTH CITY COUNCIL,,Public Bodies,,211183082,2100264084,,Coastal Communities Fund,PO1 2AR,"142,437.00",Yes
Communities & Local Government,DCLG,05/05/2016,Current (non AEF) Grants to Local Authorities,Decentralisation and Local Growth,REDCAR & CLEVELAND BC,,,,215175196,2100264108,,Coastal Communities Fund,TS6 9AR,"182,456.00",Yes
Communities & Local Government,DCLG,05/05/2016,Current (non AEF) Grants to Local Authorities,Decentralisation and Local Growth,SCARBOROUGH BC,,,,,2100264091,,Coastal Communities Fund,YO11 2HG,"130,000.00",Yes
Communities & Local Government,DCLG,05/05/2016,Current (non AEF) Grants to Local Authorities,Decentralisation and Local Growth,SOUTH GLOUCESTERSHIRE COUNCIL,,Large,,424291482,2100264112,,Coastal Communities Fund,BS15 0DS,"228,536.00",Yes
Communities & Local Government,DCLG,05/05/2016,Current (non AEF) Grants to Local Authorities,Decentralisation and Local Growth,SOUTH RIBBLE BC,,,,,2100264092,,Coastal Communities Fund,PR25 1DH,"14,025.00",Yes
Communities & Local Government,DCLG,05/05/2016,Current (non AEF) Grants to Local Authorities,Decentralisation and Local Growth,SUFFOLK COASTAL DISTRICT COUNCIl,,,,239933203,2100264093,,Coastal Communities Fund,IP12 1AU,"127,383.00",Yes
Communities & Local Government,DCLG,05/05/2016,Current (non AEF) Grants to Local Authorities,Decentralisation and Local Growth,SUNDERLAND CITY COUNCIL,,,,215599312,2100264094,,Coastal Communities Fund,SR2 7DN,"159,420.00",Yes
Communities & Local Government,DCLG,05/05/2016,Current (non AEF) Grants to Local Authorities,Decentralisation and Local Growth,THANET DC,,Public Bodies,,,2100264095,,Coastal Communities Fund,CT8 1XZ,"103,033.00",Yes
Communities & Local Government,DCLG,05/05/2016,Current (non AEF) Grants to Local Authorities,Decentralisation and Local Growth,TORBAY BC,,,,,2100264096,,Coastal Communities Fund,TQ1 3DS,"315,838.00",Yes
Communities & Local Government,DCLG,05/05/2016,Current (non AEF) Grants to Local Authorities,Decentralisation and Local Growth,WEST SOMERSET DC,,,,219052248,2100264113,,Coastal Communities Fund,TA24 4QA,"34,202.00",Yes
Communities & Local Government,DCLG,05/05/2016,Current (non AEF) Grants to Local Authorities,Decentralisation and Local Growth,WORTHING BC,,Public Bodies,,236429734,2100264110,,Coastal Communities Fund,BN11 1HB,"60,506.00",Yes
Communities & Local Government,DCLG,05/05/2016,Current (non AEF) Grants to Local Authorities,Local Government & Public Services,*CUMBRIA COUNTY COUNCIL,,Large,,,2100264120,,Flood Recovery - Business Support to Cumbria,CA6 4SJ,"2,378,000.00",Yes
Communities & Local Government,DCLG,05/05/2016,IT - Service Contracts,Finance,DAISY CORPORATE SERVICES LTD,,Large,,221481042,5106221455,IT Managed / Outsourced Services,3mth ext call charges to 30/9/16,BB9 5SR,800.61,
Communities & Local Government,DCLG,05/05/2016,IT - Service Contracts,Finance,DAISY CORPORATE SERVICES LTD,,Large,,221481042,5106221456,IT Managed / Outsourced Services,3mth ext call charges to 30/9/16,BB9 5SR,238,
Communities & Local Government,DCLG,05/05/2016,IT - Service Contracts,Housing & Planning,DEXTROUS WEB LTD,,Micro,,211267270,5106221598,IT Managed / Outsourced Services,Hosting services,N1 7NG,868.8,
Communities & Local Government,DCLG,05/05/2016,Physical Storage,Finance,IRON MOUNTAIN (UK) LIMITED,,Large,,501338354,5106221585,Warehousing and Storage,Offsite Storage -Tapes 2015,EH54 7DF,426.95,
Communities & Local Government,DCLG,05/05/2016,Professional services,Finance,ARCADIS LLP,,Large,,,5106221582,Construction Service Providers,PAMU Com 002 TFM Service & Comm Manager,N1 9AB,"2,643.82",
Communities & Local Government,DCLG,05/05/2016,Professional services,Local Government & Public Services,GVA GRIMLEY LTD,,Large,,210158990,5106221551,Financial,UKHMF Technical Advisory Services,B1 2JB,"33,600.00",
Communities & Local Government,DCLG,05/05/2016,Steady State Service Provision,Housing & Planning,ST BASILS CENTRE,Yes,Small,,289531105,5106221593,Business Process Outsourcing Services,Secondment,B9 4AX,"11,949.08",
Communities & Local Government,DCLG,05/05/2016,Steady State Service Provision,Housing & Planning,ST BASILS CENTRE,Yes,Small,,289531105,5106221595,Business Process Outsourcing Services,Secondment,B9 4AX,"5,972.89",
Communities & Local Government,DCLG,05/05/2016,Travel and Subsistence Account,"Strategy, Communications and Private Office",DIAL A CAB,,Medium,,225338235,2100264233,Business Travel,Travel April 2016,N1 6AH,293.98,
Communities & Local Government,DCLG,05/05/2016,Travel and Subsistence Account,"Strategy, Communications and Private Office",DIAL A CAB,,Medium,,225338235,2100264233,Business Travel,Travel April 2016,N1 6AH,60.77,
Communities & Local Government,DCLG,06/05/2016,Agency Staff,Decentralisation and Local Growth,BROOK STREET UK LTD,,Large,,364940028,5106221602,Contingent Labour,2 Temporary staff for e-claims,AL1 4JB,648.06,
Communities & Local Government,DCLG,06/05/2016,Agency Staff,Decentralisation and Local Growth,BROOK STREET UK LTD,,Large,,364940028,5106221606,Contingent Labour,BROOK STREET AGENCY STAFF,AL1 4JB,648.72,
Communities & Local Government,DCLG,06/05/2016,Agency Staff,Decentralisation and Local Growth,BROOK STREET UK LTD,,Large,,364940028,5106221608,Contingent Labour,Agency Staff,AL1 4JB,616.5,
Communities & Local Government,DCLG,06/05/2016,Agency Staff,Decentralisation and Local Growth,BROOK STREET UK LTD,,Large,,364940028,5106221612,Contingent Labour,Agency Staff,AL1 4JB,648.06,
Communities & Local Government,DCLG,06/05/2016,Agency Staff,Decentralisation and Local Growth,BROOK STREET UK LTD,,Large,,364940028,5106221615,Contingent Labour,Agency Staff,AL1 4JB,490.94,
Communities & Local Government,DCLG,06/05/2016,Agency Staff,Decentralisation and Local Growth,BROOK STREET UK LTD,,Large,,364940028,5106221617,Contingent Labour,Agency Staff,AL1 4JB,319.24,
Communities & Local Government,DCLG,06/05/2016,Agency Staff,Decentralisation and Local Growth,BROOK STREET UK LTD,,Large,,364940028,5106221621,Contingent Labour,BROOK STREET AGENCY STAFF,AL1 4JB,484.98,
Communities & Local Government,DCLG,06/05/2016,Agency Staff,Decentralisation and Local Growth,CAPITA BUS. SERV. LTD (CON LAB),,Large,,,5106221611,Contingent Labour,Official Travel and Subsistence,DL1 9HB,659.54,
Communities & Local Government,DCLG,06/05/2016,Agency Staff,Finance,BROOK STREET UK LTD,,Large,,364940028,5106221618,Contingent Labour,Support worker for staff interim measure,AL1 4JB,431.17,
Communities & Local Government,DCLG,06/05/2016,Agency Staff,Finance,CAPITA BUS. SERV. LTD (CON LAB),,Large,,,5106221613,Contingent Labour,Interim Manager,DL1 9HB,"3,068.28",
Communities & Local Government,DCLG,06/05/2016,Agency Staff,Local Government & Public Services,CAPITA BUS. SERV. LTD (CON LAB),,Large,,,5106221609,Contingent Labour,Interim Manager,DL1 9HB,"2,200.22",
Communities & Local Government,DCLG,06/05/2016,Agency Staff,Local Government & Public Services,CAPITA BUS. SERV. LTD (CON LAB),,Large,,,5106221610,Contingent Labour,Interim Manager,DL1 9HB,"3,317.64",
Communities & Local Government,DCLG,06/05/2016,Agency Staff,"Strategy, Communications and Private Office",BROOK STREET UK LTD,,Large,,364940028,5106221616,Contingent Labour,Interim Correspondence Staff - May 16,AL1 4JB,626.72,
Communities & Local Government,DCLG,06/05/2016,Current Grants to Non Profit Bodies,Housing & Planning,DESIGN COUNCIL,,Medium,,,5000331386,,Tenant Empowerment Initiatives,EC1V 4AB,"19,200.00",Yes
Communities & Local Government,DCLG,06/05/2016,Current Grants to Non Profit Bodies,Housing & Planning,NAT FED OF TENANT MANAGEMENT ORGS L,Yes,Micro,,,5000331385,,National Federation of TMOs,B15 2SX,"10,400.00",Yes
Communities & Local Government,DCLG,06/05/2016,IT - Service Contracts,Finance,FUJITSU SERVICES LTD,,Large,,423375062,5106221457,IT Managed / Outsourced Services,FY 15/16 NR New Requirements,WA3 6GD,"1,995.60",
Communities & Local Government,DCLG,06/05/2016,IT - Service Contracts,Finance,FUJITSU SERVICES LTD,,Large,,423375062,5106221630,IT Managed / Outsourced Services,"FY15/16 Desktop Charges ""D""Table Charges",WA3 6GD,"-1,865.73",
Communities & Local Government,DCLG,06/05/2016,IT - Service Contracts,Finance,FUJITSU SERVICES LTD,,Large,,423375062,5106221632,IT Managed / Outsourced Services,Telephony Fujitsu (resource)FY16/17,WA3 6GD,"2,817.20",
Communities & Local Government,DCLG,06/05/2016,IT - Service Contracts,Finance,MARKLOGIC CORPORATION,,Large,,,5106221601,IT Managed / Outsourced Services,CPD4109106AS3 Beta Development Charges,CA 94070,"276,112.50",
Communities & Local Government,DCLG,06/05/2016,Physical Storage,"Strategy, Communications and Private Office",WILLIAMS LEA LIMITED,,Large,,393456413,5106221634,Warehousing and Storage,Document Storage,NR3 1PD,"1,406.05",
Communities & Local Government,DCLG,06/05/2016,Professional services,Housing & Planning,VALUATION OFFICE AGENCY,,Public Bodies,,215253886,5106221559,Financial,Financial Checks,W1D 5BU,"1,100.00",
Communities & Local Government,DCLG,06/05/2016,Work In Progress Pre-Cert 40373 Spend,Decentralisation and Local Growth,LANCASTER UNIVERISTY,,,,,7600015377,,Revenue Grant To Be Paid,LA1 4YW,"9,334.78",Yes
Communities & Local Government,DCLG,06/05/2016,Work In Progress Pre-Cert 40373 Spend,Decentralisation and Local Growth,LIVERPOOL CITY COUNCIL,,,,,7600015374,,Revenue Grant Clawback Offset,L2 2DH,"-3,494.28",Yes
Communities & Local Government,DCLG,06/05/2016,Work In Progress Pre-Cert 40373 Spend,Decentralisation and Local Growth,LIVERPOOL CITY COUNCIL,,,,,7600015374,,Revenue Grant To Be Paid,L2 2DH,"11,963.86",Yes
Communities & Local Government,DCLG,06/05/2016,Work In Progress Pre-Cert 40373 Spend,Decentralisation and Local Growth,LIVERPOOL CITY COUNCIL,,,,,7600015375,,Revenue Grant Clawback Offset,L2 2DH,"-18,703.12",Yes
Communities & Local Government,DCLG,06/05/2016,Work In Progress Pre-Cert 40373 Spend,Decentralisation and Local Growth,LIVERPOOL CITY COUNCIL,,,,,7600015375,,Revenue Grant To Be Paid,L2 2DH,"186,465.17",Yes
Communities & Local Government,DCLG,06/05/2016,Work In Progress Pre-Cert 40373 Spend,Decentralisation and Local Growth,MARKETING DERBY,,Micro,,,7600015373,,Revenue Grant To Be Paid,DE24 8QR,"16,292.33",Yes
Communities & Local Government,DCLG,06/05/2016,Work In Progress Pre-Cert 40373 Spend,Decentralisation and Local Growth,WEST MIDLANDS MANFAC CONSORTIUM  LT,,Medium,,,7600015371,,Revenue Grant Clawback Offset,WV10 9TG,"-1,671.89",Yes
Communities & Local Government,DCLG,06/05/2016,Work In Progress Pre-Cert 40373 Spend,Decentralisation and Local Growth,WEST MIDLANDS MANFAC CONSORTIUM  LT,,Medium,,,7600015371,,Revenue Grant To Be Paid,WV10 9TG,"3,652.36",Yes
Communities & Local Government,DCLG,06/05/2016,Work In Progress Pre-Cert 40373 Spend,Decentralisation and Local Growth,WEST MIDLANDS MANFAC CONSORTIUM  LT,,Medium,,,7600015378,,Revenue Grant To Be Paid,WV10 9TG,"17,799.23",Yes
Communities & Local Government,DCLG,06/05/2016,Work In Progress Pre-Cert 40467 Spend,Decentralisation and Local Growth,CAPITAL & CENTRIC DEV (TITHEBARN) L,,Medium,,,7600015376,,Capital Grant Clawback Offset,M15 4PS,"-131,423.79",Yes
Communities & Local Government,DCLG,06/05/2016,Work In Progress Pre-Cert 40467 Spend,Decentralisation and Local Growth,CAPITAL & CENTRIC DEV (TITHEBARN) L,,Medium,,,7600015376,,Capital Grant To Be Paid,M15 4PS,"379,584.51",Yes
Communities & Local Government,DCLG,06/05/2016,Work In Progress Pre-Cert 40467 Spend,Decentralisation and Local Growth,LANCASTER UNIVERISTY,,,,,7600015377,,Capital Grant To Be Paid,LA1 4YW,"548,531.30",Yes
Communities & Local Government,DCLG,06/05/2016,Work In Progress Pre-Cert 40467 Spend,Decentralisation and Local Growth,MIDDLESBROUGH COUNCIL,,,,,7600015372,,Capital Grant Clawback Offset,TS1 9GA,"-34,258.25",Yes
Communities & Local Government,DCLG,06/05/2016,Work In Progress Pre-Cert 40467 Spend,Decentralisation and Local Growth,MIDDLESBROUGH COUNCIL,,,,,7600015372,,Capital Grant To Be Paid,TS1 9GA,"195,103.90",Yes
Communities & Local Government,DCLG,09/05/2016,Advertising,"Strategy, Communications and Private Office",ROYAL MAIL,,Large,,212543784,5106221656,Advertising,RtB Direct Marketing Campaign,S49 1HQ,313.27,
Communities & Local Government,DCLG,09/05/2016,Advertising,"Strategy, Communications and Private Office",TULLO MARSHALL WARREN LTD,,Medium,,,5106221657,Advertising,Right to Buy Marketing Contrsct 15/16,W1F 9NB,"4,813.00",
Communities & Local Government,DCLG,09/05/2016,Cap Grants to Local Authorities (DEL),Housing & Planning,LONDON BOROUGH SOUTHWARK,,,,231379426,2100264264,,Social Mobility Fund 15/16 final payment - 31/2761,SE1 3DY,"240,000.00",Yes
Communities & Local Government,DCLG,09/05/2016,Grant in Aid to NDPBs (non budget),Finance,COMMISSION LOCAL ADMINISTRATION,,,,215271508,2100264201,,DCLG-DEL Budget contribution for the CLAE 16/17,SW1P 4QP,"875,000.00",Yes
Communities & Local Government,DCLG,09/05/2016,Grant in Aid to NDPBs (non budget),Finance,VALUATION TRIBUNAL SERVICE,,,,211218366,2100264297,,GIA TO VTS - FOR NON DOMESTIC RATES APPEALS,E1 8EU,"602,073.00",Yes
Communities & Local Government,DCLG,09/05/2016,Grant in Aid to NDPBs (non budget),Housing & Planning,HOMES & COMMUNITIES AGENCY,,Public Bodies,,215576860,2100264296,,HCA Grant In Aid for 9/5/2016,NE11 0NA,"25,105,295.00",Yes
Communities & Local Government,DCLG,09/05/2016,"IT - PC, Network & Hardware",Finance,SPECIALIST COMPUTER CENTRES PLC,,Large,,227720521,5106221458,ICT Hardware,Spare power chargers for Asus Chromebook,B11 2LE,"3,003.60",
Communities & Local Government,DCLG,09/05/2016,IT Maintenance,Finance,COMPUTACENTER (UK) LTD,,Large,,226023463,5106221653,ICT Services,Sun Storage 2500M2 Storage Domains 16-17,AL10 9TW,485,
Communities & Local Government,DCLG,09/05/2016,Printing,"Strategy, Communications and Private Office",STATIONERY OFFICE LTD,,Large,,779375633,5106221650,Printing Services,Statutory Instruments Print: Non-Vatable,NR3 1PD,165,
Communities & Local Government,DCLG,09/05/2016,Printing,"Strategy, Communications and Private Office",STATIONERY OFFICE LTD,,Large,,779375633,5106221650,Printing Services,Statutory Instruments Print: Vatable,NR3 1PD,130,
Communities & Local Government,DCLG,09/05/2016,Printing,"Strategy, Communications and Private Office",STATIONERY OFFICE LTD,,Large,,779375633,5106221651,Printing Services,Statutory Instruments Print: Non-Vatable,NR3 1PD,165,
Communities & Local Government,DCLG,09/05/2016,Printing,"Strategy, Communications and Private Office",STATIONERY OFFICE LTD,,Large,,779375633,5106221651,Printing Services,Statutory Instruments Print: Vatable,NR3 1PD,130,
Communities & Local Government,DCLG,09/05/2016,Professional services,Finance,ARCADIS LLP,,Large,,,5106221639,Construction Service Providers,PAMU Com 002 TFM Service & Comm Manager,N1 9AB,"11,327.53",
Communities & Local Government,DCLG,09/05/2016,Professional services,Finance,GOVT ACTUARYS DEPARTMENT,,Public Bodies,,217789766,5106221638,Financial,Actuarial Services,EC4A 1AB,"3,334.50",
Communities & Local Government,DCLG,09/05/2016,Publicity,"Strategy, Communications and Private Office",PRESS ASSOCIATION,,Large,,217191704,5106221641,Advertising,PRESS ASSOCIATION (PA) 2014-17,DN14 7YH,"1,339.66",
Communities & Local Government,DCLG,09/05/2016,Steady State Service Provision,Local Government & Public Services,VODAFONE LTD FORMELY CABLE  & WIREL,,Large,,239869688,5106221655,Business Process Outsourcing Services,Managed Internet Access Line ,MK3 5JP,582.58,
Communities & Local Government,DCLG,09/05/2016,Web Services,"Strategy, Communications and Private Office",PULSION TECHNOLOGY LTD,,Small,,,5106221640,ICT Services,Hosting and maintenance  RtB website,G4 9XA,"1,626.00",
Communities & Local Government,DCLG,09/05/2016,Web Services,"Strategy, Communications and Private Office",PULSION TECHNOLOGY LTD,,Small,,,5106221645,ICT Services,HO - Web Hosting & support - Year 1,G4 9XA,"2,677.18",
Communities & Local Government,DCLG,09/05/2016,Work In Progress Pre-Cert 40373 Spend,Decentralisation and Local Growth,STOKE-ON-TRENT CITY COUNCIL,,Large,,,2300002460,,Recovery of payment,ST4 1HP,"-21,363.93",Yes
Communities & Local Government,DCLG,09/05/2016,Work In Progress Pre-Cert 40373 Spend,Decentralisation and Local Growth,STOKE-ON-TRENT CITY COUNCIL,,Large,,,2300002461,,Recovery of payment,ST4 1HP,"-18,783.88",Yes
Communities & Local Government,DCLG,09/05/2016,Work In Progress Pre-Cert 40467 Spend,Decentralisation and Local Growth,ROYAL COURT LIVERPOOL TRUST,,Micro,,,2300002504,,Recovery of payment,L1 1HL,"-5,939.55",Yes
Communities & Local Government,DCLG,09/05/2016,Work In Progress Pre-Cert 40467 Spend,Decentralisation and Local Growth,ROYAL COURT LIVERPOOL TRUST,,Micro,,,2300002504,,Recovery of payment,L1 1HL,"-20,740.28",Yes
Communities & Local Government,DCLG,09/05/2016,Work In Progress Pre-Cert 40467 Spend,Decentralisation and Local Growth,ROYAL COURT LIVERPOOL TRUST,,Micro,,,2300002504,,Reduction of A13 flat rate correction by A16,L1 1HL,"6,525.00",Yes
Communities & Local Government,DCLG,10/05/2016,Advertising,"Strategy, Communications and Private Office",CARAT LTD,,Large,,211589882,5106221404,Advertising,Own Your Home Campaign,NW1 3BF,"156,560.39",
Communities & Local Government,DCLG,10/05/2016,Agency Staff,Finance,INTERQUEST GROUP UK LIMITED,,Large,,423935241,5106221667,Contingent Labour,Increase in funds to April 2016 for SAP Technical Support,EC1N 8UA,"10,638.00",
Communities & Local Government,DCLG,10/05/2016,Current Grants to Non Profit Bodies,Local Government & Public Services,NAT ASSOC LOCAL COUNCILS,,,,580214963,2100264230,,Transparency Fund - parishes,WC1B 3LD,"610,667.88",Yes
Communities & Local Government,DCLG,10/05/2016,IT - Service Contracts,Finance,FUJITSU SERVICES LTD,,Large,,423375062,5106221672,IT Managed / Outsourced Services,"FY15/16 Desktop Charges ""D""Table Charges",WA3 6GD,"1,865.73",
Communities & Local Government,DCLG,10/05/2016,IT - Service Contracts,Finance,FUJITSU SERVICES LTD,,Large,,423375062,5106221673,IT Managed / Outsourced Services,"FY15/16 Desktop Charges ""D""Table Charges",WA3 6GD,"1,549.08",
Communities & Local Government,DCLG,10/05/2016,IT - Service Contracts,Finance,FUJITSU SERVICES LTD,,Large,,423375062,5106221676,IT Managed / Outsourced Services,"FY15/16 Desktop Charges ""D""Table Charges",WA3 6GD,"7,905.78",
Communities & Local Government,DCLG,10/05/2016,IT - Service Contracts,Finance,FUJITSU SERVICES LTD,,Large,,423375062,5106221677,IT Managed / Outsourced Services,"FY15/16 Storage Charges (""S""TableCharge)",WA3 6GD,"20,922.52",
Communities & Local Government,DCLG,10/05/2016,IT - Service Contracts,Finance,FUJITSU SERVICES LTD,,Large,,423375062,5106221678,IT Managed / Outsourced Services,"SIAM Charges (""M""Table Charges)",WA3 6GD,"43,460.16",
Communities & Local Government,DCLG,10/05/2016,IT - Service Contracts,Finance,FUJITSU SERVICES LTD,,Large,,423375062,5106221679,IT Managed / Outsourced Services,"FY15/16WAN Management Charges(""W""Tables)",WA3 6GD,"2,645.18",
Communities & Local Government,DCLG,10/05/2016,IT - Service Contracts,Finance,FUJITSU SERVICES LTD,,Large,,423375062,5106221680,IT Managed / Outsourced Services,"FY15/16 Desktop Charges ""D""Table Charges",WA3 6GD,"46,030.47",
Communities & Local Government,DCLG,10/05/2016,IT - Service Contracts,Finance,FUJITSU SERVICES LTD,,Large,,423375062,5106221681,IT Managed / Outsourced Services,"FY15/16 Desktop Charges ""D""Table Charges",WA3 6GD,"5,635.68",
Communities & Local Government,DCLG,10/05/2016,IT - Service Contracts,Finance,FUJITSU SERVICES LTD,,Large,,423375062,5106221682,IT Managed / Outsourced Services,"FY15/16 LOBA Charges""LoBA MatrixCharges""",WA3 6GD,"22,379.88",
Communities & Local Government,DCLG,10/05/2016,IT - Service Contracts,Finance,FUJITSU SERVICES LTD,,Large,,423375062,5106221683,IT Managed / Outsourced Services,"FY15/16 Desktop Charges ""D""Table Charges",WA3 6GD,312.32,
Communities & Local Government,DCLG,10/05/2016,IT - Service Contracts,Finance,FUJITSU SERVICES LTD,,Large,,423375062,5106221684,IT Managed / Outsourced Services,"FY15/16 DRP Charges ""DRP1Table Charges",WA3 6GD,631.04,
Communities & Local Government,DCLG,10/05/2016,IT - Service Contracts,Finance,FUJITSU SERVICES LTD,,Large,,423375062,5106221687,IT Managed / Outsourced Services,FY 15/16 NR New Requirements,WA3 6GD,"1,575.00",
Communities & Local Government,DCLG,10/05/2016,IT - Service Contracts,Finance,FUJITSU SERVICES LTD,,Large,,423375062,5106221689,IT Managed / Outsourced Services,"FY15/16 Desktop Charges ""D""Table Charges",WA3 6GD,"184,652.42",
Communities & Local Government,DCLG,10/05/2016,IT - Service Contracts,Finance,FUJITSU SERVICES LTD,,Large,,423375062,5106221690,IT Managed / Outsourced Services,"FY15/16 Desktop Charges ""D""Table Charges",WA3 6GD,"1,500.00",
Communities & Local Government,DCLG,10/05/2016,IT - Service Contracts,Finance,FUJITSU SERVICES LTD,,Large,,423375062,5106221696,IT Managed / Outsourced Services,CNFJDCLG017 Y3 Horizon Service Charges,WA3 6GD,"7,787.81",
Communities & Local Government,DCLG,10/05/2016,IT - Service Contracts,Finance,INFO-ASSURE LTD,,Small,,,5106221691,IT Managed / Outsourced Services,Telephony Project Works,GU14 0LX,"2,124.40",
Communities & Local Government,DCLG,10/05/2016,IT - Software Maintenance,Finance,KAIZEN ASSOCIATES LTD,,Micro,,217482430,5106221583,IT Managed / Outsourced Services,SAP Application Support 2015-17,SE1 6SW,"2,079.88",
Communities & Local Government,DCLG,10/05/2016,Recruitment,Finance,H M TREASURY,,Public Bodies,,233590996,5106221669,Business Process Outsourcing Services,SCS Recruitment,NR1 0HS,"12,665.42",
Communities & Local Government,DCLG,10/05/2016,Research,Local Government & Public Services,ECONOMIC & SOCIAL RESEARCH CNCL,,Public Bodies,,239878051,5106221665,Research,Research - Local Economic Growth,SN2 1UJ,"125,000.00",
Communities & Local Government,DCLG,10/05/2016,Research,Local Government & Public Services,NATIONAL CENTRE FOR SOCIAL RESEARCH,,Large,,424047426,5106221642,Research,Research - English Housing Survey,EC1V 0AX,"8,795.49",
Communities & Local Government,DCLG,10/05/2016,Research,Local Government & Public Services,NATIONAL CENTRE FOR SOCIAL RESEARCH,,Large,,424047426,5106221685,Research,Research - English Housing Survey,EC1V 0AX,"8,569.67",
Communities & Local Government,DCLG,10/05/2016,Research,Local Government & Public Services,NATIONAL CENTRE FOR SOCIAL RESEARCH,,Large,,424047426,5106221688,Research,Research - English Housing Survey,EC1V 0AX,"43,758.01",
Communities & Local Government,DCLG,10/05/2016,Steady State Service Provision,Finance,DEPARTMENT FOR TRANSPORT (RAIL),,Public Bodies,,215591516,5106221668,Business Process Outsourcing Services,Sparta 25% funding of General Secretary,SW1P 4DR,"8,329.13",
Communities & Local Government,DCLG,10/05/2016,Steady State Service Provision,Finance,MY CIVIL SERVICE PENSION,,,,,5106221671,Business Process Outsourcing Services,Pensions transfer,NE98 1YX,"43,529.17",
Communities & Local Government,DCLG,10/05/2016,Steady State Service Provision,Local Government & Public Services,LOCALITY,,Medium,,347998312,5106221484,Business Process Outsourcing Services,Lot 5: Community Assets,N1 6DR,"189,312.38",
Communities & Local Government,DCLG,10/05/2016,Training,Finance,CAPITA BUS. SERV. LTD (CSL),,Large,,215580993,5106221664,Development and Training,Pre retirement Course,DL1 9HB,"2,050.00",
Communities & Local Government,DCLG,10/05/2016,Work In Progress Pre-Cert 40373 Spend,Decentralisation and Local Growth,DERBY CITY COUNCIL,,Large,,,7600015380,,Revenue Grant To Be Paid,DE1 2FE,"3,125.00",Yes
Communities & Local Government,DCLG,10/05/2016,Work In Progress Pre-Cert 40373 Spend,Decentralisation and Local Growth,LEICESTER UNIVERSITY,,Large,,,7600015379,,Revenue Grant To Be Paid,LE1 7RH,"31,295.70",Yes
Communities & Local Government,DCLG,10/05/2016,Work In Progress Pre-Cert 40467 Spend,Decentralisation and Local Growth,DERBY CITY COUNCIL,,Large,,,7600015380,,Capital Grant To Be Paid,DE1 2FE,"196,470.87",Yes
Communities & Local Government,DCLG,11/05/2016,Advertising,"Strategy, Communications and Private Office",CARAT LTD,,Large,,211589882,5106221581,Advertising,FIRE KILLS ASBOF 15-16,NW1 3BF,119.67,
Communities & Local Government,DCLG,11/05/2016,Advertising,"Strategy, Communications and Private Office",CARAT LTD,,Large,,211589882,5106221581,Advertising,Fire Kills Media Buying 15-16,NW1 3BF,"150,301.48",
Communities & Local Government,DCLG,11/05/2016,Cap Grants to Local Authorities (DEL),Housing & Planning,BABERGH DC,,,,232618405,2100264262,,Social Mobility Fund 15/16 final payment - 31/2761,IP7 6SJ,"20,000.00",Yes
Communities & Local Government,DCLG,11/05/2016,Cap Grants to Local Authorities (DEL),Housing & Planning,HARLOW DISTRICT COUNCIL,,,,232914382,2100264263,,Social Mobility Fund 15/16 final payment - 31/2761,CM20 1HJ,"60,000.00",Yes
Communities & Local Government,DCLG,11/05/2016,Cap Grants to Local Authorities (DEL),Housing & Planning,LB ISLINGTON,,Large,,225716729,2100264252,,Social Mobility Fund 15/16 final payment - 31/2761,N1 1XR,"120,000.00",Yes
Communities & Local Government,DCLG,11/05/2016,Cap Grants to Local Authorities (DEL),Housing & Planning,LB SUTTON,,,,,2100264254,,Social Mobility Fund 15/16 final payment - 31/2761,SM1 1EA,"30,000.00",Yes
Communities & Local Government,DCLG,11/05/2016,Cap Grants to Local Authorities (DEL),Housing & Planning,LB WANDSWORTH,,Public Bodies,,,2100264255,,Social Mobility Fund 15/16 final payment - 31/2761,SW18 2PU,"330,000.00",Yes
Communities & Local Government,DCLG,11/05/2016,Cap Grants to Local Authorities (DEL),Housing & Planning,LONDON BOROUGH GREENWICH,,,,233026868,2100264251,,Social Mobility Fund 15/16 final payment - 31/2761,SE18 6EU,"60,000.00",Yes
Communities & Local Government,DCLG,11/05/2016,Cap Grants to Local Authorities (DEL),Housing & Planning,LONDON BOROUGH LEWISHAM,,Large,,235653300,2100264253,,Social Mobility Fund 15/16 final payment - 31/2761,SE6 4RU,"120,000.00",Yes
Communities & Local Government,DCLG,11/05/2016,Cap Grants to Local Authorities (DEL),Housing & Planning,LONDON BOROUGH OF BARNET,,Large,,211049507,2100264248,,Social Mobility Fund 15/16 final payment - 31/2761,NW4 4BG,"180,000.00",Yes
Communities & Local Government,DCLG,11/05/2016,Cap Grants to Local Authorities (DEL),Housing & Planning,LONDON BOROUGH OF CAMDEN,,,,211651836,2100264249,,Social Mobility Fund 15/16 final payment - 31/2761,WC1H 8NG,"150,000.00",Yes
Communities & Local Government,DCLG,11/05/2016,Cap Grants to Local Authorities (DEL),Housing & Planning,LONDON BOROUGH OF CROYDON,,Large,,225327089,2100264250,,Social Mobility Fund 15/16 final payment - 31/2761,CR9 3JS,"60,000.00",Yes
Communities & Local Government,DCLG,11/05/2016,Cap Grants to Local Authorities (DEL),Housing & Planning,NOTTINGHAM CITY COUNCIL,,Large,,,2100264257,,Social Mobility Fund 15/16 final payment - 31/2761,NG2 3NG,"60,000.00",Yes
Communities & Local Government,DCLG,11/05/2016,Cap Grants to Local Authorities (DEL),Housing & Planning,SHEPWAY DC,,,,235550878,2100264258,,Social Mobility Fund 15/16 final payment - 31/2761,CT20 2QY,"140,000.00",Yes
Communities & Local Government,DCLG,11/05/2016,Cap Grants to Local Authorities (DEL),Housing & Planning,TAUNTON DEANE BC,,Large,,236185294,2100264259,,Social Mobility Fund 15/16 final payment - 31/2761,TA1 9GS,"120,000.00",Yes
Communities & Local Government,DCLG,11/05/2016,Cap Grants to Local Authorities (DEL),Housing & Planning,THURROCK DC,,,,,2100264265,,Social Mobility Fund 15/16 final payment - 31/2761,RM17 6LT,"10,000.00",Yes
Communities & Local Government,DCLG,11/05/2016,Cap Grants to Local Authorities (DEL),Housing & Planning,WEST LANCASHIRE BC,,,,232240978,2100264260,,Social Mobility Fund 15/16 final payment - 31/2761,L39 2DF,"40,000.00",Yes
Communities & Local Government,DCLG,11/05/2016,Cap Grants to Local Authorities (DEL),Housing & Planning,WESTMINSTER CITY COUNCIL,,Public Bodies,,229845706,2100264256,,Social Mobility Fund 15/16 final payment - 31/2761,SW1E 6QY,"25,000.00",Yes
Communities & Local Government,DCLG,11/05/2016,Cap Grants to Local Authorities (DEL),Housing & Planning,WOLVERHAMPTON CITY COUNCIL,,,,,2100264261,,Social Mobility Fund 15/16 final payment - 31/2761,WV1 3AU,"180,000.00",Yes
Communities & Local Government,DCLG,11/05/2016,Current Grants to Non Profit Bodies,Housing & Planning,GROUNDWORK UK,Yes,,,739193758,2300002497,,Groundwork Recovery of Underspend,B1 2RR,"-1,209,530.68",Yes
Communities & Local Government,DCLG,11/05/2016,Current Grants to Non Profit Bodies,Housing & Planning,GROUNDWORK UK,Yes,,,739193758,2300002497,,Groundwork Recovery of Underspend,B1 2RR,"-328,028.00",Yes
Communities & Local Government,DCLG,11/05/2016,Current Grants to Non Profit Bodies,Local Government & Public Services,HEBDEN BRIDGE NURSERY ACTION GROUP,,,,,2100264351,,Storm Desmond Eva Charity Match Funding,HX7 8AD,"3,050.00",Yes
Communities & Local Government,DCLG,11/05/2016,Current Grants to Non Profit Bodies,Local Government & Public Services,HOWARD WILKINSON,,Micro,,,2100264352,,Storm Desmond Eva Charity Match Funding,OL16 5BN,"1,434.00",Yes
Communities & Local Government,DCLG,11/05/2016,IT - Service Contracts,Finance,FUJITSU SERVICES LTD,,Large,,423375062,5106221674,IT Managed / Outsourced Services,"FY15/16 DRP Charges ""DRP1Table Charges",WA3 6GD,"17,269.02",
Communities & Local Government,DCLG,11/05/2016,Online Database Information Retrieval,Finance,DOW JONES REUTERS BUS INTERACT,,Large,,221036630,5106221701,ICT Services,Subscription 2016-17,E1W 1AZ,"1,025.34",
Communities & Local Government,DCLG,11/05/2016,Physical Storage,Finance,TNT UK LIMITED,,Large,,,5106221707,Warehousing and Storage,Offsite Records Storage FYR 16/17,BL10 9GR,304.6,
Communities & Local Government,DCLG,11/05/2016,Physical Storage,Finance,TNT UK LIMITED,,Large,,,5106221708,Warehousing and Storage,Offsite Records Storage FYR 16/17,BL10 9GR,"1,533.67",
Communities & Local Government,DCLG,11/05/2016,Physical Storage,Finance,TNT UK LIMITED,,Large,,,5106221709,Warehousing and Storage,Offsite Records Storage FYR 16/17,BL10 9GR,"3,991.65",
Communities & Local Government,DCLG,11/05/2016,Physical Storage,Finance,TNT UK LIMITED,,Large,,,5106221716,Warehousing and Storage,Offsite Records Storage FYR 16/17,BL10 9GR,876.12,
Communities & Local Government,DCLG,11/05/2016,Physical Storage,Finance,TNT UK LIMITED,,Large,,,5106221718,Warehousing and Storage,Offsite Records Storage FYR 16/17,BL10 9GR,"26,095.68",
Communities & Local Government,DCLG,11/05/2016,Research,Local Government & Public Services,BARBOUR ABI,,Large,,210094469,5106221706,Research,Research - Starter Homes Monitoring,CH65 9HQ,"20,000.00",
Communities & Local Government,DCLG,11/05/2016,Software Licences,Finance,BYTES SOFTWARE SERVICES LTD,,Medium,,225273754,5106221705,Software,Jaws 1 user licence upgrade V15 to V17,KT22 7TW,451.12,
Communities & Local Government,DCLG,11/05/2016,Steady State Service Provision,Finance,ALLPAY LIMITED,,Medium,,738359918,5106221703,Business Process Outsourcing Services,1Monthly Management Fee Payments,HR1 3SE,500,
Communities & Local Government,DCLG,11/05/2016,Steady State Service Provision,Finance,ALLPAY LIMITED,,Medium,,738359918,5106221703,Business Process Outsourcing Services,DC/DC Transaction Charges,HR1 3SE,317.4,
Communities & Local Government,DCLG,11/05/2016,Work In Progress Pre-Cert 40373 Spend,Decentralisation and Local Growth,MARKETING BIRMINGHAM LIMITED,,Medium,,,7600015381,,Revenue Grant Clawback Offset,B1 2ND,"-250,199.50",Yes
Communities & Local Government,DCLG,11/05/2016,Work In Progress Pre-Cert 40373 Spend,Decentralisation and Local Growth,MARKETING BIRMINGHAM LIMITED,,Medium,,,7600015381,,Revenue Grant To Be Paid,B1 2ND,"299,445.57",Yes
Communities & Local Government,DCLG,11/05/2016,Work In Progress Pre-Cert 40467 Spend,Decentralisation and Local Growth,BIRMINGHAM CITY COUNCIL (NOT RATES),,Large,,,2300002474,,Recovery of payment,B1 1BB,"-515,516.48",Yes
Communities & Local Government,DCLG,11/05/2016,Work In Progress Pre-Cert 40467 Spend,Decentralisation and Local Growth,FINANCE YORKSHIRE LIMITED,,,,,7600015382,,Capital Grant To Be Paid,S75 3TZ,"47,593.16",Yes
Communities & Local Government,DCLG,11/05/2016,Work In Progress Pre-Cert 40467 Spend,Decentralisation and Local Growth,FINANCE YORKSHIRE LIMITED,,,,,7600015383,,Capital Grant To Be Paid,S75 3TZ,"28,428.50",Yes
Communities & Local Government,DCLG,11/05/2016,Work In Progress Pre-Cert 40467 Spend,Decentralisation and Local Growth,MARKETING BIRMINGHAM LIMITED,,Medium,,,7600015381,,Capital Grant To Be Paid,B1 2ND,"60,698.41",Yes
Communities & Local Government,DCLG,12/05/2016,Current (non AEF) Grants to Local Authorities,Local Government & Public Services,ADUR DC,,,,227472891,5000331944,,Business Rates Flood Relief Grant,BN11 1HA,"1,435.00",Yes
Communities & Local Government,DCLG,12/05/2016,Current (non AEF) Grants to Local Authorities,Local Government & Public Services,ARUN DC,,,,211217668,5000331876,,Business Rates Flood Relief Grant,BN17 5LF,"3,603.00",Yes
Communities & Local Government,DCLG,12/05/2016,Current (non AEF) Grants to Local Authorities,Local Government & Public Services,ASHFORD BC,,,,229467071,5000331877,,Business Rates Flood Relief Grant,TN23 1PL,"8,498.00",Yes
Communities & Local Government,DCLG,12/05/2016,Current (non AEF) Grants to Local Authorities,Local Government & Public Services,BABERGH DC,,,,232618405,5000331878,,Business Rates Flood Relief Grant,IP7 6SJ,658,Yes
Communities & Local Government,DCLG,12/05/2016,Current (non AEF) Grants to Local Authorities,Local Government & Public Services,BARKING & DAGENHAM LB (HSG),,,,217142293,5000331879,,Business Rates Flood Relief Grant,RM10 7BY,"1,224.00",Yes
Communities & Local Government,DCLG,12/05/2016,Current (non AEF) Grants to Local Authorities,Local Government & Public Services,BASINGSTOKE & DEANE BC,,,,228328506,5000331945,,Business Rates Flood Relief Grant,RG21 2AJ,699,Yes
Communities & Local Government,DCLG,12/05/2016,Current (non AEF) Grants to Local Authorities,Local Government & Public Services,BATH & NE SOMERSET DC (HSG),,,,214502499,5000331880,,Business Rates Flood Relief Grant,BA1 5AW,"9,410.00",Yes
Communities & Local Government,DCLG,12/05/2016,Current (non AEF) Grants to Local Authorities,Local Government & Public Services,BLACKPOOL BC,,,,,5000331946,,Business Rates Flood Relief Grant,FY1 1NA,"10,947.00",Yes
Communities & Local Government,DCLG,12/05/2016,Current (non AEF) Grants to Local Authorities,Local Government & Public Services,BOURNEMOUTH DC,,,,,5000331947,,Business Rates Flood Relief Grant,BH2 6EB,903,Yes
Communities & Local Government,DCLG,12/05/2016,Current (non AEF) Grants to Local Authorities,Local Government & Public Services,BRAINTREE DC,,,,226941730,5000331882,,Business Rates Flood Relief Grant,CM7 6HB,"20,845.00",Yes
Communities & Local Government,DCLG,12/05/2016,Current (non AEF) Grants to Local Authorities,Local Government & Public Services,BRIGHTON & HOVE CITY COUNCIL,,Large,,228455218,5000331948,,Business Rates Flood Relief Grant,BN3 2LS,"1,775.00",Yes
Communities & Local Government,DCLG,12/05/2016,Current (non AEF) Grants to Local Authorities,Local Government & Public Services,BROMLEY LB,,,,211331954,5000331949,,Business Rates Flood Relief Grant,BR1 3UH,"10,218.00",Yes
Communities & Local Government,DCLG,12/05/2016,Current (non AEF) Grants to Local Authorities,Local Government & Public Services,BUCKINGHAMSHIRE CC,,,,293750923,5000331950,,Business Rates Flood Relief Grant,HP20 1UD,"8,314.00",Yes
Communities & Local Government,DCLG,12/05/2016,Current (non AEF) Grants to Local Authorities,Local Government & Public Services,BUCKS & MILTON KEYNES FIRE AUTH,,Public Bodies,,423679463,5000332001,,Business Rates Flood Relief Grant,HP20 1BD,923,Yes
Communities & Local Government,DCLG,12/05/2016,Current (non AEF) Grants to Local Authorities,Local Government & Public Services,CHICHESTER DC,,,,739800998,5000331883,,Business Rates Flood Relief Grant,PO19 1TY,"7,704.00",Yes
Communities & Local Government,DCLG,12/05/2016,Current (non AEF) Grants to Local Authorities,Local Government & Public Services,CHILTERN DC (HSG),,,,,5000331884,,Business Rates Flood Relief Grant,HP6 5AW,"30,619.00",Yes
Communities & Local Government,DCLG,12/05/2016,Current (non AEF) Grants to Local Authorities,Local Government & Public Services,CHRISTCHURCH BC (HSG),,,,227415213,5000331885,,Business Rates Flood Relief Grant,BH23 1AZ,"7,966.00",Yes
Communities & Local Government,DCLG,12/05/2016,Current (non AEF) Grants to Local Authorities,Local Government & Public Services,CLEVELAND FIRE AUTHORITY,,Medium,,424872778,5000332004,,Business Rates Flood Relief Grant,TS25 5TB,"3,267.00",Yes
Communities & Local Government,DCLG,12/05/2016,Current (non AEF) Grants to Local Authorities,Local Government & Public Services,CORNWALL UNITARY AUTHORITY,,,,211334404,5000332019,,Business Rates Flood Relief Grant,TR1 3AY,"113,516.00",Yes
Communities & Local Government,DCLG,12/05/2016,Current (non AEF) Grants to Local Authorities,Local Government & Public Services,COTSWOLD DC,,,,232462085,5000331886,,Business Rates Flood Relief Grant,GL7 1PX,"2,231.00",Yes
Communities & Local Government,DCLG,12/05/2016,Current (non AEF) Grants to Local Authorities,Local Government & Public Services,CUMBRIA COUNTY CNCL,,,,211316542,5000331951,,Business Rates Flood Relief Grant,CA3 8NA,347,Yes
Communities & Local Government,DCLG,12/05/2016,Current (non AEF) Grants to Local Authorities,Local Government & Public Services,DAVENTRY DC,,,,239859333,5000331887,,Business Rates Flood Relief Grant,NN11 5AF,"2,554.00",Yes
Communities & Local Government,DCLG,12/05/2016,Current (non AEF) Grants to Local Authorities,Local Government & Public Services,DERBYSHIRE COUNTYCOUNCIL,,,,232152967,5000331953,,Business Rates Flood Relief Grant,DE4 3AG,"2,897.00",Yes
Communities & Local Government,DCLG,12/05/2016,Current (non AEF) Grants to Local Authorities,Local Government & Public Services,DERBYSHIRE FIRE AND RESCUE SERVICE,,,,424872935,5000332011,,Business Rates Flood Relief Grant,DE23 6EH,322,Yes
Communities & Local Government,DCLG,12/05/2016,Current (non AEF) Grants to Local Authorities,Local Government & Public Services,DEVON & SOMERSET FIRE & RESCUE SERV,,Large,,424872976,5000332008,,Business Rates Flood Relief Grant,EX3 0NW,"2,072.00",Yes
Communities & Local Government,DCLG,12/05/2016,Current (non AEF) Grants to Local Authorities,Local Government & Public Services,DEVON COUNTY CNCL,,,,213754018,5000331954,,Business Rates Flood Relief Grant,EX2 4QJ,"16,915.00",Yes
Communities & Local Government,DCLG,12/05/2016,Current (non AEF) Grants to Local Authorities,Local Government & Public Services,DORSET & WILTSHIRE FIRE & RESCUE AU,,Large,,,5000332021,,Business Rates Flood Relief Grant,SP1 3NR,"1,379.00",Yes
Communities & Local Government,DCLG,12/05/2016,Current (non AEF) Grants to Local Authorities,Local Government & Public Services,DORSET COUNTY CNCL,,,,225431279,5000331955,,Business Rates Flood Relief Grant,DT1 1XJ,"10,500.00",Yes
Communities & Local Government,DCLG,12/05/2016,Current (non AEF) Grants to Local Authorities,Local Government & Public Services,DOVER DC,,,,,5000331888,,Business Rates Flood Relief Grant,CT16 3PD,"8,633.00",Yes
Communities & Local Government,DCLG,12/05/2016,Current (non AEF) Grants to Local Authorities,Local Government & Public Services,EAST DEVON DC,,,,,5000331889,,Business Rates Flood Relief Grant,EX10 8HL,"6,459.00",Yes
Communities & Local Government,DCLG,12/05/2016,Current (non AEF) Grants to Local Authorities,Local Government & Public Services,EAST DORSET DC,,,,228470456,5000331956,,Business Rates Flood Relief Grant,BH21 4HN,"30,586.00",Yes
Communities & Local Government,DCLG,12/05/2016,Current (non AEF) Grants to Local Authorities,Local Government & Public Services,EAST HERTFORDSHIRE DC,,,,236176954,5000331891,,Business Rates Flood Relief Grant,SG13 8EQ,"8,784.00",Yes
Communities & Local Government,DCLG,12/05/2016,Current (non AEF) Grants to Local Authorities,Local Government & Public Services,EAST LINDSEY DC,,,,,5000331892,,Business Rates Flood Relief Grant,LN11 8UP,"10,045.00",Yes
Communities & Local Government,DCLG,12/05/2016,Current (non AEF) Grants to Local Authorities,Local Government & Public Services,EPPING FOREST DC,,,,775876360,5000331958,,Business Rates Flood Relief Grant,CM16 4BZ,"4,891.00",Yes
Communities & Local Government,DCLG,12/05/2016,Current (non AEF) Grants to Local Authorities,Local Government & Public Services,ESSEX COUNTY CNCL,,,,233572986,5000331959,,Business Rates Flood Relief Grant,CM1 1JZ,"7,606.00",Yes
Communities & Local Government,DCLG,12/05/2016,Current (non AEF) Grants to Local Authorities,Local Government & Public Services,ESSEX FIRE AUTHORITY,,Large,,424873099,5000332002,,Business Rates Flood Relief Grant,CM8 3HB,957,Yes
Communities & Local Government,DCLG,12/05/2016,Current (non AEF) Grants to Local Authorities,Local Government & Public Services,EXETER CITY COUNCIL,,,,,5000331960,,Business Rates Flood Relief Grant,EX1 1JW,"45,309.00",Yes
Communities & Local Government,DCLG,12/05/2016,Current (non AEF) Grants to Local Authorities,Local Government & Public Services,FAREHAM BC,,,,228474144,5000331894,,Business Rates Flood Relief Grant,PO16 7PU,"17,935.00",Yes
Communities & Local Government,DCLG,12/05/2016,Current (non AEF) Grants to Local Authorities,Local Government & Public Services,GATESHEAD COUNCIL,,,,216116041,5000331961,,Business Rates Flood Relief Grant,NE8 1HH,"6,326.00",Yes
Communities & Local Government,DCLG,12/05/2016,Current (non AEF) Grants to Local Authorities,Local Government & Public Services,GLOUCESTERSHIRE COUNTY CNCL,,,,211272067,5000331962,,Business Rates Flood Relief Grant,GL1 2TG,566,Yes
Communities & Local Government,DCLG,12/05/2016,Current (non AEF) Grants to Local Authorities,Local Government & Public Services,GOSPORT BOROUGH COUNCIL,,,,239825078,5000331963,,Business Rates Flood Relief Grant,PO12 1ED,528,Yes
Communities & Local Government,DCLG,12/05/2016,Current (non AEF) Grants to Local Authorities,Local Government & Public Services,GREATER LONDON AUTHORITY,,,,,5000332020,,Business Rates Flood Relief Grant,SE10 1AJ,"6,461.00",Yes
Communities & Local Government,DCLG,12/05/2016,Current (non AEF) Grants to Local Authorities,Local Government & Public Services,GUILDFORD BC,,,,236663720,5000331896,,Business Rates Flood Relief Grant,GU2 5BB,"110,031.00",Yes
Communities & Local Government,DCLG,12/05/2016,Current (non AEF) Grants to Local Authorities,Local Government & Public Services,HAMPSHIRE COUNTY COUNCIL,,,,211325832,5000331964,,Business Rates Flood Relief Grant,SO23 8UB,"12,272.00",Yes
Communities & Local Government,DCLG,12/05/2016,Current (non AEF) Grants to Local Authorities,Local Government & Public Services,HAMPSHIRE FIRE & RESCUE AUTHORITY,,Large,,,5000332012,,Business Rates Flood Relief Grant,SO23 8UB,"1,362.00",Yes
Communities & Local Government,DCLG,12/05/2016,Current (non AEF) Grants to Local Authorities,Local Government & Public Services,HAVANT BC,,,,211047543,5000331965,,Business Rates Flood Relief Grant,PO9 2AX,"9,885.00",Yes
Communities & Local Government,DCLG,12/05/2016,Current (non AEF) Grants to Local Authorities,Local Government & Public Services,HEREFORD WORCESTER FIRE & RESCUE,,Large,,236425484,5000332009,,Business Rates Flood Relief Grant,WR5 1JR,719,Yes
Communities & Local Government,DCLG,12/05/2016,Current (non AEF) Grants to Local Authorities,Local Government & Public Services,HEREFORDSHIRE COUNCIL,,,,,5000331897,,Business Rates Flood Relief Grant,HR4 0XH,"13,310.00",Yes
Communities & Local Government,DCLG,12/05/2016,Current (non AEF) Grants to Local Authorities,Local Government & Public Services,HERTFORDSHIRE COUNTY CNCL,,,,210659897,5000331966,,Business Rates Flood Relief Grant,SG13 8DQ,"2,456.00",Yes
Communities & Local Government,DCLG,12/05/2016,Current (non AEF) Grants to Local Authorities,Local Government & Public Services,HORSHAM DC,,,,229776588,5000331898,,Business Rates Flood Relief Grant,RH12 1RL,"19,432.00",Yes
Communities & Local Government,DCLG,12/05/2016,Current (non AEF) Grants to Local Authorities,Local Government & Public Services,HULL CITY COUNCIL,,,,217460984,5000331970,,Business Rates Flood Relief Grant,HU1 2AA,"122,239.00",Yes
Communities & Local Government,DCLG,12/05/2016,Current (non AEF) Grants to Local Authorities,Local Government & Public Services,HUMBERSIDE FIRE & RESCUE SERVICE,,,,229832563,5000332005,,Business Rates Flood Relief Grant,HU4 7BB,"9,411.00",Yes
Communities & Local Government,DCLG,12/05/2016,Current (non AEF) Grants to Local Authorities,Local Government & Public Services,ISLE OF WIGHT CNCL,,,,236431730,5000331967,,Business Rates Flood Relief Grant,PO30 1UD,"4,332.00",Yes
Communities & Local Government,DCLG,12/05/2016,Current (non AEF) Grants to Local Authorities,Local Government & Public Services,ISLES OF SCILLY COUNCIL,,,,214146040,5000331968,,Business Rates Flood Relief Grant,TR21 0LW,"7,311.00",Yes
Communities & Local Government,DCLG,12/05/2016,Current (non AEF) Grants to Local Authorities,Local Government & Public Services,KENT & MEDWAY TOWNS FIRE AUTHORITY,,Large,,423679414,5000332006,,Business Rates Flood Relief Grant,ME15 6XB,"2,894.00",Yes
Communities & Local Government,DCLG,12/05/2016,Current (non AEF) Grants to Local Authorities,Local Government & Public Services,KENT COUNTY CNCL,,,,211334420,5000331969,,Business Rates Flood Relief Grant,ME14 1RF,"26,049.00",Yes
Communities & Local Government,DCLG,12/05/2016,Current (non AEF) Grants to Local Authorities,Local Government & Public Services,KINGS LYNN & WEST NORFOLK BC,,,,236417671,5000331899,,Business Rates Flood Relief Grant,PE30 1EX,"6,509.00",Yes
Communities & Local Government,DCLG,12/05/2016,Current (non AEF) Grants to Local Authorities,Local Government & Public Services,LINCOLNSHIRE COUNTY COUNCIL,,,,,5000331972,,Business Rates Flood Relief Grant,LN2 1DY,"2,536.00",Yes
Communities & Local Government,DCLG,12/05/2016,Current (non AEF) Grants to Local Authorities,Local Government & Public Services,MAIDSTONE BC,,Public Bodies,,293004214,5000331900,,Business Rates Flood Relief Grant,ME15 6JQ,"58,872.00",Yes
Communities & Local Government,DCLG,12/05/2016,Current (non AEF) Grants to Local Authorities,Local Government & Public Services,MALVERN HILLS DC,,,,227470424,5000331973,,Business Rates Flood Relief Grant,WR14 3AF,"11,188.00",Yes
Communities & Local Government,DCLG,12/05/2016,Current (non AEF) Grants to Local Authorities,Local Government & Public Services,MERSEYSIDE FIRE & RESCUE SERVICE,,,,210372331,5000331999,,Business Rates Flood Relief Grant,L30 4YD,"6,214.00",Yes
Communities & Local Government,DCLG,12/05/2016,Current (non AEF) Grants to Local Authorities,Local Government & Public Services,MID SUSSEX DC,,,,236675989,5000331901,,Business Rates Flood Relief Grant,RH16 1SS,"1,410.00",Yes
Communities & Local Government,DCLG,12/05/2016,Current (non AEF) Grants to Local Authorities,Local Government & Public Services,MOLE VALLEY DC,,,,225385772,5000331902,,Business Rates Flood Relief Grant,RH4 1SJ,"46,508.00",Yes
Communities & Local Government,DCLG,12/05/2016,Current (non AEF) Grants to Local Authorities,Local Government & Public Services,NEW FOREST DC,,Public Bodies,,,5000331903,,Business Rates Flood Relief Grant,SO41 9ZG,"7,501.00",Yes
Communities & Local Government,DCLG,12/05/2016,Current (non AEF) Grants to Local Authorities,Local Government & Public Services,NORFOLK COUNTY COUNCIL,,,,232602789,5000331974,,Business Rates Flood Relief Grant,NR1 2DW,"13,639.00",Yes
Communities & Local Government,DCLG,12/05/2016,Current (non AEF) Grants to Local Authorities,Local Government & Public Services,NORTH DEVON DC,,,,,5000331904,,Business Rates Flood Relief Grant,EX32 2GR,"6,516.00",Yes
Communities & Local Government,DCLG,12/05/2016,Current (non AEF) Grants to Local Authorities,Local Government & Public Services,NORTH DORSET DC,,,,236185005,5000331905,,Business Rates Flood Relief Grant,DT11 7LL,"2,691.00",Yes
Communities & Local Government,DCLG,12/05/2016,Current (non AEF) Grants to Local Authorities,Local Government & Public Services,NORTH EAST LINCOLN DC (HSG),,,,211242737,5000331906,,Business Rates Flood Relief Grant,DN35 8LN,"339,891.00",Yes
Communities & Local Government,DCLG,12/05/2016,Current (non AEF) Grants to Local Authorities,Local Government & Public Services,NORTH HERTS DC (HOUSING) (HSG),,,,233593917,5000331907,,Business Rates Flood Relief Grant,SG6 3JF,894,Yes
Communities & Local Government,DCLG,12/05/2016,Current (non AEF) Grants to Local Authorities,Local Government & Public Services,NORTH LINCOLNSHIRE DC (HSG),,Public Bodies,,424005502,5000331908,,Business Rates Flood Relief Grant,DN16 1AB,"1,741.00",Yes
Communities & Local Government,DCLG,12/05/2016,Current (non AEF) Grants to Local Authorities,Local Government & Public Services,NORTH NORFOLK DC,,,,239975964,5000331909,,Business Rates Flood Relief Grant,NR27 9EJ,"42,120.00",Yes
Communities & Local Government,DCLG,12/05/2016,Current (non AEF) Grants to Local Authorities,Local Government & Public Services,NORTH YORKSHIRE CC (DL7 8AL),,,,,5000331975,,Business Rates Flood Relief Grant,DL7 8AL,"1,675.00",Yes
Communities & Local Government,DCLG,12/05/2016,Current (non AEF) Grants to Local Authorities,Local Government & Public Services,NORTHAMPTONSHIRE COUNTY COUNCIL,,,,,5000331976,,Business Rates Flood Relief Grant,CB3 0AP,638,Yes
Communities & Local Government,DCLG,12/05/2016,Current (non AEF) Grants to Local Authorities,Local Government & Public Services,OXFORD CITY COUNCIL,,,,212437417,5000331977,,Business Rates Flood Relief Grant,OX1 1DS,"4,675.00",Yes
Communities & Local Government,DCLG,12/05/2016,Current (non AEF) Grants to Local Authorities,Local Government & Public Services,OXFORDSHIRE CC,,,,228216438,5000331978,,Business Rates Flood Relief Grant,OX1 1TH,645,Yes
Communities & Local Government,DCLG,12/05/2016,Current (non AEF) Grants to Local Authorities,Local Government & Public Services,PLYMOUTH CITY CNCL,,Public Bodies,,236416095,5000331979,,Business Rates Flood Relief Grant,PL1 2AA,"4,179.00",Yes
Communities & Local Government,DCLG,12/05/2016,Current (non AEF) Grants to Local Authorities,Local Government & Public Services,POOLE BC (HSG),,,,,5000331910,,Business Rates Flood Relief Grant,BH15 2RU,"6,574.00",Yes
Communities & Local Government,DCLG,12/05/2016,Current (non AEF) Grants to Local Authorities,Local Government & Public Services,PURBECK DC,,,,,5000331911,,Business Rates Flood Relief Grant,BH20 4PP,"5,262.00",Yes
Communities & Local Government,DCLG,12/05/2016,Current (non AEF) Grants to Local Authorities,Local Government & Public Services,READING BC,,,,210220399,5000331980,,Business Rates Flood Relief Grant,RG1 7TD,"16,410.00",Yes
Communities & Local Government,DCLG,12/05/2016,Current (non AEF) Grants to Local Authorities,Local Government & Public Services,RICHMOND UPON THAMES LB,,,,228868535,5000331981,,Business Rates Flood Relief Grant,TW1 3BZ,421,Yes
Communities & Local Government,DCLG,12/05/2016,Current (non AEF) Grants to Local Authorities,Local Government & Public Services,ROCHFORD DISTRICT COUNCIL,,,,387828767,5000331982,,Business Rates Flood Relief Grant,SS4 1BW,"7,295.00",Yes
Communities & Local Government,DCLG,12/05/2016,Current (non AEF) Grants to Local Authorities,Local Government & Public Services,ROTHER DC (HSG),,,,,5000331912,,Business Rates Flood Relief Grant,TN39 3JX,"1,240.00",Yes
Communities & Local Government,DCLG,12/05/2016,Current (non AEF) Grants to Local Authorities,Local Government & Public Services,ROYAL BERKSHIRE FIRE AUTHORITY,,,,424872653,5000332003,,Business Rates Flood Relief Grant,RG30 4FS,"4,782.00",Yes
Communities & Local Government,DCLG,12/05/2016,Current (non AEF) Grants to Local Authorities,Local Government & Public Services,RUNNYMEDE BOROUGH COUNCIL,,,,232225722,5000331983,,Business Rates Flood Relief Grant,KT15 2AH,"118,178.00",Yes
Communities & Local Government,DCLG,12/05/2016,Current (non AEF) Grants to Local Authorities,Local Government & Public Services,SCARBOROUGH BC,,Large,,,5000331913,,Business Rates Flood Relief Grant,YO11 2HG,"7,443.00",Yes
Communities & Local Government,DCLG,12/05/2016,Current (non AEF) Grants to Local Authorities,Local Government & Public Services,SEVENOAKS DC,,,,236100913,5000331915,,Business Rates Flood Relief Grant,TN13 1HG,"1,088.00",Yes
Communities & Local Government,DCLG,12/05/2016,Current (non AEF) Grants to Local Authorities,Local Government & Public Services,SHEPWAY DISTRICT COUNCIL,,,,235550878,5000331916,,Business Rates Flood Relief Grant,CT20 2QY,"4,826.00",Yes
Communities & Local Government,DCLG,12/05/2016,Current (non AEF) Grants to Local Authorities,Local Government & Public Services,SHROPSHIRE UNITARY AUTHORITY,,,,217036490,5000332018,,Business Rates Flood Relief Grant,SY2 6ND,"1,890.00",Yes
Communities & Local Government,DCLG,12/05/2016,Current (non AEF) Grants to Local Authorities,Local Government & Public Services,SOMERSET COUNTY CNCL,,,,211229406,5000331984,,Business Rates Flood Relief Grant,TA1 4DY,"1,389.00",Yes
Communities & Local Government,DCLG,12/05/2016,Current (non AEF) Grants to Local Authorities,Local Government & Public Services,SOUTH BUCKS DC (HSG),,,,,5000331917,,Business Rates Flood Relief Grant,UB9 4LH,"6,175.00",Yes
Communities & Local Government,DCLG,12/05/2016,Current (non AEF) Grants to Local Authorities,Local Government & Public Services,SOUTH DERBYSHIRE DC,,Public Bodies,,232612416,5000331918,,Business Rates Flood Relief Grant,DE11 0AH,"12,876.00",Yes
Communities & Local Government,DCLG,12/05/2016,Current (non AEF) Grants to Local Authorities,Local Government & Public Services,SOUTH HAMS DC,,,,236445342,5000331920,,Business Rates Flood Relief Grant,TQ9 5NE,"11,085.00",Yes
Communities & Local Government,DCLG,12/05/2016,Current (non AEF) Grants to Local Authorities,Local Government & Public Services,SOUTH LAKELAND DC,,Large,,236445466,5000331921,,Business Rates Flood Relief Grant,LA9 4DQ,"1,386.00",Yes
Communities & Local Government,DCLG,12/05/2016,Current (non AEF) Grants to Local Authorities,Local Government & Public Services,SOUTH NORFOLK DC,,,,232605717,5000331922,,Business Rates Flood Relief Grant,NR15 2XE,"5,927.00",Yes
Communities & Local Government,DCLG,12/05/2016,Current (non AEF) Grants to Local Authorities,Local Government & Public Services,SOUTH SOMERSET DC,,,,239850811,5000331923,,Business Rates Flood Relief Grant,BA20 2DS,"5,229.00",Yes
Communities & Local Government,DCLG,12/05/2016,Current (non AEF) Grants to Local Authorities,Local Government & Public Services,SPELTHORNE BOROUGH COUNCIL,,,,211177332,5000331924,,Business Rates Flood Relief Grant,TW18 1XB,"25,858.00",Yes
Communities & Local Government,DCLG,12/05/2016,Current (non AEF) Grants to Local Authorities,Local Government & Public Services,STOCKTON-ON-TEES BC (HSG),,,,,5000331925,,Business Rates Flood Relief Grant,TS23 2YS,"160,099.00",Yes
Communities & Local Government,DCLG,12/05/2016,Current (non AEF) Grants to Local Authorities,Local Government & Public Services,SUFFOLK CC (SOCIAL CARE SERV) (H,,,,385614821,5000331926,,Business Rates Flood Relief Grant,IP4 1LH,"1,002.00",Yes
Communities & Local Government,DCLG,12/05/2016,Current (non AEF) Grants to Local Authorities,Local Government & Public Services,SUFFOLK COASTAL DC (HSG),,,,239933203,5000331927,,Business Rates Flood Relief Grant,IP12 1AU,"1,646.00",Yes
Communities & Local Government,DCLG,12/05/2016,Current (non AEF) Grants to Local Authorities,Local Government & Public Services,SURREY COUNTY COUNCIL,,Public Bodies,,,5000331986,,Business Rates Flood Relief Grant,KT1 2DN,"76,659.00",Yes
Communities & Local Government,DCLG,12/05/2016,Current (non AEF) Grants to Local Authorities,Local Government & Public Services,SWALE BC,,,,239842768,5000331987,,Business Rates Flood Relief Grant,ME10 3HT,"1,154.00",Yes
Communities & Local Government,DCLG,12/05/2016,Current (non AEF) Grants to Local Authorities,Local Government & Public Services,TANDRIDGE DC,,,,225481076,5000331928,,Business Rates Flood Relief Grant,RH8 0BT,"5,759.00",Yes
Communities & Local Government,DCLG,12/05/2016,Current (non AEF) Grants to Local Authorities,Local Government & Public Services,TAUNTON DEANE BC,,,,236185294,5000331929,,Business Rates Flood Relief Grant,TA1 1HE,947,Yes
Communities & Local Government,DCLG,12/05/2016,Current (non AEF) Grants to Local Authorities,Local Government & Public Services,TEIGNBRIDGE DC,,,,236440475,5000331930,,Business Rates Flood Relief Grant,TQ12 4XX,"3,779.00",Yes
Communities & Local Government,DCLG,12/05/2016,Current (non AEF) Grants to Local Authorities,Local Government & Public Services,TELFORD & WREKIN COUNCIL,,,,230235801,5000331988,,Business Rates Flood Relief Grant,TF3 4NT,"6,177.00",Yes
Communities & Local Government,DCLG,12/05/2016,Current (non AEF) Grants to Local Authorities,Local Government & Public Services,TEST VALLEY BC,,,,225442698,5000331931,,Business Rates Flood Relief Grant,SP10 3AJ,"11,880.00",Yes
Communities & Local Government,DCLG,12/05/2016,Current (non AEF) Grants to Local Authorities,Local Government & Public Services,THURROCK  BOROUGH COUNCIL,,,,,5000331989,,Business Rates Flood Relief Grant,RM17 6SL,"5,519.00",Yes
Communities & Local Government,DCLG,12/05/2016,Current (non AEF) Grants to Local Authorities,Local Government & Public Services,TONBRIDGE & MALLING BC,,,,,5000331932,,Business Rates Flood Relief Grant,ME19 6LZ,"34,286.00",Yes
Communities & Local Government,DCLG,12/05/2016,Current (non AEF) Grants to Local Authorities,Local Government & Public Services,UTTLESFORD DC,,,,424423242,5000331933,,Business Rates Flood Relief Grant,CB11 4ER,779,Yes
Communities & Local Government,DCLG,12/05/2016,Current (non AEF) Grants to Local Authorities,Local Government & Public Services,VALE OF WHITE HORSE DC,,,,,5000331934,,Business Rates Flood Relief Grant,OX14 3JE,"4,449.00",Yes
Communities & Local Government,DCLG,12/05/2016,Current (non AEF) Grants to Local Authorities,Local Government & Public Services,WARRINGTON BC,,,,,5000331990,,Business Rates Flood Relief Grant,WA1 1BN,"7,160.00",Yes
Communities & Local Government,DCLG,12/05/2016,Current (non AEF) Grants to Local Authorities,Local Government & Public Services,WAVENEY DISTRICT COUNCIL,,Large,,229740980,5000331935,,Business Rates Flood Relief Grant,NR32 1HS,"1,705.00",Yes
Communities & Local Government,DCLG,12/05/2016,Current (non AEF) Grants to Local Authorities,Local Government & Public Services,WAVERLEY BC V177,,,,,5000331936,,Business Rates Flood Relief Grant,GU7 1HR,401,Yes
Communities & Local Government,DCLG,12/05/2016,Current (non AEF) Grants to Local Authorities,Local Government & Public Services,WEST BERKSHIRE COUNCIL,,,,364809181,5000331991,,Business Rates Flood Relief Grant,RG14 2AF,"55,914.00",Yes
Communities & Local Government,DCLG,12/05/2016,Current (non AEF) Grants to Local Authorities,Local Government & Public Services,WEST DEVON BC,,,,234002095,5000331937,,Business Rates Flood Relief Grant,PL19 0BZ,"2,031.00",Yes
Communities & Local Government,DCLG,12/05/2016,Current (non AEF) Grants to Local Authorities,Local Government & Public Services,WEST SUSSEX CC,,Public Bodies,,232198762,5000331992,,Business Rates Flood Relief Grant,PO19 1RG,"6,677.00",Yes
Communities & Local Government,DCLG,12/05/2016,Current (non AEF) Grants to Local Authorities,Local Government & Public Services,WILTSHIRE COUNCIL,,,,211341656,5000332017,,Business Rates Flood Relief Grant,BA14 4DS,"2,932.00",Yes
Communities & Local Government,DCLG,12/05/2016,Current (non AEF) Grants to Local Authorities,Local Government & Public Services,WINCHESTER CITY CNCL,,,,228838280,5000331939,,Business Rates Flood Relief Grant,SO23 9LJ,"6,572.00",Yes
Communities & Local Government,DCLG,12/05/2016,Current (non AEF) Grants to Local Authorities,Local Government & Public Services,WINDSOR & MAIDENHEAD (HSG),,,,227411998,5000331940,,Business Rates Flood Relief Grant,SL6 1RF,"96,181.00",Yes
Communities & Local Government,DCLG,12/05/2016,Current (non AEF) Grants to Local Authorities,Local Government & Public Services,WIRRAL MBC,,,,211222602,5000331994,,Business Rates Flood Relief Grant,CH41 6BU,"304,471.00",Yes
Communities & Local Government,DCLG,12/05/2016,Current (non AEF) Grants to Local Authorities,Local Government & Public Services,WOKINGHAM DC,,,,,5000331995,,Business Rates Flood Relief Grant,RG11 1WJ,"65,810.00",Yes
Communities & Local Government,DCLG,12/05/2016,Current (non AEF) Grants to Local Authorities,Local Government & Public Services,WORCESTER CITY CNCL,,,,227419751,5000331996,,Business Rates Flood Relief Grant,WR1 2EZ,"5,584.00",Yes
Communities & Local Government,DCLG,12/05/2016,Current (non AEF) Grants to Local Authorities,Local Government & Public Services,WORCESTERSHIRE COUNTY COUNCIL,,,,230359643,5000331997,,Business Rates Flood Relief Grant,WR5 2NP,"4,017.00",Yes
Communities & Local Government,DCLG,12/05/2016,Current (non AEF) Grants to Local Authorities,Local Government & Public Services,WYCHAVON DISTRICT COUNCIL,,,,232257139,5000331941,,Business Rates Flood Relief Grant,WR10 1PT,951,Yes
Communities & Local Government,DCLG,12/05/2016,Current Grants to Non Profit Bodies,Local Government & Public Services,FAITH MATTERS,Yes,Small,,218968621,2100264393,,Tell MAMA Outreach Project,SW7 1EE,"109,000.00",Yes
Communities & Local Government,DCLG,12/05/2016,Current Grants to Non Profit Bodies,Local Government & Public Services,HOLOCAUST MEMORIAL DAY TRUST,Yes,Small,,,2100264392,,National Holocaust Memorial Day & Local Events,SE1 7SJ,"490,000.00",Yes
Communities & Local Government,DCLG,12/05/2016,Facilities Management (ISD use only),Finance,INTERSERVE (FACILITIES MANAGEMENT),,Large,,364834825,5106221722,Property Occupation,Offsite Management,BS32 4NH,316.5,
Communities & Local Government,DCLG,12/05/2016,Grant in Aid to NDPBs (non budget),Housing & Planning,HOMES & COMMUNITIES AGENCY,,Public Bodies,,215576860,2100264391,,HCA Grant in Aid May 2016,NE11 0NA,"107,901,653.00",Yes
Communities & Local Government,DCLG,12/05/2016,IT - Service Contracts,Finance,BASWARE SHARED SERVICES LTD,,Large,,739834971,5106221700,IT Managed / Outsourced Services,GeM Procserve,SW1E 5RS,"8,780.40",
Communities & Local Government,DCLG,12/05/2016,IT - Service Contracts,Finance,DAISY CORPORATE SERVICES LTD,,Large,,221481042,5106221730,IT Managed / Outsourced Services,3mth extension to monthly support charge for Telephony,BB9 5SR,"90,144.11",
Communities & Local Government,DCLG,12/05/2016,IT - Service Contracts,Finance,FUJITSU SERVICES LTD,,Large,,423375062,5106221728,IT Managed / Outsourced Services,"FY15/16 Desktop Charges ""D""Table Charges",WA3 6GD,"1,865.73",
Communities & Local Government,DCLG,12/05/2016,IT - Service Contracts,Finance,INFO-ASSURE LTD,,Small,,,5106221725,IT Managed / Outsourced Services,CLAS/PEN Test Resource 95 days,GU14 0LX,"1,687.50",
Communities & Local Government,DCLG,12/05/2016,IT - Service Contracts,Finance,INFO-ASSURE LTD,,Small,,,5106221731,IT Managed / Outsourced Services,CLAS/PEN Test Resource 95 days,GU14 0LX,868.75,
Communities & Local Government,DCLG,12/05/2016,IT - Service Contracts,Finance,INFO-ASSURE LTD,,Small,,,5106221733,IT Managed / Outsourced Services,CLAS/PEN Test Resource 95 days,GU14 0LX,"2,085.00",
Communities & Local Government,DCLG,12/05/2016,IT - Software Maintenance,Finance,LOCKHEED MARTIN BUSINESS TECH SOLUT,,Large,,399909910,5106221732,IT Managed / Outsourced Services,MCIS/TESA support services FY16/17,G3 8EP,"48,108.00",
Communities & Local Government,DCLG,12/05/2016,Professional services,Local Government & Public Services,VALUATION OFFICE AGENCY,,Public Bodies,,215253886,2100264335,Environmental Services,May 2016 work on NNDR and Council Tax,W1D 5BU,"13,325,000.00",
Communities & Local Government,DCLG,12/05/2016,Publicity,Housing & Planning,NEWS UK & IRELAND LTD,,Large,,232126391,5106221760,Advertising,Advert for HCA Chair,PE7 8XT,720,
Communities & Local Government,DCLG,12/05/2016,Services provided by other Govt Orgs,Housing & Planning,VALUATION OFFICE AGENCY,,Public Bodies,,215253886,5106221738,Financial,Right to Buy Fees revaluations 15-16,W1D 5BU,"127,629.03",Yes
Communities & Local Government,DCLG,12/05/2016,Variable Maintenance < 15k,Finance,INTERSERVE (FACILITIES MANAGEMENT),,Large,,364834825,5106221722,Property Occupation,TQH Pass Through 2015-16,BS32 4NH,559.6,
Communities & Local Government,DCLG,12/05/2016,Variable Maintenance < 15k,Finance,INTERSERVE (FACILITIES MANAGEMENT),,Large,,364834825,5106221722,Property Occupation,Rivergate Pass Through 2015-16,BS32 4NH,446.59,
Communities & Local Government,DCLG,12/05/2016,Variable Maintenance < 15k,Finance,INTERSERVE (FACILITIES MANAGEMENT),,Large,,364834825,5106221722,Property Occupation,2 MS Pass Through 2015-16,BS32 4NH,317.6,
Communities & Local Government,DCLG,12/05/2016,Variable Maintenance < 15k,Finance,INTERSERVE (FACILITIES MANAGEMENT),,Large,,364834825,5106221722,Property Occupation,High Trees Pass Through 2015-16,BS32 4NH,"2,353.36",
Communities & Local Government,DCLG,12/05/2016,Variable Maintenance < 15k,Finance,INTERSERVE (FACILITIES MANAGEMENT),,Large,,364834825,5106221724,Property Occupation,TQH Variable Maintenance 2015-16,BS32 4NH,"6,170.09",
Communities & Local Government,DCLG,12/05/2016,Variable Maintenance < 15k,Finance,INTERSERVE (FACILITIES MANAGEMENT),,Large,,364834825,5106221724,Property Occupation,Rivergate Variable Maintenance 2015-16,BS32 4NH,"2,185.83",
Communities & Local Government,DCLG,12/05/2016,Variable Maintenance < 15k,Finance,INTERSERVE (FACILITIES MANAGEMENT),,Large,,364834825,5106221724,Property Occupation,Citygate Variable Maintenance 2015-16,BS32 4NH,806.36,
Communities & Local Government,DCLG,12/05/2016,Variable Maintenance < 15k,Finance,INTERSERVE (FACILITIES MANAGEMENT),,Large,,364834825,5106221724,Property Occupation,5 SPP Variable Maintenance 2015-16,BS32 4NH,"2,438.40",
Communities & Local Government,DCLG,13/05/2016,Advertising,"Strategy, Communications and Private Office",M&C SAATCHI (UK) LTD,,Large,,,5106221748,Advertising,NP Media Strategy & Creative Variation,W1F 9EE,"30,000.00",
Communities & Local Government,DCLG,13/05/2016,Agency Staff,Decentralisation and Local Growth,BROOK STREET UK LTD,,Large,,364940028,5106221771,Contingent Labour,temp staff to support closure YH,AL1 4JB,688.04,
Communities & Local Government,DCLG,13/05/2016,Agency Staff,Decentralisation and Local Growth,BROOK STREET UK LTD,,Large,,364940028,5106221772,Contingent Labour,temp staff to support closure YH,AL1 4JB,646.76,
Communities & Local Government,DCLG,13/05/2016,Agency Staff,Decentralisation and Local Growth,BROOK STREET UK LTD,,Large,,364940028,5106221773,Contingent Labour,temp staff to support closure YH,AL1 4JB,550.44,
Communities & Local Government,DCLG,13/05/2016,Agency Staff,Decentralisation and Local Growth,CAPITA BUS. SERV. LTD (CON LAB),,Large,,,5106221746,Contingent Labour,Interim Manager,DL1 9HB,"1,942.14",
Communities & Local Government,DCLG,13/05/2016,Agency Staff,Decentralisation and Local Growth,CAPITA BUS. SERV. LTD (CON LAB),,Large,,,5106221747,Contingent Labour,Interim Manager,DL1 9HB,"2,520.80",
Communities & Local Government,DCLG,13/05/2016,Agency Staff,Decentralisation and Local Growth,CAPITA BUS. SERV. LTD (CON LAB),,Large,,,5106221750,Contingent Labour,Interim Manager,DL1 9HB,"7,518.96",
Communities & Local Government,DCLG,13/05/2016,Agency Staff,Decentralisation and Local Growth,CAPITA BUS. SERV. LTD (CON LAB),,Large,,,5106221753,Contingent Labour,Official Travel and Subsistence,DL1 9HB,604.22,
Communities & Local Government,DCLG,13/05/2016,Agency Staff,Decentralisation and Local Growth,CAPITA BUS. SERV. LTD (CON LAB),,Large,,,5106221758,Contingent Labour,Interim Manager,DL1 9HB,"11,152.48",
Communities & Local Government,DCLG,13/05/2016,Agency Staff,Decentralisation and Local Growth,CAPITA BUS. SERV. LTD (CON LAB),,Large,,,5106221759,Contingent Labour,Interim Manager,DL1 9HB,"5,421.70",
Communities & Local Government,DCLG,13/05/2016,Agency Staff,Finance,BROOK STREET UK LTD,,Large,,364940028,5106221754,Contingent Labour,Support worker for staff interim measure,AL1 4JB,431.17,
Communities & Local Government,DCLG,13/05/2016,Agency Staff,Finance,CAPITA BUS. SERV. LTD (CON LAB),,Large,,,5106221755,Contingent Labour,Interim Manager,DL1 9HB,"2,454.62",
Communities & Local Government,DCLG,13/05/2016,Agency Staff,Housing & Planning,CAPITA BUS. SERV. LTD (CON LAB),,Large,,,5106221756,Contingent Labour,Interim Manager(NS),DL1 9HB,807.46,
Communities & Local Government,DCLG,13/05/2016,Agency Staff,Local Government & Public Services,CAPITA BUS. SERV. LTD (CON LAB),,Large,,,5106221757,Contingent Labour,Interim Manager,DL1 9HB,807.46,
Communities & Local Government,DCLG,13/05/2016,Agency Staff,"Strategy, Communications and Private Office",BROOK STREET UK LTD,,Large,,364940028,5106221752,Contingent Labour,Interim Correspondence Staff - May 16,AL1 4JB,510.7,
Communities & Local Government,DCLG,13/05/2016,Current Grants to Non Profit Bodies,Housing & Planning,AMBITION EAST MIDLANDS LTD,,,,,5000331775,,Fair Chance Fund Payment,DE7 8HU,"268,914.00",Yes
Communities & Local Government,DCLG,13/05/2016,Current Grants to Non Profit Bodies,Housing & Planning,ASPIRE GLOUCESTERSHIRE LTD,,,,,5000331776,,Fair Chance Fund Payment,GL50 3DA,"110,176.00",Yes
Communities & Local Government,DCLG,13/05/2016,Current Grants to Non Profit Bodies,Housing & Planning,FAIR CHANCE LIVERPOOL & KNOWSLEY,,,,,5000331773,,Fair Chance Fund Payment,W1W 5BB,"167,785.00",Yes
Communities & Local Government,DCLG,13/05/2016,Current Grants to Non Profit Bodies,Housing & Planning,FAIR CHANCE REWRITING FUTURES LTD,,,,,5000331772,,Fair Chance Fund Payment,W1W 5BB,"293,450.00",Yes
Communities & Local Government,DCLG,13/05/2016,Current Grants to Non Profit Bodies,Housing & Planning,FAIR CHANCE YOUR CHANCE LTD,,,,,5000331771,,Fair Chance Fund Payment,W1W 5BB,"200,915.00",Yes
Communities & Local Government,DCLG,13/05/2016,Current Grants to Non Profit Bodies,Housing & Planning,FUSION FAIR CHANCE PARTNERSHIP LTD,,,,,5000331770,,Fair Chance Fund Payment,SW1Y 4TE,"314,225.00",Yes
Communities & Local Government,DCLG,13/05/2016,Current Grants to Non Profit Bodies,Housing & Planning,STONHAM HOME GROUP LTD,Yes,Large,,,5000331774,,Fair Chance Fund Payment,NE12 8ET,"270,051.00",Yes
Communities & Local Government,DCLG,13/05/2016,"IT - PC, Network & Hardware",Finance,DAISY CORPORATE SERVICES LTD,,Large,,221481042,5106221736,IT Managed / Outsourced Services,APC UPS Support (SAP) High Trees 3yrs,BB9 5SR,"3,527.00",
Communities & Local Government,DCLG,13/05/2016,"IT - PC, Network & Hardware",Finance,X M A LTD,,Large,,298484148,5106221751,ICT Hardware,Asus Chromebooks C300,NG11 7EP,"112,899.24",
Communities & Local Government,DCLG,13/05/2016,IT - Software Maintenance,Finance,MARKLOGIC CORPORATION,,Large,,,5106221726,IT Managed / Outsourced Services,CPD4109106AS5 - BI Reporting Module,CA 94070,"18,525.00",
Communities & Local Government,DCLG,13/05/2016,IT - Software Maintenance,Finance,MARKLOGIC CORPORATION,,Large,,,5106221763,IT Managed / Outsourced Services,CORE 16/17 Logs (AS6),CA 94070,"18,000.00",
Communities & Local Government,DCLG,13/05/2016,IT - Software Maintenance,Finance,METHODS CONSULTING LTD,,Medium,,505275578,5106221767,IT Managed / Outsourced Services,PIMS Support Charges (Initial 6mths),WC2H 8AD,"24,000.00",
Communities & Local Government,DCLG,13/05/2016,Steady State Service Provision,Finance,VODAFONE LTD FORMELY CABLE  & WIREL,,Large,,239869688,5106221766,Business Process Outsourcing Services,PSN WAN Services FY15/16,MK3 5JP,"23,290.57",
Communities & Local Government,DCLG,13/05/2016,Training,Housing & Planning,HAYMARKET PUBLISHING SERVS LTD,,Large,,516858800,5106221770,Development and Training,National Planning Summit 21/4 2 places,TW1 3SP,603,
Communities & Local Government,DCLG,13/05/2016,Training,Housing & Planning,HAYMARKET PUBLISHING SERVS LTD,,Large,,516858800,5106221770,Development and Training,National Planning Summit 21/4 2 places,TW1 3SP,99,
Communities & Local Government,DCLG,13/05/2016,Vehicle hire,"Strategy, Communications and Private Office",GOVERNMENT CAR & DESPATCH AGENCY,,Public Bodies,,,5106221775,Vehicle Hire and Lease,Ministerial Duty Car 1 (LT118) 2015-16,SW8 5AX,636,
Communities & Local Government,DCLG,13/05/2016,Vehicle hire,"Strategy, Communications and Private Office",GOVERNMENT CAR & DESPATCH AGENCY,,Public Bodies,,,5106221776,Vehicle Hire and Lease,Ministerial Duty Car 1 (LT118) 2015-16,SW8 5AX,320.95,
Communities & Local Government,DCLG,13/05/2016,Work In Progress Pre-Cert 40373 Spend,Decentralisation and Local Growth,NORTH WEST BUSINESS FINANCE,,Micro,,,2300002505,,Revenue Grant repayment for Priority 1 -X01441PRa1,WA4 6PU,"-375,000.00",Yes
Communities & Local Government,DCLG,13/05/2016,Work In Progress Pre-Cert 40373 Spend,Decentralisation and Local Growth,NORTH WEST BUSINESS FINANCE,,Micro,,,2300002506,,Revenue Grant repayment for Priority 2 -X01441PRb1,WA4 6PU,"-375,000.00",Yes
Communities & Local Government,DCLG,16/05/2016,Accommodation - actuals,Decentralisation and Local Growth,REDFERN TRAVEL LIMITED,,Small,,213089972,2100264489,Business Travel Accommodation,Consolidated Monthly Travel April Hotels,BD1 3AZ,300.5,
Communities & Local Government,DCLG,16/05/2016,Accommodation - actuals,Decentralisation and Local Growth,REDFERN TRAVEL LIMITED,,Small,,213089972,2100264489,Business Travel Accommodation,Consolidated Monthly Travel April Hotels,BD1 3AZ,902.4,
Communities & Local Government,DCLG,16/05/2016,Accommodation - actuals,Decentralisation and Local Growth,REDFERN TRAVEL LIMITED,,Small,,213089972,2100264489,Business Travel Accommodation,Consolidated Monthly Travel April Hotels,BD1 3AZ,"1,715.95",
Communities & Local Government,DCLG,16/05/2016,Accommodation - actuals,Decentralisation and Local Growth,REDFERN TRAVEL LIMITED,,Small,,213089972,2100264489,Business Travel Accommodation,Consolidated Monthly Travel April Hotels,BD1 3AZ,659,
Communities & Local Government,DCLG,16/05/2016,Accommodation - actuals,Decentralisation and Local Growth,REDFERN TRAVEL LIMITED,,Small,,213089972,2100264489,Business Travel Accommodation,Consolidated Monthly Travel April Hotels,BD1 3AZ,645.61,
Communities & Local Government,DCLG,16/05/2016,Accommodation - actuals,Decentralisation and Local Growth,REDFERN TRAVEL LIMITED,,Small,,213089972,2100264489,Business Travel Accommodation,Consolidated Monthly Travel April Hotels,BD1 3AZ,393.6,
Communities & Local Government,DCLG,16/05/2016,Accommodation - actuals,Decentralisation and Local Growth,REDFERN TRAVEL LIMITED,,Small,,213089972,2100264489,Business Travel Accommodation,Consolidated Monthly Travel April Hotels,BD1 3AZ,397.95,
Communities & Local Government,DCLG,16/05/2016,Accommodation - actuals,Decentralisation and Local Growth,REDFERN TRAVEL LIMITED,,Small,,213089972,2100264489,Business Travel Accommodation,Consolidated Monthly Travel April Hotels,BD1 3AZ,403,
Communities & Local Government,DCLG,16/05/2016,Accommodation - actuals,Decentralisation and Local Growth,REDFERN TRAVEL LIMITED,,Small,,213089972,2100264489,Business Travel Accommodation,Consolidated Monthly Travel April Hotels,BD1 3AZ,713.13,
Communities & Local Government,DCLG,16/05/2016,Accommodation - actuals,Decentralisation and Local Growth,REDFERN TRAVEL LIMITED,,Small,,213089972,2100264489,Business Travel Accommodation,Consolidated Monthly Travel April Hotels,BD1 3AZ,451,
Communities & Local Government,DCLG,16/05/2016,Accommodation - actuals,Decentralisation and Local Growth,REDFERN TRAVEL LIMITED,,Small,,213089972,2100264489,Business Travel Accommodation,Consolidated Monthly Travel April Hotels,BD1 3AZ,"1,529.43",
Communities & Local Government,DCLG,16/05/2016,Accommodation - actuals,Finance,REDFERN TRAVEL LIMITED,,Small,,213089972,2100264489,Business Travel Accommodation,Consolidated Monthly Travel April Hotels,BD1 3AZ,"1,954.97",
Communities & Local Government,DCLG,16/05/2016,Accommodation - actuals,Finance,REDFERN TRAVEL LIMITED,,Small,,213089972,2100264489,Business Travel Accommodation,Consolidated Monthly Travel April Hotels,BD1 3AZ,317.96,
Communities & Local Government,DCLG,16/05/2016,Accommodation - actuals,Fire,REDFERN TRAVEL LIMITED,,Small,,213089972,2100264489,Business Travel Accommodation,Consolidated Monthly Travel April Hotels,BD1 3AZ,"3,172.99",
Communities & Local Government,DCLG,16/05/2016,Accommodation - actuals,Housing & Planning,REDFERN TRAVEL LIMITED,,Small,,213089972,2100264489,Business Travel Accommodation,Consolidated Monthly Travel April Hotels,BD1 3AZ,367.34,
Communities & Local Government,DCLG,16/05/2016,Accommodation - actuals,Housing & Planning,REDFERN TRAVEL LIMITED,,Small,,213089972,2100264489,Business Travel Accommodation,Consolidated Monthly Travel April Hotels,BD1 3AZ,363.98,
Communities & Local Government,DCLG,16/05/2016,Accommodation - actuals,Local Government & Public Services,REDFERN TRAVEL LIMITED,,Small,,213089972,2100264489,Business Travel Accommodation,Consolidated Monthly Travel April Hotels,BD1 3AZ,413.36,
Communities & Local Government,DCLG,16/05/2016,Accommodation - actuals,Local Government & Public Services,REDFERN TRAVEL LIMITED,,Small,,213089972,2100264489,Business Travel Accommodation,Consolidated Monthly Travel April Hotels,BD1 3AZ,504.26,
Communities & Local Government,DCLG,16/05/2016,Air Travel,Decentralisation and Local Growth,REDFERN TRAVEL LIMITED,,Small,,213089972,2100264489,Air,Consolidated Monthly Travel April Air Tickets,BD1 3AZ,"1,304.60",
Communities & Local Government,DCLG,16/05/2016,Air Travel,Decentralisation and Local Growth,REDFERN TRAVEL LIMITED,,Small,,213089972,2100264489,Air,Consolidated Monthly Travel April Air Tickets,BD1 3AZ,385.32,
Communities & Local Government,DCLG,16/05/2016,Air Travel,Decentralisation and Local Growth,REDFERN TRAVEL LIMITED,,Small,,213089972,2100264489,Air,Consolidated Monthly Travel April Air Tickets,BD1 3AZ,479.63,
Communities & Local Government,DCLG,16/05/2016,Air Travel,Decentralisation and Local Growth,REDFERN TRAVEL LIMITED,,Small,,213089972,2100264489,Air,Consolidated Monthly Travel April Air Tickets,BD1 3AZ,550.6,
Communities & Local Government,DCLG,16/05/2016,Air Travel,Housing & Planning,REDFERN TRAVEL LIMITED,,Small,,213089972,2100264489,Air,Consolidated Monthly Travel April Air Tickets,BD1 3AZ,657,
Communities & Local Government,DCLG,16/05/2016,Current (non AEF) Grants to Local Authorities,Housing & Planning,MID SUFFOLK DC,,,,219028933,2100261446,,Payment   HRA Stock Data Collection Exercise,IP6 8DL,"5,000.00",Yes
Communities & Local Government,DCLG,16/05/2016,Current (non AEF) Grants to Local Authorities,Local Government & Public Services,HER MAJESTYS COURTS & TRIBUNAL SERV,,Public Bodies,,212437904,2100264488,,Community Right to Bid; appeal tribunal costs,NP10 8FZ,"7,930.00",Yes
Communities & Local Government,DCLG,16/05/2016,Current Grants to Non Profit Bodies,Local Government & Public Services,CORBRIDBGE YOUTH INITIATIVE YOUTH A,,,,,2100264448,,Storm Desmond Eva Charity Match Funding,NE45 5AA,800,Yes
Communities & Local Government,DCLG,16/05/2016,Legal Fees,Housing & Planning,SLAUGHTER & MAY,,Large,,225772961,5106221787,Legal,Legal advice,EC1Y 8YY,"512,590.80",
Communities & Local Government,DCLG,16/05/2016,Legal Fees,Housing & Planning,SLAUGHTER & MAY,,Large,,225772961,5106221788,Legal,Legal advice,EC1Y 8YY,"26,972.76",
Communities & Local Government,DCLG,16/05/2016,Licence Fees/Levies,Local Government & Public Services,BYTES SOFTWARE SERVICES LTD,,Medium,,225273754,5106221792,Software,Renewal - Software licences,KT22 7TW,"2,781.29",
Communities & Local Government,DCLG,16/05/2016,"Rail, Underground and Eurostar",Decentralisation and Local Growth,REDFERN TRAVEL LIMITED,,Small,,213089972,2100264489,Rail,Consolidated Monthly Travel April Rail,BD1 3AZ,709.3,
Communities & Local Government,DCLG,16/05/2016,"Rail, Underground and Eurostar",Decentralisation and Local Growth,REDFERN TRAVEL LIMITED,,Small,,213089972,2100264489,Rail,Consolidated Monthly Travel April Rail,BD1 3AZ,"2,044.00",
Communities & Local Government,DCLG,16/05/2016,"Rail, Underground and Eurostar",Decentralisation and Local Growth,REDFERN TRAVEL LIMITED,,Small,,213089972,2100264489,Rail,Consolidated Monthly Travel April Rail,BD1 3AZ,"1,919.35",
Communities & Local Government,DCLG,16/05/2016,"Rail, Underground and Eurostar",Decentralisation and Local Growth,REDFERN TRAVEL LIMITED,,Small,,213089972,2100264489,Rail,Consolidated Monthly Travel April Rail,BD1 3AZ,"2,638.70",
Communities & Local Government,DCLG,16/05/2016,"Rail, Underground and Eurostar",Decentralisation and Local Growth,REDFERN TRAVEL LIMITED,,Small,,213089972,2100264489,Rail,Consolidated Monthly Travel April Rail,BD1 3AZ,"4,976.60",
Communities & Local Government,DCLG,16/05/2016,"Rail, Underground and Eurostar",Decentralisation and Local Growth,REDFERN TRAVEL LIMITED,,Small,,213089972,2100264489,Rail,Consolidated Monthly Travel April Rail,BD1 3AZ,"1,919.30",
Communities & Local Government,DCLG,16/05/2016,"Rail, Underground and Eurostar",Decentralisation and Local Growth,REDFERN TRAVEL LIMITED,,Small,,213089972,2100264489,Rail,Consolidated Monthly Travel April Rail,BD1 3AZ,"3,113.20",
Communities & Local Government,DCLG,16/05/2016,"Rail, Underground and Eurostar",Decentralisation and Local Growth,REDFERN TRAVEL LIMITED,,Small,,213089972,2100264489,Rail,Consolidated Monthly Travel April Rail,BD1 3AZ,"2,092.25",
Communities & Local Government,DCLG,16/05/2016,"Rail, Underground and Eurostar",Decentralisation and Local Growth,REDFERN TRAVEL LIMITED,,Small,,213089972,2100264489,Rail,Consolidated Monthly Travel April Rail,BD1 3AZ,"1,595.90",
Communities & Local Government,DCLG,16/05/2016,"Rail, Underground and Eurostar",Decentralisation and Local Growth,REDFERN TRAVEL LIMITED,,Small,,213089972,2100264489,Rail,Consolidated Monthly Travel April Rail,BD1 3AZ,"2,462.90",
Communities & Local Government,DCLG,16/05/2016,"Rail, Underground and Eurostar",Decentralisation and Local Growth,REDFERN TRAVEL LIMITED,,Small,,213089972,2100264489,Rail,Consolidated Monthly Travel April Rail,BD1 3AZ,"1,579.80",
Communities & Local Government,DCLG,16/05/2016,"Rail, Underground and Eurostar",Decentralisation and Local Growth,REDFERN TRAVEL LIMITED,,Small,,213089972,2100264489,Rail,Consolidated Monthly Travel April Rail,BD1 3AZ,"2,290.10",
Communities & Local Government,DCLG,16/05/2016,"Rail, Underground and Eurostar",Decentralisation and Local Growth,REDFERN TRAVEL LIMITED,,Small,,213089972,2100264489,Rail,Consolidated Monthly Travel April Rail,BD1 3AZ,"1,196.50",
Communities & Local Government,DCLG,16/05/2016,"Rail, Underground and Eurostar",Decentralisation and Local Growth,REDFERN TRAVEL LIMITED,,Small,,213089972,2100264489,Rail,Consolidated Monthly Travel April Rail,BD1 3AZ,978.9,
Communities & Local Government,DCLG,16/05/2016,"Rail, Underground and Eurostar",Decentralisation and Local Growth,REDFERN TRAVEL LIMITED,,Small,,213089972,2100264489,Rail,Consolidated Monthly Travel April Rail,BD1 3AZ,"2,122.10",
Communities & Local Government,DCLG,16/05/2016,"Rail, Underground and Eurostar",Decentralisation and Local Growth,REDFERN TRAVEL LIMITED,,Small,,213089972,2100264489,Rail,Consolidated Monthly Travel April Rail,BD1 3AZ,"7,383.80",
Communities & Local Government,DCLG,16/05/2016,"Rail, Underground and Eurostar",Decentralisation and Local Growth,REDFERN TRAVEL LIMITED,,Small,,213089972,2100264489,Rail,Consolidated Monthly Travel April Rail,BD1 3AZ,"1,394.60",
Communities & Local Government,DCLG,16/05/2016,"Rail, Underground and Eurostar",Decentralisation and Local Growth,REDFERN TRAVEL LIMITED,,Small,,213089972,2100264489,Rail,Consolidated Monthly Travel April Rail,BD1 3AZ,"1,491.10",
Communities & Local Government,DCLG,16/05/2016,"Rail, Underground and Eurostar",Decentralisation and Local Growth,REDFERN TRAVEL LIMITED,,Small,,213089972,2100264489,Rail,Consolidated Monthly Travel April Rail,BD1 3AZ,"5,703.10",
Communities & Local Government,DCLG,16/05/2016,"Rail, Underground and Eurostar",Finance,REDFERN TRAVEL LIMITED,,Small,,213089972,2100264489,Rail,Consolidated Monthly Travel April Rail,BD1 3AZ,297.9,
Communities & Local Government,DCLG,16/05/2016,"Rail, Underground and Eurostar",Finance,REDFERN TRAVEL LIMITED,,Small,,213089972,2100264489,Rail,Consolidated Monthly Travel April Rail,BD1 3AZ,515.7,
Communities & Local Government,DCLG,16/05/2016,"Rail, Underground and Eurostar",Finance,REDFERN TRAVEL LIMITED,,Small,,213089972,2100264489,Rail,Consolidated Monthly Travel April Rail,BD1 3AZ,"1,454.80",
Communities & Local Government,DCLG,16/05/2016,"Rail, Underground and Eurostar",Finance,REDFERN TRAVEL LIMITED,,Small,,213089972,2100264489,Rail,Consolidated Monthly Travel April Rail,BD1 3AZ,"5,035.16",
Communities & Local Government,DCLG,16/05/2016,"Rail, Underground and Eurostar",Finance,REDFERN TRAVEL LIMITED,,Small,,213089972,2100264489,Rail,Consolidated Monthly Travel April Rail,BD1 3AZ,481.3,
Communities & Local Government,DCLG,16/05/2016,"Rail, Underground and Eurostar",Finance,REDFERN TRAVEL LIMITED,,Small,,213089972,2100264489,Rail,Consolidated Monthly Travel April Rail,BD1 3AZ,718.9,
Communities & Local Government,DCLG,16/05/2016,"Rail, Underground and Eurostar",Finance,REDFERN TRAVEL LIMITED,,Small,,213089972,2100264489,Rail,Consolidated Monthly Travel April Rail,BD1 3AZ,"1,006.85",
Communities & Local Government,DCLG,16/05/2016,"Rail, Underground and Eurostar",Finance,REDFERN TRAVEL LIMITED,,Small,,213089972,2100264489,Rail,Consolidated Monthly Travel April Rail,BD1 3AZ,783.1,
Communities & Local Government,DCLG,16/05/2016,"Rail, Underground and Eurostar",Fire,REDFERN TRAVEL LIMITED,,Small,,213089972,2100264489,Rail,Consolidated Monthly Travel April Rail,BD1 3AZ,574.2,
Communities & Local Government,DCLG,16/05/2016,"Rail, Underground and Eurostar",Fire,REDFERN TRAVEL LIMITED,,Small,,213089972,2100264489,Rail,Consolidated Monthly Travel April Rail,BD1 3AZ,304.95,
Communities & Local Government,DCLG,16/05/2016,"Rail, Underground and Eurostar",Housing & Planning,REDFERN TRAVEL LIMITED,,Small,,213089972,2100264489,Rail,Consolidated Monthly Travel April Rail,BD1 3AZ,"1,035.00",
Communities & Local Government,DCLG,16/05/2016,"Rail, Underground and Eurostar",Housing & Planning,REDFERN TRAVEL LIMITED,,Small,,213089972,2100264489,Rail,Consolidated Monthly Travel April Rail,BD1 3AZ,585.3,
Communities & Local Government,DCLG,16/05/2016,"Rail, Underground and Eurostar",Housing & Planning,REDFERN TRAVEL LIMITED,,Small,,213089972,2100264489,Rail,Consolidated Monthly Travel April Rail,BD1 3AZ,"1,256.16",
Communities & Local Government,DCLG,16/05/2016,"Rail, Underground and Eurostar",Housing & Planning,REDFERN TRAVEL LIMITED,,Small,,213089972,2100264489,Rail,Consolidated Monthly Travel April Rail,BD1 3AZ,"2,237.70",
Communities & Local Government,DCLG,16/05/2016,"Rail, Underground and Eurostar",Housing & Planning,REDFERN TRAVEL LIMITED,,Small,,213089972,2100264489,Rail,Consolidated Monthly Travel April Rail,BD1 3AZ,"2,303.80",
Communities & Local Government,DCLG,16/05/2016,"Rail, Underground and Eurostar",Housing & Planning,REDFERN TRAVEL LIMITED,,Small,,213089972,2100264489,Rail,Consolidated Monthly Travel April Rail,BD1 3AZ,400.2,
Communities & Local Government,DCLG,16/05/2016,"Rail, Underground and Eurostar",Housing & Planning,REDFERN TRAVEL LIMITED,,Small,,213089972,2100264489,Rail,Consolidated Monthly Travel April Rail,BD1 3AZ,"2,826.65",
Communities & Local Government,DCLG,16/05/2016,"Rail, Underground and Eurostar",Housing & Planning,REDFERN TRAVEL LIMITED,,Small,,213089972,2100264489,Rail,Consolidated Monthly Travel April Rail,BD1 3AZ,262.7,
Communities & Local Government,DCLG,16/05/2016,"Rail, Underground and Eurostar",Local Government & Public Services,REDFERN TRAVEL LIMITED,,Small,,213089972,2100264489,Rail,Consolidated Monthly Travel April Rail,BD1 3AZ,"2,179.85",
Communities & Local Government,DCLG,16/05/2016,"Rail, Underground and Eurostar",Local Government & Public Services,REDFERN TRAVEL LIMITED,,Small,,213089972,2100264489,Rail,Consolidated Monthly Travel April Rail,BD1 3AZ,593.4,
Communities & Local Government,DCLG,16/05/2016,"Rail, Underground and Eurostar",Local Government & Public Services,REDFERN TRAVEL LIMITED,,Small,,213089972,2100264489,Rail,Consolidated Monthly Travel April Rail,BD1 3AZ,"2,522.10",
Communities & Local Government,DCLG,16/05/2016,"Rail, Underground and Eurostar",Local Government & Public Services,REDFERN TRAVEL LIMITED,,Small,,213089972,2100264489,Rail,Consolidated Monthly Travel April Rail,BD1 3AZ,"3,257.75",
Communities & Local Government,DCLG,16/05/2016,"Rail, Underground and Eurostar",Local Government & Public Services,REDFERN TRAVEL LIMITED,,Small,,213089972,2100264489,Rail,Consolidated Monthly Travel April Rail,BD1 3AZ,"1,707.10",
Communities & Local Government,DCLG,16/05/2016,"Rail, Underground and Eurostar",Local Government & Public Services,REDFERN TRAVEL LIMITED,,Small,,213089972,2100264489,Rail,Consolidated Monthly Travel April Rail,BD1 3AZ,"3,208.50",
Communities & Local Government,DCLG,16/05/2016,"Rail, Underground and Eurostar",Local Government & Public Services,REDFERN TRAVEL LIMITED,,Small,,213089972,2100264489,Rail,Consolidated Monthly Travel April Rail,BD1 3AZ,544.35,
Communities & Local Government,DCLG,16/05/2016,"Rail, Underground and Eurostar",Local Government & Public Services,REDFERN TRAVEL LIMITED,,Small,,213089972,2100264489,Rail,Consolidated Monthly Travel April Rail,BD1 3AZ,764,
Communities & Local Government,DCLG,16/05/2016,"Rail, Underground and Eurostar",Local Government & Public Services,REDFERN TRAVEL LIMITED,,Small,,213089972,2100264489,Rail,Consolidated Monthly Travel April Rail,BD1 3AZ,"2,495.20",
Communities & Local Government,DCLG,16/05/2016,"Rail, Underground and Eurostar",Local Government & Public Services,REDFERN TRAVEL LIMITED,,Small,,213089972,2100264489,Rail,Consolidated Monthly Travel April Rail,BD1 3AZ,"1,462.10",
Communities & Local Government,DCLG,16/05/2016,"Rail, Underground and Eurostar",Local Government & Public Services,REDFERN TRAVEL LIMITED,,Small,,213089972,2100264489,Rail,Consolidated Monthly Travel April Rail,BD1 3AZ,"1,158.00",
Communities & Local Government,DCLG,16/05/2016,"Rail, Underground and Eurostar",Local Government & Public Services,REDFERN TRAVEL LIMITED,,Small,,213089972,2100264489,Rail,Consolidated Monthly Travel April Rail,BD1 3AZ,"1,036.00",
Communities & Local Government,DCLG,16/05/2016,"Rail, Underground and Eurostar",Local Government & Public Services,REDFERN TRAVEL LIMITED,,Small,,213089972,2100264489,Rail,Consolidated Monthly Travel April Rail,BD1 3AZ,411,
Communities & Local Government,DCLG,16/05/2016,"Rail, Underground and Eurostar",Local Government & Public Services,REDFERN TRAVEL LIMITED,,Small,,213089972,2100264489,Rail,Consolidated Monthly Travel April Rail,BD1 3AZ,"2,235.50",
Communities & Local Government,DCLG,16/05/2016,"Rail, Underground and Eurostar","Strategy, Communications and Private Office",REDFERN TRAVEL LIMITED,,Small,,213089972,2100264489,Rail,Consolidated Monthly Travel April Rail,BD1 3AZ,270.7,
Communities & Local Government,DCLG,16/05/2016,"Rail, Underground and Eurostar","Strategy, Communications and Private Office",REDFERN TRAVEL LIMITED,,Small,,213089972,2100264489,Rail,Consolidated Monthly Travel April Rail,BD1 3AZ,491.4,
Communities & Local Government,DCLG,16/05/2016,"Rail, Underground and Eurostar","Strategy, Communications and Private Office",REDFERN TRAVEL LIMITED,,Small,,213089972,2100264489,Rail,Consolidated Monthly Travel April Rail,BD1 3AZ,384.3,
Communities & Local Government,DCLG,16/05/2016,"Rail, Underground and Eurostar","Strategy, Communications and Private Office",REDFERN TRAVEL LIMITED,,Small,,213089972,2100264489,Rail,Consolidated Monthly Travel April Rail,BD1 3AZ,"1,123.70",
Communities & Local Government,DCLG,16/05/2016,"Rail, Underground and Eurostar","Strategy, Communications and Private Office",REDFERN TRAVEL LIMITED,,Small,,213089972,2100264489,Rail,Consolidated Monthly Travel April Rail,BD1 3AZ,563.4,
Communities & Local Government,DCLG,16/05/2016,"Rail, Underground and Eurostar","Strategy, Communications and Private Office",REDFERN TRAVEL LIMITED,,Small,,213089972,2100264489,Rail,Consolidated Monthly Travel April Rail,BD1 3AZ,"1,162.20",
Communities & Local Government,DCLG,16/05/2016,Software Licences,Local Government & Public Services,S A S SOFTWARE LTD,,Large,,225293703,5106221793,Software,Renewal - Software licences,SL7 2EB,"8,496.00",
Communities & Local Government,DCLG,16/05/2016,Travel and Subsistence Account,Housing & Planning,REDFERN TRAVEL LIMITED,,Small,,213089972,2100264489,Business Travel,Consolidated Monthly Travel April Misc T&S,BD1 3AZ,270.13,
Communities & Local Government,DCLG,16/05/2016,Vehicle hire,"Strategy, Communications and Private Office",GOVERNMENT CAR & DESPATCH AGENCY,,Public Bodies,,,5106221789,Vehicle Hire and Lease,Ministerial Duty Car 1 (LT118) 2015-16,SW8 5AX,392.67,
Communities & Local Government,DCLG,16/05/2016,Work In Progress Pre-Cert 40373 Spend,Decentralisation and Local Growth,LEICESTER UNIVERSITY,,Large,,,7600015385,,Revenue Grant Clawback Offset,LE1 7RH,"-2,870.00",Yes
Communities & Local Government,DCLG,16/05/2016,Work In Progress Pre-Cert 40373 Spend,Decentralisation and Local Growth,LEICESTER UNIVERSITY,,Large,,,7600015385,,Revenue Grant To Be Paid,LE1 7RH,"13,717.00",Yes
Communities & Local Government,DCLG,17/05/2016,ERDF Match current  grant (NPISH),Decentralisation and Local Growth,ROBOTMOTHER LTD,,Small,,,2100264552,,SW GDT ERDF Match Funding Payment - 500036,TR10 8AE,"16,166.45",
Communities & Local Government,DCLG,17/05/2016,"IT - PC, Network & Hardware",Finance,WELLESLEY INFORMATION SERVICES,,Large,,940293111,5106221762,Software,2 User Licences for SAP Expert BI,21279-9514,884.89,
Communities & Local Government,DCLG,17/05/2016,Media,"Strategy, Communications and Private Office",EMPLOYEE EXPENSES,,,,,2100264546,,Official Travel and Subsistence,,474,
Communities & Local Government,DCLG,17/05/2016,Online Database Information Retrieval,Finance,HAYMARKET MEDIA GROUP LTD,,Large,,,5106221811,ICT Services,ENDS Report Subs. print/on-line 2016/17,NN4 7XD,"1,135.80",
Communities & Local Government,DCLG,17/05/2016,Printing,"Strategy, Communications and Private Office",STATIONERY OFFICE LTD,,Large,,779375633,5106221785,Printing Services,Statutory Instruments Print: Non-Vatable,NR3 1PD,165,
Communities & Local Government,DCLG,17/05/2016,Printing,"Strategy, Communications and Private Office",STATIONERY OFFICE LTD,,Large,,779375633,5106221785,Printing Services,Statutory Instruments Print: Vatable,NR3 1PD,130,
Communities & Local Government,DCLG,17/05/2016,Publications,Finance,DCLG GOVERNMENT PROCUREMENT CARD,,,,,1000004116,Learning and Development Materials,training course for 2 - FOI seminar,TN37 7GA,385,
Communities & Local Government,DCLG,17/05/2016,Rent,Finance,HAMPTONS INTERNATIONAL LTD,,Large,,,2100264547,Business Support,Reasonable Adjustment Support,W1D 1NN,"1,695.00",
Communities & Local Government,DCLG,17/05/2016,Steady State Service Provision,Housing & Planning,LOCALITY,,Medium,,347998312,5106221805,Business Process Outsourcing Services,Neighbourhood Planning & CRTB,N1 6DR,"36,792.88",
Communities & Local Government,DCLG,17/05/2016,Steady State Service Provision,Local Government & Public Services,LOCALITY,,Medium,,347998312,5106221806,Business Process Outsourcing Services,Lot 3 Our Place and First Steps,N1 6DR,"22,500.00",
Communities & Local Government,DCLG,17/05/2016,Training,Finance,CAPITA BUS. SERV. LTD (CSL),,Large,,215580993,5106221797,Development and Training,Lean Six Sigma levels Scheme,DL1 9HB,"8,536.59",
Communities & Local Government,DCLG,17/05/2016,Training,Finance,CAPITA BUS. SERV. LTD (CSL),,Large,,215580993,5106221803,Development and Training,360 Degree Survey: Deputy Directors (Rep,DL1 9HB,"2,290.90",
Communities & Local Government,DCLG,17/05/2016,Training,Finance,YOUNG PROGRAMME EVENTS LTD,,Micro,,,5106221779,Development and Training,Young England and Wales Programme,KA9 2PT,"5,750.00",
Communities & Local Government,DCLG,17/05/2016,Travel and Subsistence Account,Local Government & Public Services,NATURAL ENGLAND,,Public Bodies,,212444538,5106221819,Not Addressable,T&S,YO1 7PX,"3,926.23",
Communities & Local Government,DCLG,18/05/2016,IT - Service Contracts,Finance,MARKLOGIC CORPORATION,,Large,,,5106221828,IT Managed / Outsourced Services,CPD4109106AS3 Beta Development Charges,CA 94070,"234,553.13",
Communities & Local Government,DCLG,18/05/2016,Professional services,Decentralisation and Local Growth,GVA GRIMLEY LTD,,Large,,210158990,5106221721,Financial,GVA valuation commission CPD-4-109-020-0,B1 2JB,"3,000.00",
Communities & Local Government,DCLG,18/05/2016,Travel and Subsistence Account,Decentralisation and Local Growth,EMPLOYEE EXPENSES,,,,,2100264597,Business Travel,Official Travel and Subsistence,,372.45,
Communities & Local Government,DCLG,18/05/2016,Work In Progress Pre-Cert 40373 Spend,Decentralisation and Local Growth,READING BOROUGH COUNCIL,,Large,,,2300002366,,Recovery of payment,RG1 7TD,"-5,802.04",Yes
Communities & Local Government,DCLG,18/05/2016,Work In Progress Pre-Cert 40467 Spend,Decentralisation and Local Growth,KROWJI LTD,,,,,7600015386,,Capital Grant To Be Paid,TR15 3AJ,"129,851.20",Yes
Communities & Local Government,DCLG,18/05/2016,Work In Progress Pre-Cert 40467 Spend,Decentralisation and Local Growth,KROWJI LTD,,,,,7600015387,,Capital Grant To Be Paid,TR15 3AJ,"47,915.24",Yes
Communities & Local Government,DCLG,18/05/2016,Work In Progress Pre-Cert 40467 Spend,Decentralisation and Local Growth,KROWJI LTD,,,,,7600015388,,Capital Grant To Be Paid,TR15 3AJ,"52,464.94",Yes
Communities & Local Government,DCLG,18/05/2016,Work In Progress Pre-Cert 40467 Spend,Decentralisation and Local Growth,ROBOTMOTHER LTD,,Small,,,7600015389,,Capital Grant To Be Paid,TR10 8AE,"33,973.95",Yes
Communities & Local Government,DCLG,19/05/2016,Business Rates Retention Tariffs,Local Government & Public Services,HERTFORDSHIRE COUNTY CNCL,,,,,5000331460,,Grant Payable by Exchequer,SG13 9BD,"-568,774.00",Yes
Communities & Local Government,DCLG,19/05/2016,Business Rates Retention Tariffs,Local Government & Public Services,SUFFOLK COUNTY CNCL,,Public Bodies,,232767710,5000331741,,Grant Payable by Exchequer,IP4 2JP,"-870,041.00",Yes
Communities & Local Government,DCLG,19/05/2016,Business Rates Retention Tariffs,Local Government & Public Services,WARWICKSHIRE COUNTY CNCL,,,,210396290,5000331621,,Grant Payable by Exchequer,CV34 4RH,"-2,575,571.00",Yes
Communities & Local Government,DCLG,19/05/2016,Cur Grant (Non AEF) to Local Authority,Local Government & Public Services,BARKING & DAGENHAM LB,,Public Bodies,,227419488,5000331396,,Grant Payable by Exchequer,RM10 7BY,"142,822.00",Yes
Communities & Local Government,DCLG,19/05/2016,Cur Grant (Non AEF) to Local Authority,Local Government & Public Services,BARNET LBC,,,,211049507,5000331397,,Grant Payable by Exchequer,N11 1NP,"345,407.00",Yes
Communities & Local Government,DCLG,19/05/2016,Cur Grant (Non AEF) to Local Authority,Local Government & Public Services,BARNET LBC,,,,211049507,5000331397,,Grant Payable by Exchequer,N11 1NP,"338,987.00",Yes
Communities & Local Government,DCLG,19/05/2016,Cur Grant (Non AEF) to Local Authority,Local Government & Public Services,BARNSLEY MBC,,Public Bodies,,211178595,5000331399,,Grant Payable by Exchequer,S70 2AQ,"8,325.00",Yes
Communities & Local Government,DCLG,19/05/2016,Cur Grant (Non AEF) to Local Authority,Local Government & Public Services,BEXLEY LB,,,,,5000331415,,Grant Payable by Exchequer,DA8 1TL,"92,191.00",Yes
Communities & Local Government,DCLG,19/05/2016,Cur Grant (Non AEF) to Local Authority,Local Government & Public Services,BIRMINGHAM CITY CNCL,,,,213780559,5000331417,,Grant Payable by Exchequer,B3 3AB,"887,309.00",Yes
Communities & Local Government,DCLG,19/05/2016,Cur Grant (Non AEF) to Local Authority,Local Government & Public Services,BIRMINGHAM CITY CNCL,,,,213780559,5000331417,,Grant Payable by Exchequer,B3 3AB,"761,881.00",Yes
Communities & Local Government,DCLG,19/05/2016,Cur Grant (Non AEF) to Local Authority,Local Government & Public Services,BLACKPOOL BC,,,,,5000331424,,Grant Payable by Exchequer,FY1 1NA,"265,623.00",Yes
Communities & Local Government,DCLG,19/05/2016,Cur Grant (Non AEF) to Local Authority,Local Government & Public Services,BOLTON MBC,,,,,5000331429,,Grant Payable by Exchequer,BL1 1RU,"473,417.00",Yes
Communities & Local Government,DCLG,19/05/2016,Cur Grant (Non AEF) to Local Authority,Local Government & Public Services,BRADFORD MBC,,,,,5000331437,,Grant Payable by Exchequer,BD1 1HX,"476,670.00",Yes
Communities & Local Government,DCLG,19/05/2016,Cur Grant (Non AEF) to Local Authority,Local Government & Public Services,BRADFORD MBC,,,,,5000331437,,Grant Payable by Exchequer,BD1 1HX,"476,941.00",Yes
Communities & Local Government,DCLG,19/05/2016,Cur Grant (Non AEF) to Local Authority,Local Government & Public Services,BRENT LB,,,,,5000331443,,Grant Payable by Exchequer,HA9 9EZ,"145,334.00",Yes
Communities & Local Government,DCLG,19/05/2016,Cur Grant (Non AEF) to Local Authority,Local Government & Public Services,CITY OF LINCOLN COUNCIL,,,,,5000331528,,Grant Payable by Exchequer,LN1 1DB,"91,335.00",Yes
Communities & Local Government,DCLG,19/05/2016,Cur Grant (Non AEF) to Local Authority,Local Government & Public Services,CITY OF LINCOLN COUNCIL,,,,,5000331528,,Grant Payable by Exchequer,LN1 1DB,"64,647.00",Yes
Communities & Local Government,DCLG,19/05/2016,Cur Grant (Non AEF) to Local Authority,Local Government & Public Services,CORNWALL COUNCIL,,,,211334404,5000331657,,Grant Payable by Exchequer,TR1 3AY,"76,626.00",Yes
Communities & Local Government,DCLG,19/05/2016,Cur Grant (Non AEF) to Local Authority,Local Government & Public Services,CROYDON LB,,,,212419973,5000331527,,Grant Payable by Exchequer,CR9 3JS,"666,654.00",Yes
Communities & Local Government,DCLG,19/05/2016,Cur Grant (Non AEF) to Local Authority,Local Government & Public Services,CROYDON LB,,,,212419973,5000331527,,Grant Payable by Exchequer,CR9 3JS,"117,048.00",Yes
Communities & Local Government,DCLG,19/05/2016,Cur Grant (Non AEF) to Local Authority,Local Government & Public Services,DARLINGTON BC,,,,,5000331533,,Grant Payable by Exchequer,TS19 1JA,"79,212.00",Yes
Communities & Local Government,DCLG,19/05/2016,Cur Grant (Non AEF) to Local Authority,Local Government & Public Services,DARLINGTON BC,,,,,5000331533,,Grant Payable by Exchequer,TS19 1JA,"34,717.00",Yes
Communities & Local Government,DCLG,19/05/2016,Cur Grant (Non AEF) to Local Authority,Local Government & Public Services,DERBY CITY CNCL,,,,229641378,5000331539,,Grant Payable by Exchequer,DE1 2FS,"22,445.00",Yes
Communities & Local Government,DCLG,19/05/2016,Cur Grant (Non AEF) to Local Authority,Local Government & Public Services,DONCASTER MBC,,,,,5000331550,,Grant Payable by Exchequer,DN1 3QA,"126,868.00",Yes
Communities & Local Government,DCLG,19/05/2016,Cur Grant (Non AEF) to Local Authority,Local Government & Public Services,DUDLEY MBC,,,,,5000331556,,Grant Payable by Exchequer,DY1 1HF,"209,826.00",Yes
Communities & Local Government,DCLG,19/05/2016,Cur Grant (Non AEF) to Local Authority,Local Government & Public Services,DURHAM COUNTY COUNCIL,,,,228453601,5000331658,,Grant Payable by Exchequer,DH1 5UE,"347,555.00",Yes
Communities & Local Government,DCLG,19/05/2016,Cur Grant (Non AEF) to Local Authority,Local Government & Public Services,ENFIELD LB,,,,,5000331592,,Grant Payable by Exchequer,EN1 3XF,"232,244.00",Yes
Communities & Local Government,DCLG,19/05/2016,Cur Grant (Non AEF) to Local Authority,Local Government & Public Services,GATESHEAD COUNCIL,,,,216116041,5000331406,,Grant Payable by Exchequer,NE8 1HH,"144,019.00",Yes
Communities & Local Government,DCLG,19/05/2016,Cur Grant (Non AEF) to Local Authority,Local Government & Public Services,GATESHEAD COUNCIL,,,,216116041,5000331406,,Grant Payable by Exchequer,NE8 1HH,"126,113.00",Yes
Communities & Local Government,DCLG,19/05/2016,Cur Grant (Non AEF) to Local Authority,Local Government & Public Services,GREENWICH LB,,,,,5000331421,,Grant Payable by Exchequer,SE18 6HQ,"122,023.00",Yes
Communities & Local Government,DCLG,19/05/2016,Cur Grant (Non AEF) to Local Authority,Local Government & Public Services,GREENWICH LB,,,,,5000331421,,Grant Payable by Exchequer,SE18 6HQ,"25,082.00",Yes
Communities & Local Government,DCLG,19/05/2016,Cur Grant (Non AEF) to Local Authority,Local Government & Public Services,HARINGEY LB,,,,217471767,5000331438,,Grant Payable by Exchequer,N22 7TR,"20,785.00",Yes
Communities & Local Government,DCLG,19/05/2016,Cur Grant (Non AEF) to Local Authority,Local Government & Public Services,HARINGEY LB,,,,217471767,5000331438,,Grant Payable by Exchequer,N22 7TR,"397,628.00",Yes
Communities & Local Government,DCLG,19/05/2016,Cur Grant (Non AEF) to Local Authority,Local Government & Public Services,HARROW LB,,,,,5000331444,,Grant Payable by Exchequer,HA1 2UZ,"147,781.00",Yes
Communities & Local Government,DCLG,19/05/2016,Cur Grant (Non AEF) to Local Authority,Local Government & Public Services,HARTLEPOOL BOROUGH COUNCIL,,,,424291797,5000331448,,Grant Payable by Exchequer,TS24 8AY,"21,820.00",Yes
Communities & Local Government,DCLG,19/05/2016,Cur Grant (Non AEF) to Local Authority,Local Government & Public Services,HARTLEPOOL BOROUGH COUNCIL,,,,424291797,5000331448,,Grant Payable by Exchequer,TS24 8AY,"2,078,793.00",Yes
Communities & Local Government,DCLG,19/05/2016,Cur Grant (Non AEF) to Local Authority,Local Government & Public Services,HEREFORDSHIRE DISTRICT COUNCIL,,,,211510826,5000331458,,Grant Payable by Exchequer,HR1 1SH,"2,212.00",Yes
Communities & Local Government,DCLG,19/05/2016,Cur Grant (Non AEF) to Local Authority,Local Government & Public Services,HEREFORDSHIRE DISTRICT COUNCIL,,,,211510826,5000331458,,Grant Payable by Exchequer,HR1 1SH,"229,752.00",Yes
Communities & Local Government,DCLG,19/05/2016,Cur Grant (Non AEF) to Local Authority,Local Government & Public Services,HULL CITY COUNCIL,,,,217460984,5000331498,,Grant Payable by Exchequer,HU1 2AA,"172,037.00",Yes
Communities & Local Government,DCLG,19/05/2016,Cur Grant (Non AEF) to Local Authority,Local Government & Public Services,ISLE OF WIGHT CNCL,,,,236431730,5000331481,,Grant Payable by Exchequer,PO30 1UD,"113,191.00",Yes
Communities & Local Government,DCLG,19/05/2016,Cur Grant (Non AEF) to Local Authority,Local Government & Public Services,ISLE OF WIGHT CNCL,,,,236431730,5000331481,,Grant Payable by Exchequer,PO30 1UD,"69,765.00",Yes
Communities & Local Government,DCLG,19/05/2016,Cur Grant (Non AEF) to Local Authority,Local Government & Public Services,ISLES OF SCILLY COUNCIL,,,,214146040,5000331485,,Grant Payable by Exchequer,TR21 0LW,"3,392.00",Yes
Communities & Local Government,DCLG,19/05/2016,Cur Grant (Non AEF) to Local Authority,Local Government & Public Services,KNOWSLEY MBC,,,,,5000331504,,Grant Payable by Exchequer,L36 9YZ,"487,665.00",Yes
Communities & Local Government,DCLG,19/05/2016,Cur Grant (Non AEF) to Local Authority,Local Government & Public Services,LEICESTER CITY CNCL,,,,228219960,5000331516,,Grant Payable by Exchequer,LE1 1FZ,"87,176.00",Yes
Communities & Local Government,DCLG,19/05/2016,Cur Grant (Non AEF) to Local Authority,Local Government & Public Services,LEICESTER CITY CNCL,,,,228219960,5000331516,,Grant Payable by Exchequer,LE1 1FZ,"389,775.00",Yes
Communities & Local Government,DCLG,19/05/2016,Cur Grant (Non AEF) to Local Authority,Local Government & Public Services,LEWISHAM LONDON BOROUGH,,Large,,235653300,5000331524,,Grant Payable by Exchequer,SE6 4RU,"235,857.00",Yes
Communities & Local Government,DCLG,19/05/2016,Cur Grant (Non AEF) to Local Authority,Local Government & Public Services,LIVERPOOL CITY COUNCIL,,,,,5000331532,,Grant Payable by Exchequer,L2 2DH,"363,282.00",Yes
Communities & Local Government,DCLG,19/05/2016,Cur Grant (Non AEF) to Local Authority,Local Government & Public Services,LIVERPOOL CITY COUNCIL,,,,,5000331532,,Grant Payable by Exchequer,L2 2DH,"465,874.00",Yes
Communities & Local Government,DCLG,19/05/2016,Cur Grant (Non AEF) to Local Authority,Local Government & Public Services,LONDON BOROUGH OF HACKNEY,,,,225221597,5000331425,,Grant Payable by Exchequer,E8 4RU,"76,431.00",Yes
Communities & Local Government,DCLG,19/05/2016,Cur Grant (Non AEF) to Local Authority,Local Government & Public Services,LONDON BOROUGH OF HACKNEY,,,,225221597,5000331425,,Grant Payable by Exchequer,E8 4RU,"410,789.00",Yes
Communities & Local Government,DCLG,19/05/2016,Cur Grant (Non AEF) to Local Authority,Local Government & Public Services,LONDON BOROUGH OF LAMBETH,,,,228216479,5000331506,,Grant Payable by Exchequer,SW2 1RL,"207,494.00",Yes
Communities & Local Government,DCLG,19/05/2016,Cur Grant (Non AEF) to Local Authority,Local Government & Public Services,LONDON BOROUGH OF LAMBETH,,,,228216479,5000331506,,Grant Payable by Exchequer,SW2 1RL,"419,384.00",Yes
Communities & Local Government,DCLG,19/05/2016,Cur Grant (Non AEF) to Local Authority,Local Government & Public Services,LONDON BOROUGH OF NEWHAM,,Large,,228454344,5000331581,,Grant Payable by Exchequer,E16 2QU,"531,939.00",Yes
Communities & Local Government,DCLG,19/05/2016,Cur Grant (Non AEF) to Local Authority,Local Government & Public Services,LONDON BOROUGH OF REDBRIDGE,,,,211341417,5000331677,,Grant Payable by Exchequer,IG1 1NN,"118,028.00",Yes
Communities & Local Government,DCLG,19/05/2016,Cur Grant (Non AEF) to Local Authority,Local Government & Public Services,LUTON BC,,,,365112155,5000331534,,Grant Payable by Exchequer,LU1 2BQ,"62,722.00",Yes
Communities & Local Government,DCLG,19/05/2016,Cur Grant (Non AEF) to Local Authority,Local Government & Public Services,MANCHESTER CITY CNCL,,,,211241393,5000331542,,Grant Payable by Exchequer,M60 2JR,"818,096.00",Yes
Communities & Local Government,DCLG,19/05/2016,Cur Grant (Non AEF) to Local Authority,Local Government & Public Services,MIDDLESBROUGH BC,,,,,5000331565,,Grant Payable by Exchequer,TS1 9GA,"8,205.00",Yes
Communities & Local Government,DCLG,19/05/2016,Cur Grant (Non AEF) to Local Authority,Local Government & Public Services,MIDDLESBROUGH BC,,,,,5000331565,,Grant Payable by Exchequer,TS1 9GA,"52,991.00",Yes
Communities & Local Government,DCLG,19/05/2016,Cur Grant (Non AEF) to Local Authority,Local Government & Public Services,NORTH TYNESIDE MBC,,,,,5000331602,,Grant Payable by Exchequer,NE27 0BY,"123,865.00",Yes
Communities & Local Government,DCLG,19/05/2016,Cur Grant (Non AEF) to Local Authority,Local Government & Public Services,NORTHUMBERLAND COUNTY COUNCIL,,,,210308905,5000331659,,Grant Payable by Exchequer,NE61 2EF,"65,944.00",Yes
Communities & Local Government,DCLG,19/05/2016,Cur Grant (Non AEF) to Local Authority,Local Government & Public Services,NORTHUMBERLAND COUNTY COUNCIL,,,,210308905,5000331659,,Grant Payable by Exchequer,NE61 2EF,"73,773.00",Yes
Communities & Local Government,DCLG,19/05/2016,Cur Grant (Non AEF) to Local Authority,Local Government & Public Services,NOTTINGHAM CITY COUNCIL,,,,214495447,5000331611,,Grant Payable by Exchequer,NG2 3NG,"100,069.00",Yes
Communities & Local Government,DCLG,19/05/2016,Cur Grant (Non AEF) to Local Authority,Local Government & Public Services,NOTTINGHAM CITY COUNCIL,,,,214495447,5000331611,,Grant Payable by Exchequer,NG2 3NG,"85,211.00",Yes
Communities & Local Government,DCLG,19/05/2016,Cur Grant (Non AEF) to Local Authority,Local Government & Public Services,OLDHAM MBC,,,,213015574,5000331666,,Grant Payable by Exchequer,OL1 1UH,"172,344.00",Yes
Communities & Local Government,DCLG,19/05/2016,Cur Grant (Non AEF) to Local Authority,Local Government & Public Services,OLDHAM MBC,,,,213015574,5000331666,,Grant Payable by Exchequer,OL1 1UH,"81,122.00",Yes
Communities & Local Government,DCLG,19/05/2016,Cur Grant (Non AEF) to Local Authority,Local Government & Public Services,PLYMOUTH CITY COUNCIL,,Public Bodies,,236416095,5000331671,,Grant Payable by Exchequer,PL1 2AA,"75,709.00",Yes
Communities & Local Government,DCLG,19/05/2016,Cur Grant (Non AEF) to Local Authority,Local Government & Public Services,REDCAR & CLEVELAND BOROUGH COUNCIL,,,,215175196,5000331678,,Grant Payable by Exchequer,TS6 9AR,"362,664.00",Yes
Communities & Local Government,DCLG,19/05/2016,Cur Grant (Non AEF) to Local Authority,Local Government & Public Services,REDCAR & CLEVELAND BOROUGH COUNCIL,,,,215175196,5000331678,,Grant Payable by Exchequer,TS6 9AR,"553,243.00",Yes
Communities & Local Government,DCLG,19/05/2016,Cur Grant (Non AEF) to Local Authority,Local Government & Public Services,RIBBLE VALLEY BC,,,,232617894,5000331681,,Grant Payable by Exchequer,BB7 2RA,"45,937.00",Yes
Communities & Local Government,DCLG,19/05/2016,Cur Grant (Non AEF) to Local Authority,Local Government & Public Services,RIBBLE VALLEY BC,,,,232617894,5000331681,,Grant Payable by Exchequer,BB7 2RA,"1,391.00",Yes
Communities & Local Government,DCLG,19/05/2016,Cur Grant (Non AEF) to Local Authority,Local Government & Public Services,ROCHDALE MBC,,,,,5000331684,,Grant Payable by Exchequer,OL16 1YG,"180,487.00",Yes
Communities & Local Government,DCLG,19/05/2016,Cur Grant (Non AEF) to Local Authority,Local Government & Public Services,ROTHERHAM MBC,,,,211266937,5000331688,,Grant Payable by Exchequer,S60 1AE,"54,131.00",Yes
Communities & Local Government,DCLG,19/05/2016,Cur Grant (Non AEF) to Local Authority,Local Government & Public Services,ROTHERHAM MBC,,,,211266937,5000331688,,Grant Payable by Exchequer,S60 1AE,"23,072.00",Yes
Communities & Local Government,DCLG,19/05/2016,Cur Grant (Non AEF) to Local Authority,Local Government & Public Services,SALFORD CITY CNCL,,,,213180073,5000331695,,Grant Payable by Exchequer,M27 5AW,"261,461.00",Yes
Communities & Local Government,DCLG,19/05/2016,Cur Grant (Non AEF) to Local Authority,Local Government & Public Services,SALFORD CITY CNCL,,,,213180073,5000331695,,Grant Payable by Exchequer,M27 5AW,"59,968.00",Yes
Communities & Local Government,DCLG,19/05/2016,Cur Grant (Non AEF) to Local Authority,Local Government & Public Services,SANDWELL MBC,,,,,5000331696,,Grant Payable by Exchequer,B69 3DE,"51,016.00",Yes
Communities & Local Government,DCLG,19/05/2016,Cur Grant (Non AEF) to Local Authority,Local Government & Public Services,SANDWELL MBC,,,,,5000331696,,Grant Payable by Exchequer,B69 3DE,"99,315.00",Yes
Communities & Local Government,DCLG,19/05/2016,Cur Grant (Non AEF) to Local Authority,Local Government & Public Services,SEFTON MBC,,,,232936125,5000331699,,Grant Payable by Exchequer,L20 3AB,"46,758.00",Yes
Communities & Local Government,DCLG,19/05/2016,Cur Grant (Non AEF) to Local Authority,Local Government & Public Services,SHEFFIELD CITY CNCL,,Large,,,5000331702,,Grant Payable by Exchequer,S1 1UJ,"343,052.00",Yes
Communities & Local Government,DCLG,19/05/2016,Cur Grant (Non AEF) to Local Authority,Local Government & Public Services,SHEFFIELD CITY CNCL,,Large,,,5000331702,,Grant Payable by Exchequer,S1 1UJ,"106,305.00",Yes
Communities & Local Government,DCLG,19/05/2016,Cur Grant (Non AEF) to Local Authority,Local Government & Public Services,SHROPSHIRE COUNCIL,,Large,,217036490,5000331660,,Grant Payable by Exchequer,SY2 6ND,"478,225.00",Yes
Communities & Local Government,DCLG,19/05/2016,Cur Grant (Non AEF) to Local Authority,Local Government & Public Services,SHROPSHIRE COUNCIL,,Large,,217036490,5000331660,,Grant Payable by Exchequer,SY2 6ND,"386,683.00",Yes
Communities & Local Government,DCLG,19/05/2016,Cur Grant (Non AEF) to Local Authority,Local Government & Public Services,SOUTH TYNESIDE COUNCIL,,,,345736438,5000331722,,Grant Payable by Exchequer,NE33 2RL,"32,498.00",Yes
Communities & Local Government,DCLG,19/05/2016,Cur Grant (Non AEF) to Local Authority,Local Government & Public Services,SOUTHEND ON SEA BC,,,,217067263,5000331725,,Grant Payable by Exchequer,SS2 6EP,"39,892.00",Yes
Communities & Local Government,DCLG,19/05/2016,Cur Grant (Non AEF) to Local Authority,Local Government & Public Services,SOUTHWARK LB,,,,,5000331726,,Grant Payable by Exchequer,SE1P 5LX,"297,898.00",Yes
Communities & Local Government,DCLG,19/05/2016,Cur Grant (Non AEF) to Local Authority,Local Government & Public Services,SOUTHWARK LB,,,,,5000331726,,Grant Payable by Exchequer,SE1P 5LX,"359,430.00",Yes
Communities & Local Government,DCLG,19/05/2016,Cur Grant (Non AEF) to Local Authority,Local Government & Public Services,ST HELENS MBC,,,,,5000331730,,Grant Payable by Exchequer,WA10 1HP,"5,579.00",Yes
Communities & Local Government,DCLG,19/05/2016,Cur Grant (Non AEF) to Local Authority,Local Government & Public Services,STOKE ON TRENT CITY COUNCIL,,,,216037890,5000331738,,Grant Payable by Exchequer,ST4 1HH,"223,414.00",Yes
Communities & Local Government,DCLG,19/05/2016,Cur Grant (Non AEF) to Local Authority,Local Government & Public Services,SUNDERLAND DC,,,,215599312,5000331743,,Grant Payable by Exchequer,SR2 7DN,96,Yes
Communities & Local Government,DCLG,19/05/2016,Cur Grant (Non AEF) to Local Authority,Local Government & Public Services,SUTTON LB,,,,,5000331746,,Grant Payable by Exchequer,SM1 1EA,"204,153.00",Yes
Communities & Local Government,DCLG,19/05/2016,Cur Grant (Non AEF) to Local Authority,Local Government & Public Services,TAMESIDE MBC,,,,212635875,5000331749,,Grant Payable by Exchequer,OL6 0GA,"65,844.00",Yes
Communities & Local Government,DCLG,19/05/2016,Cur Grant (Non AEF) to Local Authority,Local Government & Public Services,TORBAY BC,,,,,5000331762,,Grant Payable by Exchequer,TQ1 3DR,"85,792.00",Yes
Communities & Local Government,DCLG,19/05/2016,Cur Grant (Non AEF) to Local Authority,Local Government & Public Services,TORBAY BC,,,,,5000331762,,Grant Payable by Exchequer,TQ1 3DR,"4,093.00",Yes
Communities & Local Government,DCLG,19/05/2016,Cur Grant (Non AEF) to Local Authority,Local Government & Public Services,WALSALL MBC,,,,212515585,5000331616,,Grant Payable by Exchequer,WS1 1TW,"207,079.00",Yes
Communities & Local Government,DCLG,19/05/2016,Cur Grant (Non AEF) to Local Authority,Local Government & Public Services,WALSALL MBC,,,,212515585,5000331616,,Grant Payable by Exchequer,WS1 1TW,"212,714.00",Yes
Communities & Local Government,DCLG,19/05/2016,Cur Grant (Non AEF) to Local Authority,Local Government & Public Services,WALTHAM FOREST LB,,Large,,,5000331617,,Grant Payable by Exchequer,E17 4JF,"14,683.00",Yes
Communities & Local Government,DCLG,19/05/2016,Cur Grant (Non AEF) to Local Authority,Local Government & Public Services,WALTHAM FOREST LB,,Large,,,5000331617,,Grant Payable by Exchequer,E17 4JF,"53,175.00",Yes
Communities & Local Government,DCLG,19/05/2016,Cur Grant (Non AEF) to Local Authority,Local Government & Public Services,WANDSWORTH LB,,,,,5000331618,,Grant Payable by Exchequer,SW18 2PU,"284,557.00",Yes
Communities & Local Government,DCLG,19/05/2016,Cur Grant (Non AEF) to Local Authority,Local Government & Public Services,WANDSWORTH LB,,,,,5000331618,,Grant Payable by Exchequer,SW18 2PU,"124,929.00",Yes
Communities & Local Government,DCLG,19/05/2016,Cur Grant (Non AEF) to Local Authority,Local Government & Public Services,WEALDEN DC,,,,232688697,5000331625,,Grant Payable by Exchequer,BN22 9LN,"2,153.00",Yes
Communities & Local Government,DCLG,19/05/2016,Cur Grant (Non AEF) to Local Authority,Local Government & Public Services,WIGAN MBC,,,,,5000331640,,Grant Payable by Exchequer,WN1 1AZ,"319,864.00",Yes
Communities & Local Government,DCLG,19/05/2016,Cur Grant (Non AEF) to Local Authority,Local Government & Public Services,WIRRAL BOROUGH COUNCIL,,,,,5000331643,,Grant Payable by Exchequer,CH41 6BU,"113,164.00",Yes
Communities & Local Government,DCLG,19/05/2016,Cur Grant (Non AEF) to Local Authority,Local Government & Public Services,WIRRAL BOROUGH COUNCIL,,,,,5000331643,,Grant Payable by Exchequer,CH41 6BU,"123,880.00",Yes
Communities & Local Government,DCLG,19/05/2016,Cur Grant (Non AEF) to Local Authority,Local Government & Public Services,WOLVERHAMPTON MBC,,,,229895453,5000331646,,Grant Payable by Exchequer,WV1 1RL,"84,775.00",Yes
Communities & Local Government,DCLG,19/05/2016,Cur Grant (Non AEF) to Local Authority,Local Government & Public Services,WOLVERHAMPTON MBC,,,,229895453,5000331646,,Grant Payable by Exchequer,WV1 1RL,"331,853.00",Yes
Communities & Local Government,DCLG,19/05/2016,Current (non AEF) Grants to Local Authorities,Housing & Planning,AYLESBURY VALE DC(HSG),,,,396710709,5000332022,,Decentralisation and Neigbourhood Planning,HP19 8FF,"60,000.00",Yes
Communities & Local Government,DCLG,19/05/2016,Current (non AEF) Grants to Local Authorities,Housing & Planning,BABERGH DC,,,,232618405,5000332023,,Decentralisation and Neigbourhood Planning,IP7 6SJ,"15,000.00",Yes
Communities & Local Government,DCLG,19/05/2016,Current (non AEF) Grants to Local Authorities,Housing & Planning,BASINGSTOKE & DEANE BC,,,,228328506,5000332071,,Decentralisation and Neigbourhood Planning,RG21 2AJ,"20,000.00",Yes
Communities & Local Government,DCLG,19/05/2016,Current (non AEF) Grants to Local Authorities,Housing & Planning,BASSETLAW DC (HSG),,,,,5000332024,,Decentralisation and Neigbourhood Planning,S80 2AH,"60,000.00",Yes
Communities & Local Government,DCLG,19/05/2016,Current (non AEF) Grants to Local Authorities,Housing & Planning,BATH & NE SOMERSET DC (HSG),,,,214502499,5000332025,,Decentralisation and Neigbourhood Planning,BA1 5AW,"10,000.00",Yes
Communities & Local Government,DCLG,19/05/2016,Current (non AEF) Grants to Local Authorities,Housing & Planning,BEDFORD UNITARY AUTHORITY,,,,225682160,5000332101,,Decentralisation and Neigbourhood Planning,MK40 1SJ,"10,000.00",Yes
Communities & Local Government,DCLG,19/05/2016,Current (non AEF) Grants to Local Authorities,Housing & Planning,BLABY DC (HSG),,,,,5000332026,,Decentralisation and Neigbourhood Planning,LE9 5EP,"5,000.00",Yes
Communities & Local Government,DCLG,19/05/2016,Current (non AEF) Grants to Local Authorities,Housing & Planning,BROADLAND DC,,Large,,219737785,5000332027,,Decentralisation and Neigbourhood Planning,NR7 0DU,"35,000.00",Yes
Communities & Local Government,DCLG,19/05/2016,Current (non AEF) Grants to Local Authorities,Housing & Planning,CENTRAL BEDFORDSHIRE COUNCIL,,,,232624882,5000332098,,Decentralisation and Neigbourhood Planning,SG17 5TQ,"5,000.00",Yes
Communities & Local Government,DCLG,19/05/2016,Current (non AEF) Grants to Local Authorities,Housing & Planning,CHARNWOOD BC,,,,,5000332072,,Decentralisation and Neigbourhood Planning,LE11 2TU,"5,000.00",Yes
Communities & Local Government,DCLG,19/05/2016,Current (non AEF) Grants to Local Authorities,Housing & Planning,CHESHIRE EAST COUNCIL,,Large,,,5000332099,,Decentralisation and Neigbourhood Planning,CW11 1HZ,"60,000.00",Yes
Communities & Local Government,DCLG,19/05/2016,Current (non AEF) Grants to Local Authorities,Housing & Planning,CHESHIRE WEST & CHESTER UA,,Large,,215584383,5000332100,,Decentralisation and Neigbourhood Planning,CH1 2NP,"90,000.00",Yes
Communities & Local Government,DCLG,19/05/2016,Current (non AEF) Grants to Local Authorities,Housing & Planning,CHICHESTER DC,,,,739800998,5000332028,,Decentralisation and Neigbourhood Planning,PO19 1TY,"40,000.00",Yes
Communities & Local Government,DCLG,19/05/2016,Current (non AEF) Grants to Local Authorities,Housing & Planning,CITY OF WAKEFIELD MDC,,,,,5000332092,,Decentralisation and Neigbourhood Planning,WF1 2QW,"20,000.00",Yes
Communities & Local Government,DCLG,19/05/2016,Current (non AEF) Grants to Local Authorities,Housing & Planning,CORNWALL UNITARY AUTHORITY,,,,211334404,5000332103,,Decentralisation and Neigbourhood Planning,TR1 3AY,"65,000.00",Yes
Communities & Local Government,DCLG,19/05/2016,Current (non AEF) Grants to Local Authorities,Housing & Planning,COTSWOLD DC,,,,232462085,5000332029,,Decentralisation and Neigbourhood Planning,GL7 1PX,"25,000.00",Yes
Communities & Local Government,DCLG,19/05/2016,Current (non AEF) Grants to Local Authorities,Housing & Planning,DAVENTRY DC,,,,239859333,5000332030,,Decentralisation and Neigbourhood Planning,NN11 5AF,"60,000.00",Yes
Communities & Local Government,DCLG,19/05/2016,Current (non AEF) Grants to Local Authorities,Housing & Planning,DURHAM COUNTY COUNCIL,,,,224004882,5000332104,,Decentralisation and Neigbourhood Planning,DH1 5UE,"10,000.00",Yes
Communities & Local Government,DCLG,19/05/2016,Current (non AEF) Grants to Local Authorities,Housing & Planning,EALING LB,,,,,5000332073,,Decentralisation and Neigbourhood Planning,W5 2HL,"10,000.00",Yes
Communities & Local Government,DCLG,19/05/2016,Current (non AEF) Grants to Local Authorities,Housing & Planning,EAST CAMBRIDGESHIRE DC,,,,236472023,5000332031,,Decentralisation and Neigbourhood Planning,CB7 4PL,"5,000.00",Yes
Communities & Local Government,DCLG,19/05/2016,Current (non AEF) Grants to Local Authorities,Housing & Planning,EAST DEVON DC,,,,,5000332032,,Decentralisation and Neigbourhood Planning,EX10 8HL,"25,000.00",Yes
Communities & Local Government,DCLG,19/05/2016,Current (non AEF) Grants to Local Authorities,Housing & Planning,EAST HAMPSHIRE DC,,,,,5000332033,,Decentralisation and Neigbourhood Planning,GU31 4EX,"20,000.00",Yes
Communities & Local Government,DCLG,19/05/2016,Current (non AEF) Grants to Local Authorities,Housing & Planning,EAST RIDING OF YORKS (HSG),,,,423159987,5000332034,,Decentralisation and Neigbourhood Planning,HU17 9BA,"10,000.00",Yes
Communities & Local Government,DCLG,19/05/2016,Current (non AEF) Grants to Local Authorities,Housing & Planning,EAST STAFFORDSHIRE BC,,,,226778033,5000332035,,Decentralisation and Neigbourhood Planning,DE14 2EB,"35,000.00",Yes
Communities & Local Government,DCLG,19/05/2016,Current (non AEF) Grants to Local Authorities,Housing & Planning,FOREST HEATH DISTRICT COUNCIL,,,,236678116,5000332036,,Decentralisation and Neigbourhood Planning,IP28 7EY,"5,000.00",Yes
Communities & Local Government,DCLG,19/05/2016,Current (non AEF) Grants to Local Authorities,Housing & Planning,FYLDE BC,,,,227479912,5000332074,,Decentralisation and Neigbourhood Planning,FY8 1LW,"5,000.00",Yes
Communities & Local Government,DCLG,19/05/2016,Current (non AEF) Grants to Local Authorities,Housing & Planning,GRAVESHAM BC,,,,236178612,5000332075,,Decentralisation and Neigbourhood Planning,DA12 1AU,"5,000.00",Yes
Communities & Local Government,DCLG,19/05/2016,Current (non AEF) Grants to Local Authorities,Housing & Planning,GREATER LONDON AUTHORITY,,,,,5000332106,,Decentralisation and Neigbourhood Planning,SE10 1AJ,"10,000.00",Yes
Communities & Local Government,DCLG,19/05/2016,Current (non AEF) Grants to Local Authorities,Housing & Planning,HARBOROUGH DC (HSG),,,,212935774,5000332037,,Decentralisation and Neigbourhood Planning,LE16 7AG,"20,000.00",Yes
Communities & Local Government,DCLG,19/05/2016,Current (non AEF) Grants to Local Authorities,Housing & Planning,HEREFORDSHIRE COUNCIL,,,,,5000332038,,Decentralisation and Neigbourhood Planning,HR4 0XH,"125,000.00",Yes
Communities & Local Government,DCLG,19/05/2016,Current (non AEF) Grants to Local Authorities,Housing & Planning,HORSHAM DC,,,,229776588,5000332039,,Decentralisation and Neigbourhood Planning,RH12 1RL,"20,000.00",Yes
Communities & Local Government,DCLG,19/05/2016,Current (non AEF) Grants to Local Authorities,Housing & Planning,HULL CITY COUNCIL,,,,217460984,5000332078,,Decentralisation and Neigbourhood Planning,HU1 2AA,"10,000.00",Yes
Communities & Local Government,DCLG,19/05/2016,Current (non AEF) Grants to Local Authorities,Housing & Planning,HUNTINGDONSHIRE DC,,,,235999216,5000332040,,Decentralisation and Neigbourhood Planning,PE18 6TN,"20,000.00",Yes
Communities & Local Government,DCLG,19/05/2016,Current (non AEF) Grants to Local Authorities,Housing & Planning,ISLE OF WIGHT CNCL,,,,236431730,5000332076,,Decentralisation and Neigbourhood Planning,PO30 1UD,"5,000.00",Yes
Communities & Local Government,DCLG,19/05/2016,Current (non AEF) Grants to Local Authorities,Housing & Planning,ISLINGTON LB,,,,225716729,5000332077,,Decentralisation and Neigbourhood Planning,N1 1XR,"15,000.00",Yes
Communities & Local Government,DCLG,19/05/2016,Current (non AEF) Grants to Local Authorities,Housing & Planning,KINGS LYNN & WEST NORFOLK BC,,,,236417671,5000332041,,Decentralisation and Neigbourhood Planning,PE30 1EX,"10,000.00",Yes
Communities & Local Government,DCLG,19/05/2016,Current (non AEF) Grants to Local Authorities,Housing & Planning,LEWES DC,,,,213090082,5000332042,,Decentralisation and Neigbourhood Planning,BN7 1AB,"10,000.00",Yes
Communities & Local Government,DCLG,19/05/2016,Current (non AEF) Grants to Local Authorities,Housing & Planning,LEWISHAM LB (HSG),,Large,,235653300,5000332043,,Decentralisation and Neigbourhood Planning,SE6 4RU,"20,000.00",Yes
Communities & Local Government,DCLG,19/05/2016,Current (non AEF) Grants to Local Authorities,Housing & Planning,LICHFIELD DC,,,,236780086,5000332080,,Decentralisation and Neigbourhood Planning,WS13 6YX,"25,000.00",Yes
Communities & Local Government,DCLG,19/05/2016,Current (non AEF) Grants to Local Authorities,Housing & Planning,LONDON BOROUGH OF ENFIELD,,,,227475613,2100264664,,Rent Officers Pensions 16/17 Invoice 81163132,EN1 3XE,"6,626.19",Yes
Communities & Local Government,DCLG,19/05/2016,Current (non AEF) Grants to Local Authorities,Housing & Planning,LONDON BOROUGH OF LAMBETH,,,,228216479,5000332079,,Decentralisation and Neigbourhood Planning,SW2 1RL,"10,000.00",Yes
Communities & Local Government,DCLG,19/05/2016,Current (non AEF) Grants to Local Authorities,Housing & Planning,MALVERN HILLS DC,,,,227470424,5000332081,,Decentralisation and Neigbourhood Planning,WR14 3AF,"5,000.00",Yes
Communities & Local Government,DCLG,19/05/2016,Current (non AEF) Grants to Local Authorities,Housing & Planning,MELTON BC,,,,346268340,5000332044,,Decentralisation and Neigbourhood Planning,LE13 0UL,"20,000.00",Yes
Communities & Local Government,DCLG,19/05/2016,Current (non AEF) Grants to Local Authorities,Housing & Planning,MID SUSSEX DC,,,,236675989,5000332045,,Decentralisation and Neigbourhood Planning,RH16 1SS,"40,000.00",Yes
Communities & Local Government,DCLG,19/05/2016,Current (non AEF) Grants to Local Authorities,Housing & Planning,MILTON KEYNES BC,,,,,5000332082,,Decentralisation and Neigbourhood Planning,MK9 3WJ,"30,000.00",Yes
Communities & Local Government,DCLG,19/05/2016,Current (non AEF) Grants to Local Authorities,Housing & Planning,MOLE VALLEY DC,,,,225385772,5000332046,,Decentralisation and Neigbourhood Planning,RH4 1SJ,"5,000.00",Yes
Communities & Local Government,DCLG,19/05/2016,Current (non AEF) Grants to Local Authorities,Housing & Planning,NORTH DORSET DC,,,,236185005,5000332047,,Decentralisation and Neigbourhood Planning,DT11 7LL,"5,000.00",Yes
Communities & Local Government,DCLG,19/05/2016,Current (non AEF) Grants to Local Authorities,Housing & Planning,NORTH NORFOLK DC,,,,239975964,5000332048,,Decentralisation and Neigbourhood Planning,NR27 9EJ,"5,000.00",Yes
Communities & Local Government,DCLG,19/05/2016,Current (non AEF) Grants to Local Authorities,Housing & Planning,NORTH SOMERSET COUNCIL,,Large,,,5000332083,,Decentralisation and Neigbourhood Planning,BS23 1UJ,"10,000.00",Yes
Communities & Local Government,DCLG,19/05/2016,Current (non AEF) Grants to Local Authorities,Housing & Planning,NORTH WARWICKSHIRE BC,,Large,,,5000332049,,Decentralisation and Neigbourhood Planning,CV9 1DE,"5,000.00",Yes
Communities & Local Government,DCLG,19/05/2016,Current (non AEF) Grants to Local Authorities,Housing & Planning,NORTHUMBERLAND COUNTY COUNCIL,,,,210308905,5000332097,,Decentralisation and Neigbourhood Planning,NE61 2EF,"35,000.00",Yes
Communities & Local Government,DCLG,19/05/2016,Current (non AEF) Grants to Local Authorities,Housing & Planning,PURBECK DC,,,,,5000332050,,Decentralisation and Neigbourhood Planning,BH20 4PP,"5,000.00",Yes
Communities & Local Government,DCLG,19/05/2016,Current (non AEF) Grants to Local Authorities,Housing & Planning,ROCHDALE MBC,,,,,5000332084,,Decentralisation and Neigbourhood Planning,OL16 1YG,"10,000.00",Yes
Communities & Local Government,DCLG,19/05/2016,Current (non AEF) Grants to Local Authorities,Housing & Planning,SELBY DC,,,,239816721,5000332051,,Decentralisation and Neigbourhood Planning,YO8 9FT,"5,000.00",Yes
Communities & Local Government,DCLG,19/05/2016,Current (non AEF) Grants to Local Authorities,Housing & Planning,SHROPSHIRE UNITARY AUTHORITY,,,,217036490,5000332102,,Decentralisation and Neigbourhood Planning,SY2 6ND,"10,000.00",Yes
Communities & Local Government,DCLG,19/05/2016,Current (non AEF) Grants to Local Authorities,Housing & Planning,SOLIHULL MBC,,,,,5000332085,,Decentralisation and Neigbourhood Planning,B91 3QR,"5,000.00",Yes
Communities & Local Government,DCLG,19/05/2016,Current (non AEF) Grants to Local Authorities,Housing & Planning,SOUTH GLOUCESTERSHIRE DC (HSG),,,,,5000332052,,Decentralisation and Neigbourhood Planning,BS15 2TR,"5,000.00",Yes
Communities & Local Government,DCLG,19/05/2016,Current (non AEF) Grants to Local Authorities,Housing & Planning,SOUTH HAMS DC,,,,236445342,5000332053,,Decentralisation and Neigbourhood Planning,TQ9 5NE,"30,000.00",Yes
Communities & Local Government,DCLG,19/05/2016,Current (non AEF) Grants to Local Authorities,Housing & Planning,SOUTH KESTEVEN DC (HSG),,,,227470747,5000332054,,Decentralisation and Neigbourhood Planning,NG31 6PZ,"10,000.00",Yes
Communities & Local Government,DCLG,19/05/2016,Current (non AEF) Grants to Local Authorities,Housing & Planning,SOUTH OXFORDSHIRE DC,,,,212296766,5000332055,,Decentralisation and Neigbourhood Planning,OX10 8HQ,"25,000.00",Yes
Communities & Local Government,DCLG,19/05/2016,Current (non AEF) Grants to Local Authorities,Housing & Planning,SOUTH YORKS PENSIONS AUTHORITY,,,,232568295,2100264663,,Rechargeable pension April 16 - Invoice 1100029025,S70 2HG,355.67,Yes
Communities & Local Government,DCLG,19/05/2016,Current (non AEF) Grants to Local Authorities,Housing & Planning,ST ALBANS CITY COUNCIL,,,,218692510,5000332086,,Decentralisation and Neigbourhood Planning,AL1 3JE,"5,000.00",Yes
Communities & Local Government,DCLG,19/05/2016,Current (non AEF) Grants to Local Authorities,Housing & Planning,STAFFORD BC,,,,227476934,5000332087,,Decentralisation and Neigbourhood Planning,ST16 3AQ,"45,000.00",Yes
Communities & Local Government,DCLG,19/05/2016,Current (non AEF) Grants to Local Authorities,Housing & Planning,STAFFORDSHIRE MOORLANDS DC,,,,232749775,5000332056,,Decentralisation and Neigbourhood Planning,ST13 6HQ,"15,000.00",Yes
Communities & Local Government,DCLG,19/05/2016,Current (non AEF) Grants to Local Authorities,Housing & Planning,STRATFORD ON AVON DC,,,,227473881,5000332088,,Decentralisation and Neigbourhood Planning,CV37 6HX,"25,000.00",Yes
Communities & Local Government,DCLG,19/05/2016,Current (non AEF) Grants to Local Authorities,Housing & Planning,STROUD DC (HSG),,,,,5000332057,,Decentralisation and Neigbourhood Planning,GL5 4UB,"25,000.00",Yes
Communities & Local Government,DCLG,19/05/2016,Current (non AEF) Grants to Local Authorities,Housing & Planning,SUTTON LB,,,,,5000332089,,Decentralisation and Neigbourhood Planning,SM1 1EA,"10,000.00",Yes
Communities & Local Government,DCLG,19/05/2016,Current (non AEF) Grants to Local Authorities,Housing & Planning,SWINDON BC,,,,458639697,5000332090,,Decentralisation and Neigbourhood Planning,SN1 2JH,"5,000.00",Yes
Communities & Local Government,DCLG,19/05/2016,Current (non AEF) Grants to Local Authorities,Housing & Planning,TAUNTON DEANE BC,,,,236185294,5000332058,,Decentralisation and Neigbourhood Planning,TA1 1HE,"35,000.00",Yes
Communities & Local Government,DCLG,19/05/2016,Current (non AEF) Grants to Local Authorities,Housing & Planning,TEIGNBRIDGE DC,,,,236440475,5000332059,,Decentralisation and Neigbourhood Planning,TQ12 4XX,"20,000.00",Yes
Communities & Local Government,DCLG,19/05/2016,Current (non AEF) Grants to Local Authorities,Housing & Planning,TELFORD & WREKIN COUNCIL,,,,230235801,5000332091,,Decentralisation and Neigbourhood Planning,TF3 4NT,"20,000.00",Yes
Communities & Local Government,DCLG,19/05/2016,Current (non AEF) Grants to Local Authorities,Housing & Planning,TEST VALLEY BC,,,,225442698,5000332060,,Decentralisation and Neigbourhood Planning,SP10 3AJ,"20,000.00",Yes
Communities & Local Government,DCLG,19/05/2016,Current (non AEF) Grants to Local Authorities,Housing & Planning,TEWKESBURY BC,,,,232740399,5000332061,,Decentralisation and Neigbourhood Planning,GL20 5TT,"10,000.00",Yes
Communities & Local Government,DCLG,19/05/2016,Current (non AEF) Grants to Local Authorities,Housing & Planning,TOWER HAMLETS LB (HSG),,,,231315144,5000332062,,Decentralisation and Neigbourhood Planning,E14 2BG,"15,000.00",Yes
Communities & Local Government,DCLG,19/05/2016,Current (non AEF) Grants to Local Authorities,Housing & Planning,UTTLESFORD DC,,,,424423242,5000332063,,Decentralisation and Neigbourhood Planning,CB11 4ER,"5,000.00",Yes
Communities & Local Government,DCLG,19/05/2016,Current (non AEF) Grants to Local Authorities,Housing & Planning,VALE OF WHITE HORSE DC,,,,,5000332064,,Decentralisation and Neigbourhood Planning,OX14 3JE,"10,000.00",Yes
Communities & Local Government,DCLG,19/05/2016,Current (non AEF) Grants to Local Authorities,Housing & Planning,WEST DORSET DC,,,,424295350,5000332065,,Decentralisation and Neigbourhood Planning,DT1 1UZ,"25,000.00",Yes
Communities & Local Government,DCLG,19/05/2016,Current (non AEF) Grants to Local Authorities,Housing & Planning,WEST LINDSEY DC,,,,227471026,5000332066,,Decentralisation and Neigbourhood Planning,DN21 2NA,"30,000.00",Yes
Communities & Local Government,DCLG,19/05/2016,Current (non AEF) Grants to Local Authorities,Housing & Planning,WEST OXFORDSHIRE DC,,,,210401379,5000332067,,Decentralisation and Neigbourhood Planning,OX28 1NB,"25,000.00",Yes
Communities & Local Government,DCLG,19/05/2016,Current (non AEF) Grants to Local Authorities,Housing & Planning,WEST SOMERSET DC,,,,216015144,5000332068,,Decentralisation and Neigbourhood Planning,TA4 4QA,"5,000.00",Yes
Communities & Local Government,DCLG,19/05/2016,Current (non AEF) Grants to Local Authorities,Housing & Planning,WESTMINSTER CITY CNCL,,,,229845706,5000332093,,Decentralisation and Neigbourhood Planning,SW1E 6QP,"25,000.00",Yes
Communities & Local Government,DCLG,19/05/2016,Current (non AEF) Grants to Local Authorities,Housing & Planning,WIGAN MBC,,Public Bodies,,,5000332094,,Decentralisation and Neigbourhood Planning,WN1 1AZ,"20,000.00",Yes
Communities & Local Government,DCLG,19/05/2016,Current (non AEF) Grants to Local Authorities,Housing & Planning,WILTSHIRE COUNCIL,,,,211341656,5000332096,,Decentralisation and Neigbourhood Planning,BA14 4DS,"45,000.00",Yes
Communities & Local Government,DCLG,19/05/2016,Current (non AEF) Grants to Local Authorities,Housing & Planning,WYCHAVON DISTRICT COUNCIL,,,,232257139,5000332069,,Decentralisation and Neigbourhood Planning,WR10 1PT,"15,000.00",Yes
Communities & Local Government,DCLG,19/05/2016,Current (non AEF) Grants to Local Authorities,Housing & Planning,WYCOMBE DC,,Medium,,232683771,5000332070,,Decentralisation and Neigbourhood Planning,HP11 1BB,"30,000.00",Yes
Communities & Local Government,DCLG,19/05/2016,Current (non AEF) Grants to Local Authorities,Housing & Planning,YORK CITY CNCL,,,,,5000332095,,Decentralisation and Neigbourhood Planning,YO1 0EG,"5,000.00",Yes
Communities & Local Government,DCLG,19/05/2016,Current Grant Business Rate Retention,Local Government & Public Services,AVON FIRE AUTHORITY,,,,424872570,5000331393,,Grant Payable by Exchequer,BS1 6EU,"477,162.00",Yes
Communities & Local Government,DCLG,19/05/2016,Current Grant Business Rate Retention,Local Government & Public Services,BARNET LBC,,,,211049507,5000331397,,Grant Payable by Exchequer,N11 1NP,"1,643,856.00",Yes
Communities & Local Government,DCLG,19/05/2016,Current Grant Business Rate Retention,Local Government & Public Services,BARNSLEY MBC,,Public Bodies,,211178595,5000331399,,Grant Payable by Exchequer,S70 2AQ,"2,398,968.00",Yes
Communities & Local Government,DCLG,19/05/2016,Current Grant Business Rate Retention,Local Government & Public Services,BEDS & LUTON FIRE & RESCUE SERVICE,,,,387821283,5000331411,,Grant Payable by Exchequer,MK42 7NR,"298,085.00",Yes
Communities & Local Government,DCLG,19/05/2016,Current Grant Business Rate Retention,Local Government & Public Services,BEXLEY LB,,,,,5000331415,,Grant Payable by Exchequer,DA8 1TL,"1,304,998.00",Yes
Communities & Local Government,DCLG,19/05/2016,Current Grant Business Rate Retention,Local Government & Public Services,BIRMINGHAM CITY CNCL,,,,213780559,5000331417,,Grant Payable by Exchequer,B3 3AB,"2,493,884.00",Yes
Communities & Local Government,DCLG,19/05/2016,Current Grant Business Rate Retention,Local Government & Public Services,BLACKBURN WITH DARWEN BC,,,,,5000331422,,Grant Payable by Exchequer,BB1 7DY,"1,618,142.00",Yes
Communities & Local Government,DCLG,19/05/2016,Current Grant Business Rate Retention,Local Government & Public Services,BLACKPOOL BC,,,,,5000331424,,Grant Payable by Exchequer,FY1 1NA,"1,739,025.00",Yes
Communities & Local Government,DCLG,19/05/2016,Current Grant Business Rate Retention,Local Government & Public Services,BRENT LB,,,,,5000331443,,Grant Payable by Exchequer,HA9 9EZ,"4,387,343.00",Yes
Communities & Local Government,DCLG,19/05/2016,Current Grant Business Rate Retention,Local Government & Public Services,CAMBRIDGESHIRE COUNTY CNCL,,,,219047347,5000331475,,Grant Payable by Exchequer,CB3 0AP,"3,271,955.00",Yes
Communities & Local Government,DCLG,19/05/2016,Current Grant Business Rate Retention,Local Government & Public Services,CAMBS & PETERBOROUGH FIRE AUTHORITY,,,,235999737,5000331473,,Grant Payable by Exchequer,PE29 2NA,"185,811.00",Yes
Communities & Local Government,DCLG,19/05/2016,Current Grant Business Rate Retention,Local Government & Public Services,CHESHIRE FIRE AUTHORITY,,,,424872737,5000331495,,Grant Payable by Exchequer,CW7 2FQ,"375,542.00",Yes
Communities & Local Government,DCLG,19/05/2016,Current Grant Business Rate Retention,Local Government & Public Services,CITY OF LINCOLN COUNCIL,,,,,5000331528,,Grant Payable by Exchequer,LN1 1DB,"3,102,251.00",Yes
Communities & Local Government,DCLG,19/05/2016,Current Grant Business Rate Retention,Local Government & Public Services,CLEVELAND FIRE AUTHORITY,,,,424872778,5000331511,,Grant Payable by Exchequer,TS25 5TB,"583,749.00",Yes
Communities & Local Government,DCLG,19/05/2016,Current Grant Business Rate Retention,Local Government & Public Services,CO DURHAM & DARLINGTON FIRE & RESCU,,,,424872851,5000331558,,Grant Payable by Exchequer,DH1 1TW,"453,603.00",Yes
Communities & Local Government,DCLG,19/05/2016,Current Grant Business Rate Retention,Local Government & Public Services,CORNWALL COUNCIL,,,,211334404,5000331657,,Grant Payable by Exchequer,TR1 3AY,"1,892,706.00",Yes
Communities & Local Government,DCLG,19/05/2016,Current Grant Business Rate Retention,Local Government & Public Services,CUMBRIA COUNTY CNCL,,,,211316542,5000331529,,Grant Payable by Exchequer,CA3 8NA,"1,306,155.00",Yes
Communities & Local Government,DCLG,19/05/2016,Current Grant Business Rate Retention,Local Government & Public Services,DARLINGTON BC,,,,,5000331533,,Grant Payable by Exchequer,TS19 1JA,"361,097.00",Yes
Communities & Local Government,DCLG,19/05/2016,Current Grant Business Rate Retention,Local Government & Public Services,DERBY CITY CNCL,,,,229641378,5000331539,,Grant Payable by Exchequer,DE1 2FS,"4,566,548.00",Yes
Communities & Local Government,DCLG,19/05/2016,Current Grant Business Rate Retention,Local Government & Public Services,DEVON & SOMERSET FIRE & RESCUE SERV,,,,424872976,5000331548,,Grant Payable by Exchequer,EX3 0NW,"832,831.00",Yes
Communities & Local Government,DCLG,19/05/2016,Current Grant Business Rate Retention,Local Government & Public Services,DONCASTER MBC,,,,,5000331550,,Grant Payable by Exchequer,DN1 3QA,"2,447,712.00",Yes
Communities & Local Government,DCLG,19/05/2016,Current Grant Business Rate Retention,Local Government & Public Services,DORSET & WILTSHIRE FIRE & RESCUE AU,,Large,,,5000331663,,Grant Payable by Exchequer,SP1 3NR,"410,205.00",Yes
Communities & Local Government,DCLG,19/05/2016,Current Grant Business Rate Retention,Local Government & Public Services,DORSET COUNTY CNCL,,,,225431279,5000331552,,Grant Payable by Exchequer,DT1 1XJ,"2,335,940.00",Yes
Communities & Local Government,DCLG,19/05/2016,Current Grant Business Rate Retention,Local Government & Public Services,DUDLEY MBC,,,,,5000331556,,Grant Payable by Exchequer,DY1 1HF,"1,376,717.00",Yes
Communities & Local Government,DCLG,19/05/2016,Current Grant Business Rate Retention,Local Government & Public Services,DURHAM COUNTY COUNCIL,,,,228453601,5000331658,,Grant Payable by Exchequer,DH1 5UE,"5,489,584.00",Yes
Communities & Local Government,DCLG,19/05/2016,Current Grant Business Rate Retention,Local Government & Public Services,ENFIELD LB,,,,,5000331592,,Grant Payable by Exchequer,EN1 3XF,"3,201,412.00",Yes
Communities & Local Government,DCLG,19/05/2016,Current Grant Business Rate Retention,Local Government & Public Services,ESSEX COUNTY CNCL,,,,233572986,5000331600,,Grant Payable by Exchequer,CM1 1JZ,"3,634,151.00",Yes
Communities & Local Government,DCLG,19/05/2016,Current Grant Business Rate Retention,Local Government & Public Services,GATESHEAD COUNCIL,,,,216116041,5000331406,,Grant Payable by Exchequer,NE8 1HH,"895,626.00",Yes
Communities & Local Government,DCLG,19/05/2016,Current Grant Business Rate Retention,Local Government & Public Services,GREATER MANCHESTER FIRE & RESCUE AU,,,,,5000331544,,Grant Payable by Exchequer,M27 8US,"1,694,422.00",Yes
Communities & Local Government,DCLG,19/05/2016,Current Grant Business Rate Retention,Local Government & Public Services,GREENWICH LB,,,,,5000331421,,Grant Payable by Exchequer,SE18 6HQ,"5,196,450.00",Yes
Communities & Local Government,DCLG,19/05/2016,Current Grant Business Rate Retention,Local Government & Public Services,HAMPSHIRE COUNTY COUNCIL,,,,211325832,5000331432,,Grant Payable by Exchequer,SO23 8UB,"5,959,836.00",Yes
Communities & Local Government,DCLG,19/05/2016,Current Grant Business Rate Retention,Local Government & Public Services,HAMPSHIRE FIRE & RESCUE AUTHORITY,,,,211325832,5000331434,,Grant Payable by Exchequer,SO23 8UB,"598,146.00",Yes
Communities & Local Government,DCLG,19/05/2016,Current Grant Business Rate Retention,Local Government & Public Services,HARINGEY LB,,,,217471767,5000331438,,Grant Payable by Exchequer,N22 7TR,"4,969,774.00",Yes
Communities & Local Government,DCLG,19/05/2016,Current Grant Business Rate Retention,Local Government & Public Services,HARROW LB,,,,,5000331444,,Grant Payable by Exchequer,HA1 2UZ,"1,900,208.00",Yes
Communities & Local Government,DCLG,19/05/2016,Current Grant Business Rate Retention,Local Government & Public Services,HARTLEPOOL BOROUGH COUNCIL,,,,424291797,5000331448,,Grant Payable by Exchequer,TS24 8AY,"675,869.00",Yes
Communities & Local Government,DCLG,19/05/2016,Current Grant Business Rate Retention,Local Government & Public Services,HEREFORD & WORCESTER FIRE & RESCUE,,,,236425484,5000331456,,Grant Payable by Exchequer,WR5 1JR,"256,017.00",Yes
Communities & Local Government,DCLG,19/05/2016,Current Grant Business Rate Retention,Local Government & Public Services,HEREFORDSHIRE DISTRICT COUNCIL,,,,211510826,5000331458,,Grant Payable by Exchequer,HR1 1SH,"618,384.00",Yes
Communities & Local Government,DCLG,19/05/2016,Current Grant Business Rate Retention,Local Government & Public Services,HULL CITY COUNCIL,,,,217460984,5000331498,,Grant Payable by Exchequer,HU1 2AA,"2,824,266.00",Yes
Communities & Local Government,DCLG,19/05/2016,Current Grant Business Rate Retention,Local Government & Public Services,HUMBERSIDE FIRE & RESCUE SERVICE,,,,229832563,5000331474,,Grant Payable by Exchequer,HU4 7BB,"760,603.00",Yes
Communities & Local Government,DCLG,19/05/2016,Current Grant Business Rate Retention,Local Government & Public Services,ISLE OF WIGHT CNCL,,,,236431730,5000331481,,Grant Payable by Exchequer,PO30 1UD,"1,129,757.00",Yes
Communities & Local Government,DCLG,19/05/2016,Current Grant Business Rate Retention,Local Government & Public Services,ISLES OF SCILLY COUNCIL,,,,214146040,5000331485,,Grant Payable by Exchequer,TR21 0LW,"45,203.00",Yes
Communities & Local Government,DCLG,19/05/2016,Current Grant Business Rate Retention,Local Government & Public Services,KNOWSLEY MBC,,,,,5000331504,,Grant Payable by Exchequer,L36 9YZ,"3,315,948.00",Yes
Communities & Local Government,DCLG,19/05/2016,Current Grant Business Rate Retention,Local Government & Public Services,LANCASHIRE COMBINED FIRE AUTHORITY,,,,230398732,5000331510,,Grant Payable by Exchequer,PR2 3LH,"870,676.00",Yes
Communities & Local Government,DCLG,19/05/2016,Current Grant Business Rate Retention,Local Government & Public Services,LEICESTERSHIRE COUNTY CNCL,,,,423679836,5000331519,,Grant Payable by Exchequer,LE3 8RB,"1,109,401.00",Yes
Communities & Local Government,DCLG,19/05/2016,Current Grant Business Rate Retention,Local Government & Public Services,LEWISHAM LONDON BOROUGH,,Large,,235653300,5000331524,,Grant Payable by Exchequer,SE6 4RU,"6,441,100.00",Yes
Communities & Local Government,DCLG,19/05/2016,Current Grant Business Rate Retention,Local Government & Public Services,LIVERPOOL CITY COUNCIL,,,,,5000331532,,Grant Payable by Exchequer,L2 2DH,"5,860,821.00",Yes
Communities & Local Government,DCLG,19/05/2016,Current Grant Business Rate Retention,Local Government & Public Services,LONDON BOROUGH OF HACKNEY,,,,225221597,5000331425,,Grant Payable by Exchequer,E8 4RU,"6,763,307.00",Yes
Communities & Local Government,DCLG,19/05/2016,Current Grant Business Rate Retention,Local Government & Public Services,LONDON BOROUGH OF LAMBETH,,,,228216479,5000331506,,Grant Payable by Exchequer,SW2 1RL,"5,932,148.00",Yes
Communities & Local Government,DCLG,19/05/2016,Current Grant Business Rate Retention,Local Government & Public Services,LONDON BOROUGH OF NEWHAM,,Large,,228454344,5000331581,,Grant Payable by Exchequer,E16 2QU,"6,406,092.00",Yes
Communities & Local Government,DCLG,19/05/2016,Current Grant Business Rate Retention,Local Government & Public Services,LONDON BOROUGH OF REDBRIDGE,,,,211341417,5000331677,,Grant Payable by Exchequer,IG1 1NN,"2,853,203.00",Yes
Communities & Local Government,DCLG,19/05/2016,Current Grant Business Rate Retention,Local Government & Public Services,LUTON BC,,,,365112155,5000331534,,Grant Payable by Exchequer,LU1 2BQ,"975,697.00",Yes
Communities & Local Government,DCLG,19/05/2016,Current Grant Business Rate Retention,Local Government & Public Services,MANCHESTER CITY CNCL,,,,211241393,5000331542,,Grant Payable by Exchequer,M60 2JR,"5,861,458.00",Yes
Communities & Local Government,DCLG,19/05/2016,Current Grant Business Rate Retention,Local Government & Public Services,MERSEYSIDE FIRE & RESCUE SERVICE,,,,210372331,5000331555,,Grant Payable by Exchequer,L30 4YD,"1,274,852.00",Yes
Communities & Local Government,DCLG,19/05/2016,Current Grant Business Rate Retention,Local Government & Public Services,MIDDLESBROUGH BC,,,,,5000331565,,Grant Payable by Exchequer,TS1 9GA,"1,962,934.00",Yes
Communities & Local Government,DCLG,19/05/2016,Current Grant Business Rate Retention,Local Government & Public Services,NORFOLK COUNTY COUNCIL,,,,232602789,5000331583,,Grant Payable by Exchequer,NR1 2DW,"4,118,199.00",Yes
Communities & Local Government,DCLG,19/05/2016,Current Grant Business Rate Retention,Local Government & Public Services,NORTH TYNESIDE MBC,,,,,5000331602,,Grant Payable by Exchequer,NE27 0BY,"1,410,612.00",Yes
Communities & Local Government,DCLG,19/05/2016,Current Grant Business Rate Retention,Local Government & Public Services,NORTH YORKSHIRE FIRE & RESCUE AUTH,,,,423679778,5000331607,,Grant Payable by Exchequer,DL6 1AB,"229,856.00",Yes
Communities & Local Government,DCLG,19/05/2016,Current Grant Business Rate Retention,Local Government & Public Services,NORTHUMBERLAND COUNTY COUNCIL,,,,210308905,5000331659,,Grant Payable by Exchequer,NE61 2EF,"2,165,192.00",Yes
Communities & Local Government,DCLG,19/05/2016,Current Grant Business Rate Retention,Local Government & Public Services,NOTTINGHAM CITY COUNCIL,,,,214495447,5000331611,,Grant Payable by Exchequer,NG2 3NG,"2,478,239.00",Yes
Communities & Local Government,DCLG,19/05/2016,Current Grant Business Rate Retention,Local Government & Public Services,NOTTINGHAMSHIRE COUNTY CNCL,,,,,5000331612,,Grant Payable by Exchequer,NG2 7QP,"1,425,323.00",Yes
Communities & Local Government,DCLG,19/05/2016,Current Grant Business Rate Retention,Local Government & Public Services,NOTTS & CITY NOTTINGHAM FIRE AUTH,,,,296814999,5000331613,,Grant Payable by Exchequer,NG5 8PD,"587,795.00",Yes
Communities & Local Government,DCLG,19/05/2016,Current Grant Business Rate Retention,Local Government & Public Services,PLYMOUTH CITY COUNCIL,,Public Bodies,,236416095,5000331671,,Grant Payable by Exchequer,PL1 2AA,"2,347,921.00",Yes
Communities & Local Government,DCLG,19/05/2016,Current Grant Business Rate Retention,Local Government & Public Services,REDCAR & CLEVELAND BOROUGH COUNCIL,,,,215175196,5000331678,,Grant Payable by Exchequer,TS6 9AR,"768,590.00",Yes
Communities & Local Government,DCLG,19/05/2016,Current Grant Business Rate Retention,Local Government & Public Services,RIBBLE VALLEY BC,,,,232617894,5000331681,,Grant Payable by Exchequer,BB7 2RA,"7,134,956.00",Yes
Communities & Local Government,DCLG,19/05/2016,Current Grant Business Rate Retention,Local Government & Public Services,ROTHERHAM MBC,,,,211266937,5000331688,,Grant Payable by Exchequer,S60 1AE,"2,053,497.00",Yes
Communities & Local Government,DCLG,19/05/2016,Current Grant Business Rate Retention,Local Government & Public Services,ROYAL BERKSHIRE FIRE AUTHORITY,,,,424872653,5000331413,,Grant Payable by Exchequer,RG30 4FS,"169,455.00",Yes
Communities & Local Government,DCLG,19/05/2016,Current Grant Business Rate Retention,Local Government & Public Services,SANDWELL MBC,,,,,5000331696,,Grant Payable by Exchequer,B69 3DE,"4,050,184.00",Yes
Communities & Local Government,DCLG,19/05/2016,Current Grant Business Rate Retention,Local Government & Public Services,SEFTON MBC,,,,232936125,5000331699,,Grant Payable by Exchequer,L20 3AB,"2,201,755.00",Yes
Communities & Local Government,DCLG,19/05/2016,Current Grant Business Rate Retention,Local Government & Public Services,SHEFFIELD CITY CNCL,,Large,,,5000331702,,Grant Payable by Exchequer,S1 1UJ,"2,621,159.00",Yes
Communities & Local Government,DCLG,19/05/2016,Current Grant Business Rate Retention,Local Government & Public Services,SHROPSHIRE & WREKIN FIRE AUTHORITY,,,,424873610,5000331704,,Grant Payable by Exchequer,SY1 2HJ,"194,520.00",Yes
Communities & Local Government,DCLG,19/05/2016,Current Grant Business Rate Retention,Local Government & Public Services,SHROPSHIRE COUNCIL,,Large,,217036490,5000331660,,Grant Payable by Exchequer,SY2 6ND,"910,791.00",Yes
Communities & Local Government,DCLG,19/05/2016,Current Grant Business Rate Retention,Local Government & Public Services,SOUTH TYNESIDE COUNCIL,,,,345736438,5000331722,,Grant Payable by Exchequer,NE33 2RL,"2,722,653.00",Yes
Communities & Local Government,DCLG,19/05/2016,Current Grant Business Rate Retention,Local Government & Public Services,SOUTH YORKSHIRE FIRE & RESCUE AUTH,,,,424872620,5000331723,,Grant Payable by Exchequer,S70 2HG,"910,015.00",Yes
Communities & Local Government,DCLG,19/05/2016,Current Grant Business Rate Retention,Local Government & Public Services,SOUTHEND ON SEA BC,,,,217067263,5000331725,,Grant Payable by Exchequer,SS2 6EP,"857,473.00",Yes
Communities & Local Government,DCLG,19/05/2016,Current Grant Business Rate Retention,Local Government & Public Services,SOUTHWARK LB,,,,,5000331726,,Grant Payable by Exchequer,SE1P 5LX,"4,080,542.00",Yes
Communities & Local Government,DCLG,19/05/2016,Current Grant Business Rate Retention,Local Government & Public Services,STAFFORDSHIRE COUNTY CNCL,,,,,5000331732,,Grant Payable by Exchequer,ST16 2LH,"5,838,945.00",Yes
Communities & Local Government,DCLG,19/05/2016,Current Grant Business Rate Retention,Local Government & Public Services,SUNDERLAND DC,,,,215599312,5000331743,,Grant Payable by Exchequer,SR2 7DN,"3,262,248.00",Yes
Communities & Local Government,DCLG,19/05/2016,Current Grant Business Rate Retention,Local Government & Public Services,SURREY COUNTY CNCL,,Public Bodies,,,5000331744,,Grant Payable by Exchequer,KT1 2DN,"520,643.00",Yes
Communities & Local Government,DCLG,19/05/2016,Current Grant Business Rate Retention,Local Government & Public Services,SUTTON LB,,,,,5000331746,,Grant Payable by Exchequer,SM1 1EA,"1,585,941.00",Yes
Communities & Local Government,DCLG,19/05/2016,Current Grant Business Rate Retention,Local Government & Public Services,TYNE & WEAR FIRE AUTHORITY,,,,215599312,5000331767,,Grant Payable by Exchequer,SR2 7DN,"905,717.00",Yes
Communities & Local Government,DCLG,19/05/2016,Current Grant Business Rate Retention,Local Government & Public Services,WALSALL MBC,,,,212515585,5000331616,,Grant Payable by Exchequer,WS1 1TW,"3,007,918.00",Yes
Communities & Local Government,DCLG,19/05/2016,Current Grant Business Rate Retention,Local Government & Public Services,WALTHAM FOREST LB,,Large,,,5000331617,,Grant Payable by Exchequer,E17 4JF,"4,159,079.00",Yes
Communities & Local Government,DCLG,19/05/2016,Current Grant Business Rate Retention,Local Government & Public Services,WANDSWORTH LB,,,,,5000331618,,Grant Payable by Exchequer,SW18 2PU,"3,241,859.00",Yes
Communities & Local Government,DCLG,19/05/2016,Current Grant Business Rate Retention,Local Government & Public Services,WEALDEN DC,,,,232688697,5000331625,,Grant Payable by Exchequer,BN22 9LN,"2,267,067.00",Yes
Communities & Local Government,DCLG,19/05/2016,Current Grant Business Rate Retention,Local Government & Public Services,WEST MIDLANDS FIRE & CIVIL DEFENCE,,,,232913731,5000331633,,Grant Payable by Exchequer,B4 7DE,"1,896,489.00",Yes
Communities & Local Government,DCLG,19/05/2016,Current Grant Business Rate Retention,Local Government & Public Services,WEST SUSSEX CC,,Public Bodies,,232198762,5000331636,,Grant Payable by Exchequer,PO19 1RG,"106,301.00",Yes
Communities & Local Government,DCLG,19/05/2016,Current Grant Business Rate Retention,Local Government & Public Services,WEST YORKSHIRE FIRE & RESCUE AUTH,,,,236428595,5000331637,,Grant Payable by Exchequer,HD1 2YU,"1,319,542.00",Yes
Communities & Local Government,DCLG,19/05/2016,Current Grant Business Rate Retention,Local Government & Public Services,WIRRAL BOROUGH COUNCIL,,,,,5000331643,,Grant Payable by Exchequer,CH41 6BU,"3,746,787.00",Yes
Communities & Local Government,DCLG,19/05/2016,Current Grant Business Rate Retention,Local Government & Public Services,WOLVERHAMPTON MBC,,,,229895453,5000331646,,Grant Payable by Exchequer,WV1 1RL,"3,257,833.00",Yes
Communities & Local Government,DCLG,19/05/2016,Current Grant Business Rate Retention,Local Government & Public Services,WORCESTERSHIRE COUNTY COUNCIL,,,,230359643,5000331648,,Grant Payable by Exchequer,WR5 2NP,"427,984.00",Yes
Communities & Local Government,DCLG,19/05/2016,Current Grants to Non Profit Bodies,Housing & Planning,DARTMOOR NATIONAL PARK AUTHORITY,,,,,5000332105,,Neighbourhood Planning Grant (NP),TQ13 9JQ,"5,000.00",Yes
Communities & Local Government,DCLG,19/05/2016,Current Grants to Non Profit Bodies,Housing & Planning,SOUTH DOWNS NATIONAL PARK AUTHORITY,,Public Bodies,,,5000332107,,Neighbourhood Planning Grant (NP),GU29 9DH,"25,000.00",Yes
Communities & Local Government,DCLG,19/05/2016,Domestic Services,Finance,AMEY COMMUNITY LTD,,Large,,,5106221841,Building Operation,2015-16 Lateral Additional Cleaning EA,OX4 4DQ,"1,197.27",
Communities & Local Government,DCLG,19/05/2016,Domestic Services,Finance,AMEY COMMUNITY LTD,,Large,,,5106221841,Building Operation,2015-16 Lateral Cleaning,OX4 4DQ,"4,531.51",
Communities & Local Government,DCLG,19/05/2016,Facilities Management (ISD use only),Finance,AMEY COMMUNITY LTD,,Large,,,5106221841,Property Occupation,2015-16 Lateral Estate Service,OX4 4DQ,"1,858.79",
Communities & Local Government,DCLG,19/05/2016,Facilities Management (ISD use only),Finance,AMEY COMMUNITY LTD,,Large,,,5106221841,Property Occupation,2015-16 Lateral General Requirements,OX4 4DQ,"3,951.42",
Communities & Local Government,DCLG,19/05/2016,Facilities Management (ISD use only),Finance,AMEY COMMUNITY LTD,,Large,,,5106221841,Property Occupation,2015-16 Lateral Helpdesk Service,OX4 4DQ,366.88,
Communities & Local Government,DCLG,19/05/2016,Facilities Management (ISD use only),Finance,AMEY COMMUNITY LTD,,Large,,,5106221841,Property Occupation,2015-16 Lateral Porterage,OX4 4DQ,18.25,
Communities & Local Government,DCLG,19/05/2016,Facilities Management (ISD use only),Finance,AMEY COMMUNITY LTD,,Large,,,5106221841,Property Occupation,2015-16 Lateral X-Ray Services,OX4 4DQ,50.87,
Communities & Local Government,DCLG,19/05/2016,Fixed Maintenance,Finance,AMEY COMMUNITY LTD,,Large,,,5106221841,Business Support,2015-16 Lateral Grounds & Gardens,OX4 4DQ,168.3,
Communities & Local Government,DCLG,19/05/2016,IT - Service Contracts,Finance,DAISY CORPORATE SERVICES LTD,,Large,,221481042,5106221849,IT Managed / Outsourced Services,PAMU Office Moves Project Q4 14/15,BB9 5SR,"1,451.48",
Communities & Local Government,DCLG,19/05/2016,IT - Service Contracts,Finance,FUJITSU SERVICES LTD,,Large,,423375062,5106221834,IT Managed / Outsourced Services,NRF0307 Switches/Firewalls,WA3 6GD,"16,804.55",
Communities & Local Government,DCLG,19/05/2016,Recruitment,Housing & Planning,VEREDUS,,Large,,,5106221843,Business Process Outsourcing Services,Executive Search Services,DL1 9HN,"7,524.00",
Communities & Local Government,DCLG,19/05/2016,Recruitment,Housing & Planning,VEREDUS,,Large,,,5106221846,Business Process Outsourcing Services,Advertising Costs,DL1 9HN,960,
Communities & Local Government,DCLG,19/05/2016,Recruitment,Housing & Planning,VEREDUS,,Large,,,5106221846,Business Process Outsourcing Services,Executive Search Services,DL1 9HN,72,
Communities & Local Government,DCLG,19/05/2016,Revenue Support grant payable,Local Government & Public Services,AVON FIRE AUTHORITY,,,,424872570,5000331393,,Grant Payable by Exchequer,BS1 6EU,"524,024.00",Yes
Communities & Local Government,DCLG,19/05/2016,Revenue Support grant payable,Local Government & Public Services,BARKING & DAGENHAM LB,,Public Bodies,,227419488,5000331396,,Grant Payable by Exchequer,RM10 7BY,"3,302,040.00",Yes
Communities & Local Government,DCLG,19/05/2016,Revenue Support grant payable,Local Government & Public Services,BARNET LBC,,,,211049507,5000331397,,Grant Payable by Exchequer,N11 1NP,"3,316,395.00",Yes
Communities & Local Government,DCLG,19/05/2016,Revenue Support grant payable,Local Government & Public Services,BARNSLEY MBC,,Public Bodies,,211178595,5000331399,,Grant Payable by Exchequer,S70 2AQ,"3,110,387.00",Yes
Communities & Local Government,DCLG,19/05/2016,Revenue Support grant payable,Local Government & Public Services,BEDS & LUTON FIRE & RESCUE SERVICE,,,,387821283,5000331411,,Grant Payable by Exchequer,MK42 7NR,"289,054.00",Yes
Communities & Local Government,DCLG,19/05/2016,Revenue Support grant payable,Local Government & Public Services,BEXLEY LB,,,,,5000331415,,Grant Payable by Exchequer,DA8 1TL,"1,972,619.00",Yes
Communities & Local Government,DCLG,19/05/2016,Revenue Support grant payable,Local Government & Public Services,BIRMINGHAM CITY CNCL,,,,213780559,5000331417,,Grant Payable by Exchequer,B3 3AB,"20,392,820.00",Yes
Communities & Local Government,DCLG,19/05/2016,Revenue Support grant payable,Local Government & Public Services,BLACKBURN WITH DARWEN BC,,,,,5000331422,,Grant Payable by Exchequer,BB1 7DY,"2,596,823.00",Yes
Communities & Local Government,DCLG,19/05/2016,Revenue Support grant payable,Local Government & Public Services,BLACKPOOL BC,,,,,5000331424,,Grant Payable by Exchequer,FY1 1NA,"2,847,214.00",Yes
Communities & Local Government,DCLG,19/05/2016,Revenue Support grant payable,Local Government & Public Services,BOLTON MBC,,,,,5000331429,,Grant Payable by Exchequer,BL1 1RU,"3,780,686.00",Yes
Communities & Local Government,DCLG,19/05/2016,Revenue Support grant payable,Local Government & Public Services,BRADFORD MBC,,,,,5000331437,,Grant Payable by Exchequer,BD1 1HX,"7,555,236.00",Yes
Communities & Local Government,DCLG,19/05/2016,Revenue Support grant payable,Local Government & Public Services,BRENT LB,,,,,5000331443,,Grant Payable by Exchequer,HA9 9EZ,"5,040,010.00",Yes
Communities & Local Government,DCLG,19/05/2016,Revenue Support grant payable,Local Government & Public Services,BUCKINGHAMSHIRE CC,,,,293750923,5000331463,,Grant Payable by Exchequer,HP20 1UD,"2,134,128.00",Yes
Communities & Local Government,DCLG,19/05/2016,Revenue Support grant payable,Local Government & Public Services,BUCKS & MILTON KEYNES FIRE AUTH,,Public Bodies,,423679463,5000331461,,Grant Payable by Exchequer,HP20 1BD,"267,744.00",Yes
Communities & Local Government,DCLG,19/05/2016,Revenue Support grant payable,Local Government & Public Services,CAMBRIDGESHIRE COUNTY CNCL,,,,219047347,5000331475,,Grant Payable by Exchequer,CB3 0AP,"3,001,203.00",Yes
Communities & Local Government,DCLG,19/05/2016,Revenue Support grant payable,Local Government & Public Services,CAMBS & PETERBOROUGH FIRE AUTHORITY,,,,235999737,5000331473,,Grant Payable by Exchequer,PE29 2NA,"307,815.00",Yes
Communities & Local Government,DCLG,19/05/2016,Revenue Support grant payable,Local Government & Public Services,CHESHIRE FIRE AUTHORITY,,,,424872737,5000331495,,Grant Payable by Exchequer,CW7 2FQ,"446,620.00",Yes
